Workbook

Sheet Sample Data
T1: Daily
F2: Good | I2: Average | J2: Second | K2: Second | L2: Good | M2: Drivers | P2: Mature | T2: Round trip | U2: Multi-car | V2: Semi- | W2: Vehicle
B3: Accidents | D3: Violations | F3: Driver | G3: Annual | H3: Years | I3: Costs | J3: Driver | K3: Driver | L3: Student | M3: Training | N3: Gender | O3: Marital | P3: Driver | Q3: Percent | R3: Smoker | S3: Type of | T3: Commute | U3: Code | V3: annual | W3: Character. | X3: Vehicle | Y3: Vehicle | Z3: Zipcode
A4: DUI | B4: BI | C4: PD | D4: 1 point | E4: 2 point | F4: Discount | G4: Mileage | H4: Licensed | I4: per mile, x1000 | J4: Code | K4: Points | L4: Discount | M4: Discount | O4: Status | P4: Discount | Q4: Use | S4: Use | T4: Mileage | V4: renewals | W4: Codes | X4: Type | Y4: performance
A6: 0 | B6: 0 | C6: 0 | D6: 0 | E6: 0 | F6: y | G6: 5000 | H6: 42 | I6: 0.304 | J6: u | K6: 0 | L6: n | M6: n | N6: M | O6: S | P6: n | Q6: p | R6: n | S6: p | T6: 0 | U6: m | V6: 32 | W6: K | X6: a | Y6: n | Z6: 92316
A7: 0 | B7: 0 | C7: 0 | D7: 0 | E7: 0 | F7: y | G7: 5000 | H7: 47 | I7: 0.74 | J7: o | K7: 0 | L7: n | M7: n | N7: M | O7: M | P7: n | Q7: p | R7: n | S7: p | T7: 0 | U7: m | V7: 16 | W7: V | X7: a | Y7: n | Z7: 91763
A8: 0 | B8: 0 | C8: 0 | D8: 0 | E8: 0 | F8: y | G8: 5000 | H8: 64 | I8: 0.337 | J8: s | K8: 0 | L8: n | M8: n | N8: M | O8: M | P8: n | Q8: p | R8: n | S8: p | T8: 0 | U8: s | V8: 9 | W8: G | X8: a | Y8: n | Z8: 93012
A9: 0 | B9: 0 | C9: 0 | D9: 0 | E9: 0 | F9: y | G9: 3000 | H9: 46 | I9: 0.975 | J9: g | K9: 0 | L9: n | M9: n | N9: M | O9: S | P9: n | Q9: p | R9: n | S9: p | T9: 0 | U9: s | V9: 9 | W9: D | X9: a | Y9: e | Z9: 90304
A10: 0 | B10: 0 | C10: 0 | D10: 0 | E10: 0 | F10: y | G10: 2000 | H10: 58 | I10: 0.182 | J10: v | K10: 0 | L10: n | M10: n | N10: F | O10: W | P10: n | Q10: p | R10: n | S10: p | T10: 0 | U10: m | V10: 9 | W10: G | X10: a | Y10: n | Z10: 93907
A11: 0 | B11: 0 | C11: 0 | D11: 0 | E11: 0 | F11: y | G11: 2000 | H11: 67 | I11: 0.361 | J11: t | K11: 0 | L11: n | M11: n | N11: F | O11: M | P11: n | Q11: p | R11: n | S11: p | T11: 0 | U11: m | V11: 6 | W11: V | X11: a | Y11: n | Z11: 95472
A12: 0 | B12: 0 | C12: 0 | D12: 0 | E12: 0 | F12: y | G12: 2000 | H12: 45 | I12: 0.331 | J12: s | K12: 0 | L12: n | M12: n | N12: F | O12: M | P12: n | Q12: p | R12: n | S12: p | T12: 0 | U12: m | V12: 43 | W12: G | X12: p | Y12: n | Z12: 92635
A13: 0 | B13: 0 | C13: 0 | D13: 0 | E13: 0 | F13: y | G13: 5000 | H13: 50 | I13: 0.526 | J13: s | K13: 0 | L13: n | M13: n | N13: F | O13: M | P13: n | Q13: p | R13: n | S13: p | T13: 0 | U13: m | V13: 18 | W13: V | X13: a | Y13: n | Z13: 90605
A14: 0 | B14: 0 | C14: 0 | D14: 0 | E14: 0 | F14: y | G14: 5000 | H14: 44 | I14: 0.662 | J14: t | K14: 0 | L14: n | M14: n | N14: M | O14: S | P14: n | Q14: p | R14: n | S14: p | T14: 0 | U14: m | V14: 11 | W14: S | X14: a | Y14: n | Z14: 93510
A15: 0 | B15: 0 | C15: 0 | D15: 0 | E15: 0 | F15: y | G15: 5000 | H15: 47 | I15: 0.163 | J15: m | K15: 0 | L15: n | M15: n | N15: M | O15: M | P15: n | Q15: p | R15: n | S15: p | T15: 0 | U15: m | V15: 18 | W15: V | X15: a | Y15: n | Z15: 94040
A16: 0 | B16: 0 | C16: 0 | D16: 0 | E16: 0 | F16: y | G16: 5000 | H16: 43 | I16: 0.667 | J16: t | K16: 0 | L16: n | M16: n | N16: M | O16: S | P16: n | Q16: p | R16: n | S16: p | T16: 0 | U16: m | V16: 40 | W16: M | X16: a | Y16: n | Z16: 95014
A17: 0 | B17: 0 | C17: 0 | D17: 0 | E17: 0 | F17: y | G17: 1000 | H17: 53 | I17: 0.518 | J17: u | K17: 0 | L17: n | M17: n | N17: M | O17: M | P17: n | Q17: p | R17: n | S17: p | T17: 0 | U17: s | V17: 54 | W17: N | X17: p | Y17: n | Z17: 94587
A18: 0 | B18: 0 | C18: 0 | D18: 0 | E18: 0 | F18: y | G18: 4000 | H18: 56 | I18: 0.229 | J18: v | K18: 0 | L18: n | M18: n | N18: M | O18: S | P18: n | Q18: p | R18: n | S18: p | T18: 0 | U18: m | V18: 1 | W18: V | X18: a | Y18: n | Z18: 90250
A19: 0 | B19: 0 | C19: 0 | D19: 0 | E19: 0 | F19: y | G19: 5000 | H19: 55 | I19: 0.366 | J19: s | K19: 0 | L19: n | M19: n | N19: M | O19: M | P19: n | Q19: p | R19: n | S19: p | T19: 0 | U19: s | V19: 2 | W19: V | X19: v | Y19: n | Z19: 90066
A20: 0 | B20: 0 | C20: 0 | D20: 0 | E20: 0 | F20: y | G20: 2000 | H20: 22 | I20: 0.365 | J20: u | K20: 0 | L20: n | M20: n | N20: M | O20: M | P20: n | Q20: p | R20: n | S20: c | T20: 10 | U20: m | V20: 33 | W20: V | X20: p | Y20: n | Z20: 93555
A21: 0 | B21: 0 | C21: 0 | D21: 0 | E21: 0 | F21: y | G21: 5000 | H21: 22 | I21: 0.207 | J21: a | K21: 0 | L21: n | M21: n | N21: F | O21: S | P21: n | Q21: p | R21: n | S21: c | T21: 80 | U21: m | V21: 16 | W21: J | X21: a | Y21: n | Z21: 91711
A22: 0 | B22: 0 | C22: 0 | D22: 0 | E22: 0 | F22: y | G22: 5000 | H22: 29 | I22: 0.272 | J22: s | K22: 0 | L22: n | M22: n | N22: M | O22: M | P22: n | Q22: p | R22: n | S22: c | T22: 10 | U22: m | V22: 5 | W22: W | X22: a | Y22: n | Z22: 95726
A23: 0 | B23: 0 | C23: 0 | D23: 0 | E23: 0 | F23: y | G23: 5000 | H23: 27 | I23: 0.413 | J23: s | K23: 0 | L23: n | M23: n | N23: F | O23: S | P23: n | Q23: p | R23: n | S23: c | T23: 20 | U23: m | V23: 24 | W23: S | X23: p | Y23: n | Z23: 90713
A24: 0 | B24: 0 | C24: 0 | D24: 0 | E24: 0 | F24: y | G24: 5000 | H24: 21 | I24: 0.106 | J24: a | K24: 0 | L24: n | M24: n | N24: F | O24: M | P24: n | Q24: p | R24: n | S24: c | T24: 18 | U24: m | V24: 13 | W24: V | X24: p | Y24: n | Z24: 92704
A25: 0 | B25: 0 | C25: 0 | D25: 0 | E25: 0 | F25: y | G25: 2000 | H25: 34 | I25: 0.567 | J25: d | K25: 0 | L25: n | M25: n | N25: M | O25: M | P25: n | Q25: p | R25: n | S25: p | T25: 0 | U25: m | V25: 25 | W25: P | X25: a | Y25: e | Z25: 90230
A26: 0 | B26: 0 | C26: 0 | D26: 0 | E26: 0 | F26: y | G26: 5000 | H26: 29 | I26: 0.19 | J26: s | K26: 0 | L26: n | M26: n | N26: M | O26: M | P26: n | Q26: p | R26: n | S26: p | T26: 0 | U26: m | V26: 22 | W26: V | X26: a | Y26: n | Z26: 91351
A27: 0 | B27: 0 | C27: 0 | D27: 0 | E27: 0 | F27: y | G27: 4000 | H27: 21 | I27: 0.659 | J27: u | K27: 0 | L27: n | M27: n | N27: M | O27: M | P27: n | Q27: p | R27: n | S27: p | T27: 0 | U27: s | V27: 6 | W27: D | X27: a | Y27: n | Z27: 96068
A28: 0 | B28: 0 | C28: 0 | D28: 0 | E28: 0 | F28: y | G28: 5000 | H28: 34 | I28: 0.551 | J28: t | K28: 0 | L28: n | M28: n | N28: M | O28: M | P28: n | Q28: p | R28: n | S28: p | T28: 0 | U28: m | V28: 5 | W28: J | X28: a | Y28: n | Z28: 94518
A29: 0 | B29: 0 | C29: 0 | D29: 0 | E29: 0 | F29: y | G29: 4000 | H29: 31 | I29: 0.656 | J29: s | K29: 0 | L29: n | M29: n | N29: M | O29: M | P29: n | Q29: p | R29: n | S29: p | T29: 0 | U29: m | V29: 26 | W29: P | X29: p | Y29: n | Z29: 91711
A30: 0 | B30: 0 | C30: 0 | D30: 0 | E30: 0 | F30: y | G30: 1000 | H30: 29 | I30: 0.389 | J30: v | K30: 0 | L30: n | M30: n | N30: M | O30: M | P30: n | Q30: p | R30: n | S30: p | T30: 0 | U30: s | V30: 78 | W30: W | X30: a | Y30: e | Z30: 94538
A31: 0 | B31: 0 | C31: 0 | D31: 0 | E31: 0 | F31: y | G31: 1000 | H31: 31 | I31: 0.665 | J31: v | K31: 0 | L31: n | M31: n | N31: F | O31: M | P31: n | Q31: p | R31: n | S31: p | T31: 0 | U31: m | V31: 48 | W31: J | X31: a | Y31: e | Z31: 94518
A32: 0 | B32: 0 | C32: 0 | D32: 0 | E32: 0 | F32: y | G32: 5000 | H32: 39 | I32: 0.495 | J32: s | K32: 0 | L32: n | M32: n | N32: M | O32: M | P32: n | Q32: p | R32: n | S32: p | T32: 0 | U32: s | V32: 2 | W32: V | X32: p | Y32: n | Z32: 92069
A33: 0 | B33: 0 | C33: 0 | D33: 0 | E33: 0 | F33: y | G33: 3000 | H33: 32 | I33: 0.772 | J33: t | K33: 0 | L33: n | M33: n | N33: M | O33: S | P33: n | Q33: p | R33: n | S33: p | T33: 0 | U33: m | V33: 0 | W33: V | X33: a | Y33: n | Z33: 92211
A34: 0 | B34: 0 | C34: 0 | D34: 0 | E34: 0 | F34: y | G34: 1000 | H34: 27 | I34: 0.937 | J34: v | K34: 0 | L34: n | M34: n | N34: M | O34: M | P34: n | Q34: p | R34: n | S34: p | T34: 0 | U34: s | V34: 3 | W34: V | X34: a | Y34: n | Z34: 95448
A35: 0 | B35: 0 | C35: 0 | D35: 0 | E35: 0 | F35: y | G35: 2000 | H35: 26 | I35: 0.597 | J35: u | K35: 0 | L35: n | M35: n | N35: M | O35: M | P35: n | Q35: p | R35: n | S35: p | T35: 0 | U35: m | V35: 3 | W35: J | X35: a | Y35: h | Z35: 94134
A36: 0 | B36: 0 | C36: 0 | D36: 0 | E36: 0 | F36: y | G36: 1000 | H36: 18 | I36: 0.786 | J36: s | K36: 0 | L36: n | M36: n | N36: F | O36: M | P36: n | Q36: p | R36: n | S36: p | T36: 0 | U36: m | V36: 9 | W36: G | X36: a | Y36: n | Z36: 94538
A37: 0 | B37: 0 | C37: 0 | D37: 0 | E37: 0 | F37: y | G37: 5000 | H37: 18 | I37: 0.957 | J37: v | K37: 0 | L37: n | M37: n | N37: F | O37: M | P37: n | Q37: p | R37: n | S37: p | T37: 0 | U37: m | V37: 8 | W37: V | X37: a | Y37: n | Z37: 94596
A38: 0 | B38: 0 | C38: 0 | D38: 0 | E38: 0 | F38: y | G38: 2000 | H38: 18 | I38: 0.341 | J38: c | K38: 0 | L38: n | M38: n | N38: M | O38: M | P38: n | Q38: p | R38: n | S38: p | T38: 0 | U38: m | V38: 8 | W38: K | X38: a | Y38: n | Z38: 93535
A39: 0 | B39: 0 | C39: 0 | D39: 0 | E39: 0 | F39: y | G39: 5000 | H39: 16 | I39: 0.667 | J39: t | K39: 0 | L39: n | M39: n | N39: M | O39: W | P39: n | Q39: p | R39: n | S39: p | T39: 0 | U39: m | V39: 6 | W39: V | X39: a | Y39: n | Z39: 91706
A40: 0 | B40: 0 | C40: 0 | D40: 0 | E40: 0 | F40: y | G40: 5000 | H40: 16 | I40: 0.207 | J40: t | K40: 0 | L40: n | M40: n | N40: M | O40: S | P40: n | Q40: p | R40: n | S40: p | T40: 0 | U40: m | V40: 44 | W40: V | X40: p | Y40: n | Z40: 94705
A41: 0 | B41: 0 | C41: 0 | D41: 0 | E41: 0 | F41: y | G41: 1000 | H41: 15 | I41: 0.186 | J41: s | K41: 0 | L41: n | M41: n | N41: M | O41: M | P41: n | Q41: p | R41: n | S41: p | T41: 0 | U41: s | V41: 3 | W41: V | X41: a | Y41: n | Z41: 95628
A42: 0 | B42: 0 | C42: 0 | D42: 0 | E42: 0 | F42: y | G42: 1000 | H42: 46 | I42: 0.327 | J42: t | K42: 0 | L42: n | M42: n | N42: F | O42: M | P42: y | Q42: p | R42: y | S42: p | T42: 0 | U42: m | V42: 52 | W42: V | X42: a | Y42: n | Z42: 93252
A43: 0 | B43: 0 | C43: 0 | D43: 0 | E43: 0 | F43: y | G43: 5000 | H43: 62 | I43: 0.612 | J43: v | K43: 0 | L43: n | M43: n | N43: F | O43: M | P43: n | Q43: p | R43: y | S43: p | T43: 0 | U43: s | V43: 8 | W43: V | X43: a | Y43: n | Z43: 92399
A44: 0 | B44: 0 | C44: 0 | D44: 0 | E44: 0 | F44: y | G44: 3000 | H44: 46 | I44: 0.171 | J44: s | K44: 0 | L44: n | M44: n | N44: F | O44: M | P44: n | Q44: p | R44: y | S44: p | T44: 0 | U44: s | V44: 45 | W44: D | X44: a | Y44: n | Z44: 92139
A45: 0 | B45: 0 | C45: 0 | D45: 0 | E45: 0 | F45: y | G45: 5000 | H45: 36 | I45: 0.213 | J45: c | K45: 0 | L45: n | M45: n | N45: F | O45: S | P45: n | Q45: p | R45: y | S45: b | T45: 0 | U45: m | V45: 3 | W45: K | X45: a | Y45: s | Z45: 90024
A46: 0 | B46: 0 | C46: 0 | D46: 0 | E46: 0 | F46: y | G46: 4000 | H46: 33 | I46: 0.173 | J46: t | K46: 0 | L46: n | M46: y | N46: F | O46: D | P46: n | Q46: p | R46: y | S46: p | T46: 0 | U46: m | V46: 6 | W46: V | X46: a | Y46: n | Z46: 92211
A47: 0 | B47: 0 | C47: 0 | D47: 0 | E47: 0 | F47: y | G47: 3000 | H47: 24 | I47: 0.252 | J47: n | K47: 0 | L47: n | M47: n | N47: M | O47: M | P47: n | Q47: p | R47: y | S47: p | T47: 0 | U47: m | V47: 47 | W47: P | X47: a | Y47: n | Z47: 92647
A48: 0 | B48: 0 | C48: 0 | D48: 0 | E48: 0 | F48: y | G48: 5000 | H48: 18 | I48: 0.866 | J48: t | K48: 0 | L48: n | M48: n | N48: M | O48: M | P48: n | Q48: p | R48: y | S48: c | T48: 30 | U48: m | V48: 15 | W48: J | X48: a | Y48: n | Z48: 95624
A49: 0 | B49: 0 | C49: 0 | D49: 0 | E49: 0 | F49: y | G49: 5000 | H49: 26 | I49: 0.936 | J49: d | K49: 0 | L49: n | M49: n | N49: M | O49: M | P49: n | Q49: p | R49: n | S49: b | T49: 0 | U49: m | V49: 10 | W49: M | X49: a | Y49: n | Z49: 91765
A50: 0 | B50: 0 | C50: 0 | D50: 0 | E50: 0 | F50: y | G50: 4000 | H50: 25 | I50: 0.976 | J50: t | K50: 0 | L50: n | M50: n | N50: M | O50: M | P50: n | Q50: p | R50: n | S50: c | T50: 4 | U50: m | V50: 4 | W50: J | X50: p | Y50: n | Z50: 90805
A51: 0 | B51: 0 | C51: 0 | D51: 0 | E51: 0 | F51: y | G51: 4000 | H51: 14 | I51: 0.299 | J51: d | K51: 0 | L51: n | M51: n | N51: M | O51: M | P51: n | Q51: p | R51: n | S51: c | T51: 40 | U51: m | V51: 6 | W51: V | X51: a | Y51: n | Z51: 91364
A52: 0 | B52: 0 | C52: 0 | D52: 0 | E52: 0 | F52: y | G52: 2000 | H52: 19 | I52: 0.233 | J52: s | K52: 0 | L52: n | M52: n | N52: F | O52: M | P52: n | Q52: p | R52: y | S52: c | T52: 6 | U52: m | V52: 40 | W52: V | X52: a | Y52: n | Z52: 90065
A53: 0 | B53: 0 | C53: 0 | D53: 0 | E53: 0 | F53: y | G53: 5000 | H53: 63 | I53: 0.965 | J53: u | K53: 0 | L53: n | M53: n | N53: F | O53: M | P53: n | Q53: p | R53: n | S53: c | T53: 0 | U53: m | V53: 14 | W53: W | X53: a | Y53: n | Z53: 94401
A54: 0 | B54: 0 | C54: 0 | D54: 0 | E54: 0 | F54: y | G54: 5000 | H54: 55 | I54: 0.451 | J54: t | K54: 0 | L54: n | M54: n | N54: F | O54: M | P54: n | Q54: p | R54: n | S54: c | T54: 0 | U54: s | V54: 19 | W54: V | X54: p | Y54: n | Z54: 95405
A55: 0 | B55: 0 | C55: 0 | D55: 0 | E55: 0 | F55: y | G55: 3000 | H55: 45 | I55: 0.882 | J55: u | K55: 0 | L55: n | M55: n | N55: M | O55: M | P55: n | Q55: p | R55: n | S55: c | T55: 0 | U55: m | V55: 20 | W55: V | X55: p | Y55: n | Z55: 93710
A56: 0 | B56: 0 | C56: 0 | D56: 0 | E56: 0 | F56: y | G56: 1000 | H56: 42 | I56: 0.488 | J56: h | K56: 0 | L56: n | M56: n | N56: F | O56: S | P56: n | Q56: p | R56: y | S56: c | T56: 0 | U56: m | V56: 14 | W56: V | X56: a | Y56: n | Z56: 93614
A57: 0 | B57: 0 | C57: 0 | D57: 0 | E57: 0 | F57: y | G57: 3000 | H57: 33 | I57: 0.707 | J57: t | K57: 0 | L57: n | M57: n | N57: F | O57: M | P57: n | Q57: p | R57: n | S57: b | T57: 0 | U57: s | V57: 27 | W57: V | X57: a | Y57: e | Z57: 95008
A58: 0 | B58: 0 | C58: 0 | D58: 0 | E58: 0 | F58: y | G58: 5000 | H58: 21 | I58: 0.763 | J58: u | K58: 0 | L58: n | M58: n | N58: M | O58: M | P58: n | Q58: p | R58: n | S58: c | T58: 0 | U58: s | V58: 3 | W58: J | X58: a | Y58: n | Z58: 95662
A59: 0 | B59: 0 | C59: 0 | D59: 0 | E59: 0 | F59: y | G59: 3000 | H59: 28 | I59: 0.657 | J59: s | K59: 0 | L59: n | M59: n | N59: M | O59: S | P59: n | Q59: p | R59: y | S59: c | T59: 0 | U59: m | V59: 3 | W59: V | X59: a | Y59: n | Z59: 94122
A60: 0 | B60: 0 | C60: 0 | D60: 0 | E60: 0 | F60: y | G60: 2000 | H60: 25 | I60: 0.31 | J60: t | K60: 0 | L60: n | M60: n | N60: M | O60: M | P60: n | Q60: p | R60: n | S60: c | T60: 0 | U60: m | V60: 8 | W60: S | X60: p | Y60: n | Z60: 94558
A61: 0 | B61: 0 | C61: 0 | D61: 0 | E61: 0 | F61: y | G61: 4000 | H61: 39 | I61: 0.683 | J61: v | K61: 0 | L61: n | M61: n | N61: M | O61: M | P61: n | Q61: p | R61: n | S61: c | T61: 0 | U61: m | V61: 6 | W61: J | X61: a | Y61: n | Z61: 95547
A62: 0 | B62: 0 | C62: 0 | D62: 0 | E62: 0 | F62: y | G62: 5000 | H62: 31 | I62: 0.202 | J62: t | K62: 0 | L62: n | M62: n | N62: F | O62: S | P62: n | Q62: p | R62: n | S62: c | T62: 8 | U62: s | V62: 7 | W62: V | X62: a | Y62: n | Z62: 94536
A63: 0 | B63: 0 | C63: 0 | D63: 0 | E63: 0 | F63: y | G63: 3000 | H63: 29 | I63: 0.46 | J63: v | K63: 0 | L63: n | M63: n | N63: M | O63: M | P63: n | Q63: p | R63: n | S63: c | T63: 0 | U63: m | V63: 23 | W63: V | X63: a | Y63: n | Z63: 95608
A64: 0 | B64: 0 | C64: 0 | D64: 0 | E64: 0 | F64: y | G64: 5000 | H64: 21 | I64: 0.589 | J64: g | K64: 0 | L64: n | M64: n | N64: M | O64: M | P64: n | Q64: p | R64: n | S64: c | T64: 0 | U64: m | V64: 13 | W64: V | X64: a | Y64: n | Z64: 93711
A65: 0 | B65: 0 | C65: 0 | D65: 0 | E65: 0 | F65: y | G65: 5000 | H65: 33 | I65: 0.568 | J65: s | K65: 0 | L65: n | M65: n | N65: F | O65: M | P65: n | Q65: p | R65: n | S65: c | T65: 0 | U65: m | V65: 11 | W65: V | X65: a | Y65: n | Z65: 94947
A66: 0 | B66: 0 | C66: 0 | D66: 0 | E66: 0 | F66: y | G66: 4000 | H66: 26 | I66: 0.171 | J66: t | K66: 0 | L66: n | M66: n | N66: M | O66: S | P66: n | Q66: p | R66: y | S66: c | T66: 16 | U66: m | V66: 10 | W66: J | X66: p | Y66: n | Z66: 93704
A67: 0 | B67: 0 | C67: 0 | D67: 0 | E67: 0 | F67: y | G67: 5000 | H67: 21 | I67: 0.755 | J67: h | K67: 0 | L67: n | M67: n | N67: M | O67: M | P67: n | Q67: p | R67: n | S67: c | T67: 0 | U67: s | V67: 20 | W67: V | X67: a | Y67: n | Z67: 94560
A68: 0 | B68: 0 | C68: 0 | D68: 0 | E68: 0 | F68: y | G68: 3000 | H68: 37 | I68: 0.886 | J68: v | K68: 0 | L68: n | M68: n | N68: M | O68: M | P68: n | Q68: p | R68: n | S68: c | T68: 0 | U68: s | V68: 4 | W68: P | X68: a | Y68: e | Z68: 94122
A69: 0 | B69: 0 | C69: 0 | D69: 0 | E69: 0 | F69: y | G69: 5000 | H69: 14 | I69: 0.577 | J69: u | K69: 0 | L69: n | M69: n | N69: F | O69: S | P69: n | Q69: p | R69: n | S69: c | T69: 10 | U69: m | V69: 6 | W69: P | X69: a | Y69: n | Z69: 94501
A70: 0 | B70: 0 | C70: 0 | D70: 0 | E70: 0 | F70: y | G70: 5000 | H70: 14 | I70: 0.534 | J70: t | K70: 0 | L70: n | M70: n | N70: F | O70: S | P70: n | Q70: p | R70: n | S70: c | T70: 8 | U70: m | V70: 4 | W70: L | X70: a | Y70: n | Z70: 95136
A71: 0 | B71: 0 | C71: 0 | D71: 0 | E71: 0 | F71: y | G71: 4000 | H71: 13 | I71: 0.492 | J71: u | K71: 0 | L71: n | M71: n | N71: M | O71: M | P71: n | Q71: p | R71: n | S71: c | T71: 4 | U71: m | V71: 30 | W71: V | X71: a | Y71: i | Z71: 94014
A72: 0 | B72: 0 | C72: 0 | D72: 0 | E72: 0 | F72: y | G72: 3000 | H72: 16 | I72: 0.22 | J72: u | K72: 0 | L72: n | M72: n | N72: M | O72: M | P72: n | Q72: p | R72: n | S72: c | T72: 0 | U72: s | V72: 32 | W72: S | X72: a | Y72: n | Z72: 95062
A73: 0 | B73: 0 | C73: 0 | D73: 0 | E73: 0 | F73: y | G73: 5000 | H73: 13 | I73: 0.912 | J73: s | K73: 0 | L73: n | M73: n | N73: F | O73: M | P73: n | Q73: p | R73: n | S73: c | T73: 0 | U73: s | V73: 27 | W73: X | X73: a | Y73: n | Z73: 95678
A74: 0 | B74: 0 | C74: 0 | D74: 0 | E74: 0 | F74: y | G74: 2000 | H74: 12 | I74: 0.542 | J74: j | K74: 0 | L74: n | M74: n | N74: M | O74: M | P74: n | Q74: p | R74: y | S74: c | T74: 0 | U74: m | V74: 32 | W74: W | X74: a | Y74: n | Z74: 95828
A75: 0 | B75: 0 | C75: 0 | D75: 0 | E75: 0 | F75: y | G75: 5000 | H75: 11 | I75: 0.53 | J75: u | K75: 0 | L75: n | M75: n | N75: M | O75: M | P75: n | Q75: p | R75: n | S75: c | T75: 0 | U75: s | V75: 12 | W75: X | X75: a | Y75: n | Z75: 95947
A76: 0 | B76: 0 | C76: 0 | D76: 0 | E76: 0 | F76: y | G76: 1000 | H76: 13 | I76: 0.619 | J76: b | K76: 0 | L76: n | M76: n | N76: F | O76: S | P76: n | Q76: p | R76: y | S76: c | T76: 12 | U76: m | V76: 32 | W76: W | X76: a | Y76: n | Z76: 93662
A77: 0 | B77: 0 | C77: 0 | D77: 0 | E77: 0 | F77: y | G77: 2000 | H77: 11 | I77: 0.293 | J77: v | K77: 0 | L77: n | M77: n | N77: F | O77: M | P77: n | Q77: p | R77: n | S77: c | T77: 0 | U77: m | V77: 4 | W77: V | X77: a | Y77: n | Z77: 95451
A78: 0 | B78: 0 | C78: 0 | D78: 0 | E78: 0 | F78: y | G78: 4000 | H78: 15 | I78: 0.361 | J78: b | K78: 0 | L78: n | M78: n | N78: F | O78: S | P78: n | Q78: p | R78: n | S78: c | T78: 10 | U78: m | V78: 12 | W78: K | X78: v | Y78: n | Z78: 94501
A79: 0 | B79: 0 | C79: 0 | D79: 0 | E79: 0 | F79: y | G79: 5000 | H79: 46 | I79: 0.493 | J79: t | K79: 0 | L79: n | M79: n | N79: M | O79: M | P79: n | Q79: p | R79: n | S79: b | T79: 0 | U79: m | V79: 4 | W79: V | X79: p | Y79: e | Z79: 92025
A80: 0 | B80: 0 | C80: 0 | D80: 0 | E80: 0 | F80: y | G80: 1000 | H80: 40 | I80: 0.562 | J80: t | K80: 0 | L80: n | M80: n | N80: M | O80: M | P80: n | Q80: p | R80: n | S80: c | T80: 20 | U80: s | V80: 4 | W80: P | X80: a | Y80: n | Z80: 93940
A81: 0 | B81: 0 | C81: 0 | D81: 0 | E81: 0 | F81: y | G81: 1000 | H81: 51 | I81: 0.408 | J81: t | K81: 0 | L81: n | M81: n | N81: M | O81: M | P81: n | Q81: p | R81: n | S81: c | T81: 10 | U81: s | V81: 6 | W81: V | X81: a | Y81: n | Z81: 95337
A82: 0 | B82: 0 | C82: 0 | D82: 0 | E82: 0 | F82: y | G82: 1000 | H82: 49 | I82: 0.231 | J82: x | K82: 0 | L82: n | M82: n | N82: M | O82: S | P82: n | Q82: p | R82: n | S82: c | T82: 10 | U82: s | V82: 42 | W82: V | X82: a | Y82: n | Z82: 91001
A83: 0 | B83: 0 | C83: 0 | D83: 0 | E83: 0 | F83: y | G83: 1000 | H83: 41 | I83: 0.181 | J83: s | K83: 0 | L83: n | M83: n | N83: F | O83: M | P83: n | Q83: p | R83: n | S83: p | T83: 0 | U83: s | V83: 3 | W83: V | X83: a | Y83: n | Z83: 94536
A84: 0 | B84: 0 | C84: 0 | D84: 0 | E84: 0 | F84: y | G84: 1000 | H84: 50 | I84: 0.964 | J84: t | K84: 0 | L84: n | M84: n | N84: M | O84: M | P84: n | Q84: p | R84: n | S84: p | T84: 0 | U84: s | V84: 9 | W84: V | X84: a | Y84: n | Z84: 95472
A85: 0 | B85: 0 | C85: 0 | D85: 0 | E85: 0 | F85: y | G85: 1000 | H85: 55 | I85: 0.401 | J85: t | K85: 0 | L85: n | M85: n | N85: M | O85: M | P85: n | Q85: p | R85: n | S85: p | T85: 0 | U85: s | V85: 2 | W85: V | X85: a | Y85: n | Z85: 92633
A86: 0 | B86: 0 | C86: 0 | D86: 0 | E86: 0 | F86: y | G86: 1000 | H86: 55 | I86: 0.788 | J86: t | K86: 0 | L86: n | M86: n | N86: M | O86: M | P86: n | Q86: p | R86: n | S86: p | T86: 0 | U86: s | V86: 29 | W86: V | X86: a | Y86: n | Z86: 95401
A87: 0 | B87: 0 | C87: 0 | D87: 0 | E87: 0 | F87: y | G87: 1000 | H87: 58 | I87: 0.737 | J87: s | K87: 0 | L87: n | M87: n | N87: F | O87: M | P87: n | Q87: p | R87: n | S87: p | T87: 0 | U87: s | V87: 8 | W87: J | X87: a | Y87: e | Z87: 93306
A88: 0 | B88: 0 | C88: 0 | D88: 0 | E88: 0 | F88: y | G88: 1000 | H88: 58 | I88: 0.523 | J88: t | K88: 0 | L88: n | M88: n | N88: M | O88: M | P88: n | Q88: p | R88: n | S88: p | T88: 0 | U88: s | V88: 20 | W88: D | X88: a | Y88: n | Z88: 91732
A89: 0 | B89: 0 | C89: 0 | D89: 0 | E89: 0 | F89: y | G89: 1000 | H89: 21 | I89: 0.554 | J89: t | K89: 0 | L89: n | M89: n | N89: M | O89: S | P89: n | Q89: p | R89: n | S89: c | T89: 10 | U89: s | V89: 6 | W89: V | X89: p | Y89: n | Z89: 91702
A90: 0 | B90: 0 | C90: 0 | D90: 0 | E90: 0 | F90: y | G90: 1000 | H90: 25 | I90: 0.212 | J90: s | K90: 0 | L90: n | M90: n | N90: F | O90: M | P90: n | Q90: p | R90: n | S90: c | T90: 10 | U90: s | V90: 30 | W90: V | X90: a | Y90: n | Z90: 94602
A91: 0 | B91: 0 | C91: 0 | D91: 0 | E91: 0 | F91: y | G91: 1000 | H91: 29 | I91: 0.435 | J91: s | K91: 0 | L91: n | M91: n | N91: F | O91: M | P91: n | Q91: p | R91: n | S91: c | T91: 20 | U91: m | V91: 4 | W91: V | X91: a | Y91: n | Z91: 92130
A92: 0 | B92: 0 | C92: 0 | D92: 0 | E92: 0 | F92: y | G92: 1000 | H92: 31 | I92: 0.405 | J92: s | K92: 0 | L92: n | M92: n | N92: F | O92: M | P92: n | Q92: p | R92: n | S92: c | T92: 16 | U92: s | V92: 6 | W92: S | X92: p | Y92: n | Z92: 90720
A93: 0 | B93: 0 | C93: 0 | D93: 0 | E93: 0 | F93: y | G93: 1000 | H93: 30 | I93: 0.708 | J93: s | K93: 0 | L93: n | M93: n | N93: F | O93: M | P93: n | Q93: p | R93: n | S93: c | T93: 100 | U93: m | V93: 20 | W93: P | X93: a | Y93: n | Z93: 92064
A94: 0 | B94: 0 | C94: 0 | D94: 0 | E94: 0 | F94: y | G94: 1000 | H94: 24 | I94: 0.125 | J94: s | K94: 0 | L94: n | M94: n | N94: F | O94: S | P94: n | Q94: p | R94: n | S94: c | T94: 38 | U94: m | V94: 3 | W94: J | X94: p | Y94: n | Z94: 95482
A95: 0 | B95: 0 | C95: 0 | D95: 0 | E95: 0 | F95: y | G95: 1000 | H95: 38 | I95: 0.553 | J95: t | K95: 0 | L95: n | M95: n | N95: M | O95: S | P95: n | Q95: p | R95: n | S95: c | T95: 18 | U95: s | V95: 33 | W95: V | X95: a | Y95: h | Z95: 91765
A96: 0 | B96: 0 | C96: 0 | D96: 0 | E96: 0 | F96: y | G96: 1000 | H96: 32 | I96: 0.395 | J96: t | K96: 0 | L96: n | M96: n | N96: M | O96: M | P96: n | Q96: p | R96: n | S96: p | T96: 0 | U96: s | V96: 24 | W96: V | X96: a | Y96: n | Z96: 95490
A97: 0 | B97: 0 | C97: 0 | D97: 0 | E97: 0 | F97: y | G97: 1000 | H97: 29 | I97: 0.847 | J97: t | K97: 0 | L97: n | M97: n | N97: M | O97: M | P97: n | Q97: p | R97: n | S97: p | T97: 0 | U97: s | V97: 2 | W97: J | X97: p | Y97: n | Z97: 93111
A98: 0 | B98: 0 | C98: 0 | D98: 0 | E98: 0 | F98: y | G98: 4000 | H98: 31 | I98: 0.832 | J98: t | K98: 0 | L98: n | M98: n | N98: F | O98: M | P98: n | Q98: p | R98: n | S98: p | T98: 0 | U98: m | V98: 64 | W98: V | X98: v | Y98: n | Z98: 95820
A99: 0 | B99: 0 | C99: 0 | D99: 0 | E99: 0 | F99: y | G99: 1000 | H99: 25 | I99: 0.829 | J99: s | K99: 0 | L99: n | M99: n | N99: F | O99: M | P99: n | Q99: p | R99: n | S99: p | T99: 0 | U99: s | V99: 2 | W99: J | X99: a | Y99: n | Z99: 93117
A100: 0 | B100: 0 | C100: 0 | D100: 0 | E100: 0 | F100: y | G100: 1000 | H100: 35 | I100: 0.611 | J100: t | K100: 0 | L100: n | M100: n | N100: M | O100: M | P100: n | Q100: p | R100: n | S100: p | T100: 0 | U100: s | V100: 14 | W100: V | X100: p | Y100: n | Z100: 91765
A101: 0 | B101: 0 | C101: 0 | D101: 0 | E101: 0 | F101: y | G101: 1000 | H101: 36 | I101: 0.594 | J101: s | K101: 0 | L101: n | M101: n | N101: F | O101: M | P101: n | Q101: p | R101: n | S101: p | T101: 0 | U101: s | V101: 0 | W101: V | X101: a | Y101: s | Z101: 95603
A102: 0 | B102: 0 | C102: 0 | D102: 0 | E102: 0 | F102: y | G102: 1000 | H102: 16 | I102: 0.521 | J102: t | K102: 0 | L102: n | M102: n | N102: F | O102: S | P102: n | Q102: p | R102: n | S102: c | T102: 14 | U102: s | V102: 17 | W102: V | X102: p | Y102: e | Z102: 90680
A103: 0 | B103: 0 | C103: 0 | D103: 0 | E103: 0 | F103: y | G103: 1000 | H103: 16 | I103: 0.279 | J103: u | K103: 0 | L103: n | M103: n | N103: F | O103: D | P103: n | Q103: p | R103: n | S103: c | T103: 6 | U103: s | V103: 16 | W103: J | X103: a | Y103: n | Z103: 93101
A104: 0 | B104: 0 | C104: 0 | D104: 0 | E104: 0 | F104: y | G104: 2000 | H104: 18 | I104: 0.329 | J104: t | K104: 0 | L104: n | M104: n | N104: M | O104: M | P104: n | Q104: p | R104: n | S104: p | T104: 0 | U104: s | V104: 14 | W104: V | X104: a | Y104: n | Z104: 93612
A105: 0 | B105: 0 | C105: 0 | D105: 0 | E105: 0 | F105: y | G105: 1000 | H105: 17 | I105: 0.153 | J105: t | K105: 0 | L105: n | M105: n | N105: M | O105: M | P105: n | Q105: p | R105: n | S105: p | T105: 0 | U105: s | V105: 66 | W105: T | X105: a | Y105: e | Z105: 91737
A106: 0 | B106: 0 | C106: 0 | D106: 0 | E106: 0 | F106: y | G106: 1000 | H106: 42 | I106: 0.178 | J106: t | K106: 0 | L106: n | M106: n | N106: M | O106: M | P106: n | Q106: p | R106: y | S106: c | T106: 2 | U106: m | V106: 14 | W106: J | X106: a | Y106: e | Z106: 94530
A107: 0 | B107: 0 | C107: 0 | D107: 0 | E107: 0 | F107: y | G107: 1000 | H107: 54 | I107: 0.812 | J107: u | K107: 0 | L107: n | M107: n | N107: F | O107: W | P107: n | Q107: p | R107: y | S107: c | T107: 4 | U107: s | V107: 4 | W107: V | X107: a | Y107: e | Z107: 90630
A108: 0 | B108: 0 | C108: 0 | D108: 0 | E108: 0 | F108: y | G108: 1000 | H108: 22 | I108: 0.358 | J108: t | K108: 0 | L108: n | M108: n | N108: M | O108: M | P108: n | Q108: p | R108: y | S108: c | T108: 8 | U108: s | V108: 25 | W108: V | X108: a | Y108: n | Z108: 92376
A109: 0 | B109: 0 | C109: 0 | D109: 0 | E109: 0 | F109: y | G109: 1000 | H109: 29 | I109: 0.281 | J109: t | K109: 0 | L109: n | M109: n | N109: M | O109: M | P109: n | Q109: p | R109: y | S109: c | T109: 92 | U109: s | V109: 4 | W109: T | X109: a | Y109: e | Z109: 90806
A110: 0 | B110: 0 | C110: 0 | D110: 0 | E110: 0 | F110: y | G110: 1000 | H110: 34 | I110: 0.162 | J110: u | K110: 0 | L110: n | M110: n | N110: F | O110: S | P110: n | Q110: p | R110: y | S110: p | T110: 0 | U110: s | V110: 14 | W110: J | X110: a | Y110: e | Z110: 93940
A111: 0 | B111: 0 | C111: 0 | D111: 0 | E111: 0 | F111: y | G111: 1000 | H111: 15 | I111: 0.979 | J111: n | K111: 0 | L111: n | M111: n | N111: M | O111: M | P111: n | Q111: p | R111: y | S111: c | T111: 16 | U111: s | V111: 2 | W111: P | X111: a | Y111: n | Z111: 94118
A112: 0 | B112: 0 | C112: 0 | D112: 0 | E112: 0 | F112: y | G112: 1000 | H112: 14 | I112: 0.105 | J112: t | K112: 0 | L112: n | M112: n | N112: M | O112: S | P112: n | Q112: p | R112: y | S112: c | T112: 10 | U112: m | V112: 5 | W112: V | X112: p | Y112: e | Z112: 92040
A113: 0 | B113: 0 | C113: 0 | D113: 0 | E113: 0 | F113: y | G113: 5000 | H113: 13 | I113: 0.559 | J113: s | K113: 0 | L113: n | M113: n | N113: F | O113: M | P113: n | Q113: p | R113: y | S113: c | T113: 20 | U113: s | V113: 11 | W113: T | X113: a | Y113: n | Z113: 93901
A114: 0 | B114: 0 | C114: 0 | D114: 0 | E114: 0 | F114: y | G114: 1000 | H114: 19 | I114: 0.236 | J114: t | K114: 0 | L114: n | M114: n | N114: M | O114: M | P114: n | Q114: p | R114: y | S114: p | T114: 0 | U114: s | V114: 18 | W114: W | X114: v | Y114: n | Z114: 93015
A115: 0 | B115: 0 | C115: 0 | D115: 0 | E115: 0 | F115: y | G115: 4000 | H115: 21 | I115: 0.677 | J115: g | K115: 0 | L115: n | M115: n | N115: M | O115: S | P115: y | Q115: p | R115: n | S115: c | T115: 10 | U115: m | V115: 40 | W115: V | X115: a | Y115: n | Z115: 94538
A116: 0 | B116: 0 | C116: 0 | D116: 0 | E116: 0 | F116: y | G116: 5000 | H116: 31 | I116: 0.247 | J116: u | K116: 0 | L116: n | M116: n | N116: M | O116: M | P116: n | Q116: p | R116: n | S116: p | T116: 0 | U116: m | V116: 16 | W116: V | X116: a | Y116: n | Z116: 95209
A117: 0 | B117: 0 | C117: 0 | D117: 0 | E117: 0 | F117: y | G117: 1000 | H117: 38 | I117: 0.242 | J117: s | K117: 0 | L117: n | M117: n | N117: F | O117: S | P117: n | Q117: o | R117: y | S117: c | T117: 20 | U117: m | V117: 22 | W117: S | X117: a | Y117: n | Z117: 92509
A118: 0 | B118: 0 | C118: 0 | D118: 0 | E118: 0 | F118: y | G118: 4000 | H118: 38 | I118: 0.941 | J118: t | K118: 0 | L118: n | M118: n | N118: F | O118: M | P118: n | Q118: p | R118: n | S118: c | T118: 10 | U118: m | V118: 1 | W118: X | X118: p | Y118: n | Z118: 94598
A119: 0 | B119: 0 | C119: 0 | D119: 0 | E119: 0 | F119: y | G119: 5000 | H119: 21 | I119: 0.294 | J119: t | K119: 0 | L119: n | M119: n | N119: M | O119: S | P119: n | Q119: p | R119: n | S119: c | T119: 170 | U119: m | V119: 1 | W119: G | X119: a | Y119: n | Z119: 91355
A120: 0 | B120: 0 | C120: 0 | D120: 0 | E120: 0 | F120: y | G120: 1000 | H120: 44 | I120: 0.336 | J120: h | K120: 0 | L120: n | M120: n | N120: F | O120: S | P120: n | Q120: p | R120: n | S120: p | T120: 0 | U120: s | V120: 3 | W120: V | X120: a | Y120: n | Z120: 92120
A121: 0 | B121: 0 | C121: 0 | D121: 0 | E121: 0 | F121: y | G121: 5000 | H121: 55 | I121: 0.861 | J121: u | K121: 0 | L121: n | M121: n | N121: M | O121: M | P121: n | Q121: o | R121: n | S121: p | T121: 0 | U121: s | V121: 16 | W121: V | X121: a | Y121: n | Z121: 91764
A122: 0 | B122: 0 | C122: 0 | D122: 0 | E122: 0 | F122: y | G122: 4000 | H122: 55 | I122: 0.231 | J122: c | K122: 0 | L122: n | M122: n | N122: F | O122: M | P122: n | Q122: p | R122: n | S122: p | T122: 0 | U122: m | V122: 20 | W122: S | X122: a | Y122: n | Z122: 92020
A123: 0 | B123: 0 | C123: 0 | D123: 0 | E123: 0 | F123: y | G123: 1000 | H123: 24 | I123: 0.467 | J123: s | K123: 0 | L123: n | M123: n | N123: F | O123: S | P123: n | Q123: p | R123: n | S123: p | T123: 0 | U123: s | V123: 2 | W123: G | X123: a | Y123: n | Z123: 92643
A124: 0 | B124: 0 | C124: 0 | D124: 0 | E124: 0 | F124: y | G124: 3000 | H124: 25 | I124: 0.438 | J124: s | K124: 0 | L124: n | M124: n | N124: M | O124: M | P124: n | Q124: p | R124: y | S124: p | T124: 0 | U124: m | V124: 6 | W124: W | X124: a | Y124: n | Z124: 93645
A125: 0 | B125: 0 | C125: 0 | D125: 0 | E125: 0 | F125: y | G125: 3000 | H125: 25 | I125: 0.479 | J125: t | K125: 0 | L125: n | M125: n | N125: F | O125: S | P125: n | Q125: p | R125: n | S125: p | T125: 0 | U125: m | V125: 6 | W125: V | X125: a | Y125: n | Z125: 92101
A126: 0 | B126: 0 | C126: 0 | D126: 0 | E126: 0 | F126: y | G126: 2000 | H126: 32 | I126: 0.733 | J126: t | K126: 0 | L126: n | M126: n | N126: M | O126: M | P126: n | Q126: p | R126: n | S126: p | T126: 0 | U126: m | V126: 4 | W126: J | X126: a | Y126: n | Z126: 94542
A127: 0 | B127: 0 | C127: 0 | D127: 0 | E127: 0 | F127: y | G127: 1000 | H127: 33 | I127: 0.141 | J127: t | K127: 0 | L127: n | M127: n | N127: F | O127: M | P127: n | Q127: o | R127: n | S127: p | T127: 0 | U127: m | V127: 7 | W127: D | X127: a | Y127: n | Z127: 92067
A128: 0 | B128: 0 | C128: 0 | D128: 0 | E128: 0 | F128: y | G128: 4000 | H128: 32 | I128: 0.116 | J128: v | K128: 0 | L128: n | M128: n | N128: M | O128: M | P128: n | Q128: p | R128: n | S128: p | T128: 0 | U128: m | V128: 16 | W128: V | X128: p | Y128: n | Z128: 92071
A129: 0 | B129: 0 | C129: 0 | D129: 0 | E129: 0 | F129: y | G129: 5000 | H129: 33 | I129: 0.431 | J129: v | K129: 0 | L129: n | M129: n | N129: M | O129: S | P129: n | Q129: p | R129: n | S129: p | T129: 0 | U129: m | V129: 52 | W129: V | X129: a | Y129: e | Z129: 93535
A130: 0 | B130: 0 | C130: 0 | D130: 0 | E130: 0 | F130: y | G130: 5000 | H130: 38 | I130: 0.261 | J130: s | K130: 0 | L130: n | M130: n | N130: M | O130: M | P130: n | Q130: p | R130: y | S130: p | T130: 0 | U130: m | V130: 2 | W130: V | X130: a | Y130: n | Z130: 95204
A131: 0 | B131: 0 | C131: 0 | D131: 0 | E131: 0 | F131: y | G131: 5000 | H131: 34 | I131: 0.89 | J131: v | K131: 0 | L131: n | M131: n | N131: M | O131: M | P131: n | Q131: p | R131: n | S131: p | T131: 0 | U131: m | V131: 1 | W131: P | X131: a | Y131: n | Z131: 95380
A132: 0 | B132: 0 | C132: 0 | D132: 0 | E132: 0 | F132: y | G132: 5000 | H132: 29 | I132: 0.194 | J132: u | K132: 0 | L132: n | M132: n | N132: F | O132: M | P132: n | Q132: p | R132: n | S132: p | T132: 0 | U132: m | V132: 13 | W132: S | X132: p | Y132: n | Z132: 92029
A133: 0 | B133: 0 | C133: 0 | D133: 0 | E133: 0 | F133: y | G133: 5000 | H133: 13 | I133: 0.917 | J133: t | K133: 0 | L133: n | M133: n | N133: F | O133: M | P133: n | Q133: p | R133: n | S133: p | T133: 0 | U133: m | V133: 9 | W133: J | X133: a | Y133: n | Z133: 94018
A134: 0 | B134: 0 | C134: 0 | D134: 0 | E134: 0 | F134: y | G134: 5000 | H134: 19 | I134: 0.924 | J134: a | K134: 0 | L134: n | M134: n | N134: M | O134: M | P134: n | Q134: p | R134: n | S134: p | T134: 0 | U134: m | V134: 10 | W134: S | X134: a | Y134: e | Z134: 96002
A135: 0 | B135: 0 | C135: 0 | D135: 0 | E135: 0 | F135: y | G135: 5000 | H135: 38 | I135: 0.523 | J135: t | K135: 0 | L135: n | M135: n | N135: M | O135: M | P135: n | Q135: p | R135: n | S135: p | T135: 0 | U135: s | V135: 2 | W135: V | X135: a | Y135: e | Z135: 90706
A136: 0 | B136: 0 | C136: 0 | D136: 0 | E136: 0 | F136: y | G136: 2000 | H136: 27 | I136: 0.261 | J136: t | K136: 0 | L136: n | M136: n | N136: M | O136: M | P136: n | Q136: p | R136: y | S136: p | T136: 0 | U136: s | V136: 0 | W136: K | X136: a | Y136: n | Z136: 92687
A137: 0 | B137: 0 | C137: 0 | D137: 0 | E137: 0 | F137: y | G137: 1000 | H137: 48 | I137: 0.122 | J137: t | K137: 0 | L137: n | M137: n | N137: M | O137: M | P137: n | Q137: p | R137: n | S137: p | T137: 0 | U137: m | V137: 5 | W137: J | X137: a | Y137: n | Z137: 92220
A138: 0 | B138: 0 | C138: 0 | D138: 0 | E138: 0 | F138: y | G138: 3000 | H138: 56 | I138: 0.522 | J138: b | K138: 0 | L138: n | M138: n | N138: M | O138: M | P138: n | Q138: p | R138: n | S138: p | T138: 0 | U138: m | V138: 5 | W138: S | X138: a | Y138: n | Z138: 92019
A139: 0 | B139: 0 | C139: 0 | D139: 0 | E139: 0 | F139: y | G139: 5000 | H139: 40 | I139: 0.905 | J139: s | K139: 0 | L139: n | M139: n | N139: M | O139: M | P139: n | Q139: p | R139: n | S139: p | T139: 0 | U139: m | V139: 2 | W139: V | X139: v | Y139: n | Z139: 92677
A140: 0 | B140: 0 | C140: 0 | D140: 0 | E140: 0 | F140: y | G140: 5000 | H140: 28 | I140: 0.428 | J140: w | K140: 0 | L140: n | M140: n | N140: M | O140: M | P140: n | Q140: p | R140: n | S140: c | T140: 6 | U140: m | V140: 5 | W140: V | X140: a | Y140: n | Z140: 94509
A141: 0 | B141: 0 | C141: 0 | D141: 0 | E141: 0 | F141: y | G141: 5000 | H141: 26 | I141: 0.232 | J141: v | K141: 0 | L141: n | M141: n | N141: F | O141: M | P141: n | Q141: p | R141: n | S141: p | T141: 0 | U141: m | V141: 9 | W141: V | X141: a | Y141: e | Z141: 92071
A142: 0 | B142: 0 | C142: 0 | D142: 0 | E142: 0 | F142: y | G142: 4000 | H142: 61 | I142: 0.529 | J142: d | K142: 0 | L142: n | M142: n | N142: F | O142: M | P142: n | Q142: p | R142: y | S142: c | T142: 2 | U142: m | V142: 4 | W142: V | X142: a | Y142: n | Z142: 94523
A143: 0 | B143: 0 | C143: 0 | D143: 0 | E143: 0 | F143: y | G143: 1000 | H143: 64 | I143: 0.622 | J143: t | K143: 0 | L143: n | M143: n | N143: F | O143: M | P143: n | Q143: p | R143: n | S143: p | T143: 0 | U143: m | V143: 6 | W143: J | X143: a | Y143: n | Z143: 95963
A144: 0 | B144: 0 | C144: 0 | D144: 0 | E144: 0 | F144: y | G144: 2000 | H144: 52 | I144: 0.549 | J144: v | K144: 0 | L144: n | M144: n | N144: F | O144: M | P144: n | Q144: p | R144: y | S144: p | T144: 0 | U144: s | V144: 28 | W144: P | X144: a | Y144: n | Z144: 94565
A145: 0 | B145: 0 | C145: 0 | D145: 0 | E145: 0 | F145: y | G145: 5000 | H145: 66 | I145: 0.248 | J145: s | K145: 0 | L145: n | M145: n | N145: F | O145: M | P145: n | Q145: p | R145: y | S145: p | T145: 0 | U145: m | V145: 22 | W145: P | X145: p | Y145: n | Z145: 94061
A146: 0 | B146: 0 | C146: 0 | D146: 0 | E146: 0 | F146: y | G146: 3000 | H146: 58 | I146: 0.357 | J146: u | K146: 0 | L146: n | M146: n | N146: F | O146: S | P146: n | Q146: p | R146: n | S146: p | T146: 0 | U146: m | V146: 40 | W146: P | X146: a | Y146: n | Z146: 91977
A147: 0 | B147: 0 | C147: 0 | D147: 0 | E147: 0 | F147: y | G147: 5000 | H147: 52 | I147: 0.552 | J147: t | K147: 0 | L147: n | M147: n | N147: M | O147: M | P147: n | Q147: p | R147: n | S147: p | T147: 0 | U147: m | V147: 42 | W147: V | X147: a | Y147: n | Z147: 92631
A148: 0 | B148: 0 | C148: 0 | D148: 0 | E148: 0 | F148: y | G148: 1000 | H148: 63 | I148: 0.204 | J148: v | K148: 0 | L148: n | M148: n | N148: F | O148: S | P148: n | Q148: p | R148: n | S148: p | T148: 0 | U148: s | V148: 3 | W148: K | X148: a | Y148: n | Z148: 92627
A149: 0 | B149: 0 | C149: 0 | D149: 0 | E149: 0 | F149: y | G149: 4000 | H149: 61 | I149: 0.373 | J149: t | K149: 0 | L149: n | M149: n | N149: F | O149: M | P149: n | Q149: p | R149: n | S149: p | T149: 0 | U149: m | V149: 20 | W149: P | X149: a | Y149: s | Z149: 91780
A150: 0 | B150: 0 | C150: 0 | D150: 0 | E150: 0 | F150: y | G150: 1000 | H150: 61 | I150: 0.169 | J150: t | K150: 0 | L150: n | M150: n | N150: M | O150: M | P150: n | Q150: p | R150: n | S150: p | T150: 0 | U150: s | V150: 57 | W150: V | X150: a | Y150: n | Z150: 91042
A151: 0 | B151: 0 | C151: 0 | D151: 0 | E151: 0 | F151: y | G151: 5000 | H151: 46 | I151: 0.356 | J151: v | K151: 0 | L151: n | M151: n | N151: F | O151: M | P151: n | Q151: p | R151: n | S151: p | T151: 0 | U151: m | V151: 14 | W151: V | X151: a | Y151: n | Z151: 91367
A152: 0 | B152: 0 | C152: 0 | D152: 0 | E152: 0 | F152: y | G152: 5000 | H152: 51 | I152: 0.397 | J152: u | K152: 0 | L152: n | M152: n | N152: F | O152: W | P152: n | Q152: p | R152: n | S152: p | T152: 0 | U152: m | V152: 61 | W152: V | X152: a | Y152: n | Z152: 90274
A153: 0 | B153: 0 | C153: 0 | D153: 0 | E153: 0 | F153: y | G153: 3000 | H153: 26 | I153: 0.719 | J153: v | K153: 0 | L153: n | M153: n | N153: M | O153: M | P153: n | Q153: p | R153: n | S153: c | T153: 14 | U153: m | V153: 15 | W153: V | X153: a | Y153: e | Z153: 95452
A154: 0 | B154: 0 | C154: 0 | D154: 0 | E154: 0 | F154: y | G154: 5000 | H154: 31 | I154: 0.203 | J154: c | K154: 0 | L154: n | M154: n | N154: F | O154: S | P154: n | Q154: p | R154: n | S154: p | T154: 0 | U154: m | V154: 7 | W154: V | X154: a | Y154: e | Z154: 94041
A155: 0 | B155: 0 | C155: 0 | D155: 0 | E155: 0 | F155: y | G155: 5000 | H155: 33 | I155: 0.461 | J155: i | K155: 0 | L155: n | M155: n | N155: M | O155: S | P155: n | Q155: p | R155: n | S155: p | T155: 0 | U155: m | V155: 33 | W155: S | X155: p | Y155: n | Z155: 95120
A156: 0 | B156: 0 | C156: 0 | D156: 0 | E156: 0 | F156: y | G156: 4000 | H156: 29 | I156: 0.953 | J156: s | K156: 0 | L156: n | M156: n | N156: M | O156: S | P156: n | Q156: p | R156: n | S156: p | T156: 0 | U156: m | V156: 17 | W156: G | X156: a | Y156: n | Z156: 95831
A157: 0 | B157: 0 | C157: 0 | D157: 0 | E157: 0 | F157: y | G157: 5000 | H157: 24 | I157: 0.217 | J157: s | K157: 0 | L157: n | M157: n | N157: F | O157: S | P157: n | Q157: p | R157: n | S157: p | T157: 0 | U157: m | V157: 13 | W157: J | X157: a | Y157: n | Z157: 94306
A158: 0 | B158: 0 | C158: 0 | D158: 0 | E158: 0 | F158: y | G158: 1000 | H158: 36 | I158: 0.586 | J158: v | K158: 0 | L158: n | M158: n | N158: F | O158: M | P158: n | Q158: p | R158: n | S158: p | T158: 0 | U158: s | V158: 54 | W158: V | X158: a | Y158: n | Z158: 90638
A159: 0 | B159: 0 | C159: 0 | D159: 0 | E159: 0 | F159: y | G159: 3000 | H159: 23 | I159: 0.216 | J159: s | K159: 0 | L159: n | M159: n | N159: F | O159: M | P159: n | Q159: p | R159: n | S159: p | T159: 0 | U159: s | V159: 2 | W159: P | X159: a | Y159: n | Z159: 91766
A160: 0 | B160: 0 | C160: 0 | D160: 0 | E160: 0 | F160: y | G160: 1000 | H160: 30 | I160: 0.386 | J160: b | K160: 0 | L160: n | M160: n | N160: M | O160: M | P160: n | Q160: p | R160: n | S160: p | T160: 0 | U160: m | V160: 35 | W160: J | X160: a | Y160: e | Z160: 91789
A161: 0 | B161: 0 | C161: 0 | D161: 0 | E161: 0 | F161: y | G161: 4000 | H161: 34 | I161: 0.165 | J161: j | K161: 0 | L161: y | M161: n | N161: F | O161: M | P161: n | Q161: p | R161: n | S161: p | T161: 0 | U161: m | V161: 10 | W161: S | X161: a | Y161: n | Z161: 91320
A162: 0 | B162: 0 | C162: 0 | D162: 0 | E162: 0 | F162: y | G162: 4000 | H162: 11 | I162: 0.742 | J162: s | K162: 0 | L162: n | M162: n | N162: M | O162: M | P162: n | Q162: p | R162: n | S162: p | T162: 0 | U162: m | V162: 3 | W162: V | X162: a | Y162: s | Z162: 94116
A163: 0 | B163: 0 | C163: 0 | D163: 0 | E163: 0 | F163: y | G163: 1000 | H163: 47 | I163: 0.459 | J163: s | K163: 0 | L163: n | M163: n | N163: M | O163: M | P163: n | Q163: p | R163: n | S163: c | T163: 20 | U163: m | V163: 36 | W163: V | X163: a | Y163: e | Z163: 90003
A164: 0 | B164: 0 | C164: 0 | D164: 0 | E164: 0 | F164: y | G164: 5000 | H164: 42 | I164: 0.897 | J164: t | K164: 0 | L164: n | M164: n | N164: M | O164: M | P164: n | Q164: p | R164: n | S164: c | T164: 4 | U164: m | V164: 20 | W164: V | X164: a | Y164: h | Z164: 91107
A165: 0 | B165: 0 | C165: 0 | D165: 0 | E165: 0 | F165: y | G165: 3000 | H165: 60 | I165: 0.802 | J165: t | K165: 0 | L165: n | M165: n | N165: F | O165: S | P165: n | Q165: p | R165: n | S165: p | T165: 0 | U165: s | V165: 2 | W165: J | X165: a | Y165: e | Z165: 90024
A166: 0 | B166: 0 | C166: 0 | D166: 0 | E166: 0 | F166: y | G166: 2000 | H166: 52 | I166: 0.365 | J166: u | K166: 0 | L166: n | M166: n | N166: F | O166: S | P166: n | Q166: p | R166: n | S166: p | T166: 0 | U166: s | V166: 15 | W166: G | X166: a | Y166: e | Z166: 90403
A167: 0 | B167: 0 | C167: 0 | D167: 0 | E167: 0 | F167: y | G167: 3000 | H167: 55 | I167: 0.622 | J167: t | K167: 0 | L167: n | M167: n | N167: M | O167: M | P167: n | Q167: p | R167: n | S167: p | T167: 0 | U167: m | V167: 16 | W167: J | X167: a | Y167: n | Z167: 91770
A168: 0 | B168: 0 | C168: 0 | D168: 0 | E168: 0 | F168: y | G168: 1000 | H168: 52 | I168: 0.587 | J168: t | K168: 0 | L168: n | M168: n | N168: M | O168: M | P168: n | Q168: p | R168: n | S168: p | T168: 0 | U168: m | V168: 15 | W168: A | X168: a | Y168: n | Z168: 90620
A169: 0 | B169: 0 | C169: 0 | D169: 0 | E169: 0 | F169: y | G169: 4000 | H169: 43 | I169: 0.652 | J169: p | K169: 0 | L169: n | M169: n | N169: M | O169: M | P169: n | Q169: p | R169: n | S169: p | T169: 0 | U169: m | V169: 14 | W169: J | X169: a | Y169: n | Z169: 92701
A170: 0 | B170: 0 | C170: 0 | D170: 0 | E170: 0 | F170: y | G170: 1000 | H170: 57 | I170: 0.946 | J170: u | K170: 0 | L170: n | M170: n | N170: M | O170: M | P170: n | Q170: p | R170: n | S170: p | T170: 0 | U170: m | V170: 8 | W170: W | X170: a | Y170: n | Z170: 91010
A171: 0 | B171: 0 | C171: 0 | D171: 0 | E171: 0 | F171: y | G171: 5000 | H171: 30 | I171: 0.512 | J171: n | K171: 0 | L171: n | M171: n | N171: F | O171: S | P171: n | Q171: p | R171: y | S171: c | T171: 70 | U171: s | V171: 2 | W171: D | X171: a | Y171: s | Z171: 92686
A172: 0 | B172: 0 | C172: 0 | D172: 0 | E172: 0 | F172: y | G172: 4000 | H172: 22 | I172: 0.712 | J172: t | K172: 0 | L172: n | M172: n | N172: F | O172: M | P172: n | Q172: p | R172: y | S172: c | T172: 20 | U172: m | V172: 1 | W172: J | X172: a | Y172: n | Z172: 92376
A173: 0 | B173: 0 | C173: 0 | D173: 0 | E173: 0 | F173: y | G173: 4000 | H173: 31 | I173: 0.908 | J173: u | K173: 0 | L173: n | M173: n | N173: F | O173: S | P173: n | Q173: p | R173: n | S173: c | T173: 28 | U173: m | V173: 24 | W173: J | X173: a | Y173: n | Z173: 90035
A174: 0 | B174: 0 | C174: 0 | D174: 0 | E174: 0 | F174: y | G174: 5000 | H174: 22 | I174: 0.742 | J174: s | K174: 0 | L174: n | M174: n | N174: F | O174: S | P174: n | Q174: p | R174: n | S174: c | T174: 100 | U174: s | V174: 21 | W174: J | X174: a | Y174: e | Z174: 91723
A175: 0 | B175: 0 | C175: 0 | D175: 0 | E175: 0 | F175: y | G175: 4000 | H175: 24 | I175: 0.726 | J175: t | K175: 0 | L175: n | M175: n | N175: F | O175: S | P175: n | Q175: p | R175: n | S175: c | T175: 14 | U175: s | V175: 15 | W175: V | X175: a | Y175: n | Z175: 90042
A176: 0 | B176: 0 | C176: 0 | D176: 0 | E176: 0 | F176: y | G176: 5000 | H176: 20 | I176: 0.111 | J176: t | K176: 0 | L176: n | M176: y | N176: F | O176: M | P176: n | Q176: p | R176: n | S176: c | T176: 2 | U176: m | V176: 14 | W176: S | X176: a | Y176: n | Z176: 91745
A177: 0 | B177: 0 | C177: 0 | D177: 0 | E177: 0 | F177: y | G177: 5000 | H177: 24 | I177: 0.11 | J177: t | K177: 0 | L177: n | M177: y | N177: M | O177: M | P177: n | Q177: p | R177: n | S177: c | T177: 2 | U177: m | V177: 10 | W177: G | X177: v | Y177: n | Z177: 90701
A178: 0 | B178: 0 | C178: 0 | D178: 0 | E178: 0 | F178: y | G178: 5000 | H178: 23 | I178: 0.746 | J178: s | K178: 0 | L178: n | M178: n | N178: M | O178: M | P178: n | Q178: p | R178: n | S178: c | T178: 26 | U178: m | V178: 9 | W178: S | X178: a | Y178: n | Z178: 90255
A179: 0 | B179: 0 | C179: 0 | D179: 0 | E179: 0 | F179: y | G179: 5000 | H179: 20 | I179: 0.736 | J179: u | K179: 0 | L179: n | M179: n | N179: F | O179: M | P179: n | Q179: p | R179: n | S179: c | T179: 22 | U179: m | V179: 5 | W179: V | X179: a | Y179: n | Z179: 92677
A180: 0 | B180: 0 | C180: 0 | D180: 0 | E180: 0 | F180: y | G180: 3000 | H180: 34 | I180: 0.828 | J180: t | K180: 0 | L180: n | M180: n | N180: F | O180: S | P180: n | Q180: p | R180: n | S180: c | T180: 2 | U180: s | V180: 38 | W180: V | X180: a | Y180: n | Z180: 90631
A181: 0 | B181: 0 | C181: 0 | D181: 0 | E181: 0 | F181: y | G181: 4000 | H181: 20 | I181: 0.107 | J181: s | K181: 0 | L181: n | M181: n | N181: F | O181: S | P181: n | Q181: p | R181: n | S181: c | T181: 6 | U181: s | V181: 3 | W181: V | X181: a | Y181: n | Z181: 92108
A182: 0 | B182: 0 | C182: 0 | D182: 0 | E182: 0 | F182: y | G182: 2000 | H182: 27 | I182: 0.597 | J182: t | K182: 0 | L182: n | M182: n | N182: M | O182: S | P182: n | Q182: p | R182: n | S182: b | T182: 0 | U182: m | V182: 6 | W182: V | X182: a | Y182: n | Z182: 91001
A183: 0 | B183: 0 | C183: 0 | D183: 0 | E183: 0 | F183: y | G183: 3000 | H183: 34 | I183: 0.729 | J183: s | K183: 0 | L183: n | M183: n | N183: F | O183: M | P183: n | Q183: p | R183: y | S183: p | T183: 0 | U183: m | V183: 23 | W183: J | X183: a | Y183: n | Z183: 92075
A184: 0 | B184: 0 | C184: 0 | D184: 0 | E184: 0 | F184: y | G184: 5000 | H184: 22 | I184: 0.634 | J184: t | K184: 0 | L184: n | M184: n | N184: F | O184: M | P184: n | Q184: p | R184: n | S184: p | T184: 0 | U184: m | V184: 20 | W184: V | X184: a | Y184: e | Z184: 91311
A185: 0 | B185: 0 | C185: 0 | D185: 0 | E185: 0 | F185: y | G185: 2000 | H185: 23 | I185: 0.549 | J185: t | K185: 0 | L185: n | M185: n | N185: M | O185: M | P185: n | Q185: p | R185: n | S185: p | T185: 0 | U185: m | V185: 19 | W185: M | X185: a | Y185: e | Z185: 91367
A186: 0 | B186: 0 | C186: 0 | D186: 0 | E186: 0 | F186: y | G186: 4000 | H186: 33 | I186: 0.127 | J186: s | K186: 0 | L186: n | M186: n | N186: M | O186: M | P186: n | Q186: p | R186: y | S186: p | T186: 0 | U186: s | V186: 17 | W186: J | X186: a | Y186: n | Z186: 93560
A187: 0 | B187: 0 | C187: 0 | D187: 0 | E187: 0 | F187: y | G187: 1000 | H187: 21 | I187: 0.94 | J187: w | K187: 0 | L187: n | M187: n | N187: F | O187: M | P187: n | Q187: p | R187: y | S187: p | T187: 0 | U187: s | V187: 16 | W187: V | X187: a | Y187: e | Z187: 92708
A188: 0 | B188: 0 | C188: 0 | D188: 0 | E188: 0 | F188: y | G188: 5000 | H188: 34 | I188: 0.714 | J188: t | K188: 0 | L188: n | M188: n | N188: F | O188: M | P188: n | Q188: p | R188: n | S188: p | T188: 0 | U188: m | V188: 14 | W188: V | X188: v | Y188: e | Z188: 91367
A189: 0 | B189: 0 | C189: 0 | D189: 0 | E189: 0 | F189: y | G189: 2000 | H189: 21 | I189: 0.391 | J189: t | K189: 0 | L189: n | M189: n | N189: M | O189: M | P189: n | Q189: p | R189: n | S189: p | T189: 0 | U189: m | V189: 4 | W189: V | X189: a | Y189: n | Z189: 93546
A190: 0 | B190: 0 | C190: 0 | D190: 0 | E190: 0 | F190: y | G190: 3000 | H190: 17 | I190: 0.861 | J190: v | K190: 0 | L190: n | M190: n | N190: F | O190: S | P190: n | Q190: p | R190: n | S190: c | T190: 50 | U190: m | V190: 34 | W190: M | X190: a | Y190: e | Z190: 90019
A191: 0 | B191: 0 | C191: 0 | D191: 0 | E191: 0 | F191: y | G191: 5000 | H191: 17 | I191: 0.108 | J191: t | K191: 0 | L191: n | M191: n | N191: F | O191: M | P191: n | Q191: p | R191: n | S191: c | T191: 20 | U191: m | V191: 18 | W191: V | X191: a | Y191: n | Z191: 90638
A192: 0 | B192: 0 | C192: 0 | D192: 0 | E192: 0 | F192: y | G192: 5000 | H192: 14 | I192: 0.342 | J192: v | K192: 0 | L192: n | M192: n | N192: M | O192: S | P192: n | Q192: p | R192: n | S192: c | T192: 16 | U192: m | V192: 3 | W192: V | X192: a | Y192: n | Z192: 91790
A193: 0 | B193: 0 | C193: 0 | D193: 0 | E193: 0 | F193: y | G193: 5000 | H193: 13 | I193: 0.376 | J193: a | K193: 0 | L193: n | M193: n | N193: F | O193: M | P193: n | Q193: p | R193: n | S193: p | T193: 0 | U193: m | V193: 3 | W193: V | X193: a | Y193: n | Z193: 93312
A194: 0 | B194: 0 | C194: 0 | D194: 0 | E194: 0 | F194: y | G194: 1000 | H194: 49 | I194: 0.624 | J194: s | K194: 1 | L194: n | M194: n | N194: F | O194: S | P194: n | Q194: p | R194: n | S194: p | T194: 0 | U194: s | V194: 7 | W194: P | X194: a | Y194: n | Z194: 91335
A195: 0 | B195: 0 | C195: 0 | D195: 0 | E195: 0 | F195: y | G195: 1000 | H195: 40 | I195: 0.958 | J195: n | K195: 1 | L195: n | M195: n | N195: F | O195: M | P195: n | Q195: p | R195: n | S195: p | T195: 0 | U195: s | V195: 0 | W195: V | X195: v | Y195: n | Z195: 92373
A196: 0 | B196: 0 | C196: 0 | D196: 0 | E196: 0 | F196: y | G196: 5000 | H196: 28 | I196: 0.758 | J196: v | K196: 1 | L196: n | M196: n | N196: M | O196: M | P196: n | Q196: p | R196: n | S196: c | T196: 90 | U196: m | V196: 29 | W196: Q | X196: a | Y196: n | Z196: 94506
A197: 0 | B197: 0 | C197: 0 | D197: 0 | E197: 0 | F197: y | G197: 2000 | H197: 27 | I197: 0.207 | J197: s | K197: 1 | L197: n | M197: n | N197: F | O197: M | P197: n | Q197: p | R197: n | S197: p | T197: 0 | U197: m | V197: 73 | W197: T | X197: a | Y197: n | Z197: 93060
A198: 0 | B198: 0 | C198: 0 | D198: 0 | E198: 0 | F198: y | G198: 2000 | H198: 34 | I198: 0.429 | J198: s | K198: 6 | L198: n | M198: n | N198: M | O198: M | P198: n | Q198: p | R198: n | S198: p | T198: 0 | U198: m | V198: 8 | W198: J | X198: a | Y198: n | Z198: 92630
A199: 0 | B199: 0 | C199: 0 | D199: 0 | E199: 0 | F199: y | G199: 5000 | H199: 27 | I199: 0.36 | J199: t | K199: 1 | L199: n | M199: n | N199: F | O199: S | P199: n | Q199: p | R199: n | S199: p | T199: 0 | U199: m | V199: 8 | W199: S | X199: p | Y199: n | Z199: 92109
A200: 0 | B200: 0 | C200: 0 | D200: 0 | E200: 0 | F200: y | G200: 2000 | H200: 46 | I200: 0.944 | J200: o | K200: 1 | L200: n | M200: n | N200: M | O200: M | P200: n | Q200: p | R200: n | S200: c | T200: 8 | U200: m | V200: 12 | W200: V | X200: a | Y200: n | Z200: 92667
A201: 0 | B201: 0 | C201: 0 | D201: 0 | E201: 0 | F201: y | G201: 5000 | H201: 24 | I201: 0.424 | J201: t | K201: 1 | L201: n | M201: n | N201: M | O201: M | P201: n | Q201: p | R201: n | S201: c | T201: 4 | U201: m | V201: 12 | W201: V | X201: a | Y201: n | Z201: 90049
... 2049 more rows

Sheet Интернет

Sheet ОВДП
A1: ОВДП, які знаходяться в обігу, за сумою основного боргу у 2014
F3: млн. грн.
A4: Дата | B4: Усього | C4: Облігації, які знаходяться у власності
C5: НБУ | D5: Банків | E5: Інших | F5: Нерезидентів
A6: на 03.01 | B6: 252377.6636 | C6: 147053.5984 | D6: 81047.64566 | E6: 12306.46714 | F6: 11969.95237
A7: на 08.01 | B7: 252369.0311 | C7: 147053.5984 | D7: 81048.06129 | E7: 12297.41906 | F7: 11969.95237
A8: на 09.01 | B8: 252367.1128 | C8: 147053.5984 | D8: 81010.41555 | E8: 12333.14648 | F8: 11969.95237
A9: на 10.01 | B9: 252367.9761 | C9: 147053.5984 | D9: 81020.3116 | E9: 12324.1137 | F9: 11969.9524
A10: на 11.01 | B10: 252366.7771 | C10: 147053.5984 | D10: 80959.82406 | E10: 12383.40227 | F10: 11969.95237
A11: на 13.01 | B11: 252366.7771 | C11: 147053.5984 | D11: 80915.82406 | E11: 12427.40227 | F11: 11969.95237
A12: на 14.01 | B12: 252369.99 | C12: 147053.6 | D12: 81024.66 | E12: 12321.78 | F12: 11969.95
A13: на 15.01 | B13: 252370.6137 | C13: 147053.5984 | D13: 80596.3212 | E13: 12750.7418 | F13: 11969.9524
A14: на 16.01 | B14: 253518.4156 | C14: 147053.5984 | D14: 81662.1587 | E14: 12832.7061 | F14: 11969.9524
A15: на 17.01 | B15: 253517.9839 | C15: 147053.5984 | D15: 81656.45152 | E15: 12837.98164 | F15: 11969.95237
A16: на 20.01 | B16: 253517.3605 | C16: 147053.5984 | D16: 81581.735 | E16: 12832.1447 | F16: 12049.8824
A17: на 21.01 | B17: 253516.4973 | C17: 149553.5984 | D17: 79027.26497 | E17: 12885.75152 | F17: 12049.88237
A18: на 22.01 | B18: 253852.212 | C18: 149553.5984 | D18: 79055.21323 | E18: 13121.58104 | F18: 12121.81937
A19: на 23.01 | B19: 252047.805 | C19: 148553.5984 | D19: 78307.31088 | E19: 13065.07634 | F19: 12121.81937
A20: на 24.01 | B20: 255527.3889 | C20: 148553.5984 | D20: 81748.41439 | E20: 13103.55674 | F20: 12121.81937
A21: на 27.01 | B21: 255529.6909 | C21: 148553.5984 | D21: 81754.148 | E21: 13100.12509 | F21: 12121.81937
A22: на 28.01 | B22: 255523.4561 | C22: 148553.5984 | D22: 81670.3476 | E22: 13088.92509 | F22: 12210.58497
A23: на 29.01 | B23: 255499.1345 | C23: 148579.5984 | D23: 81600.02602 | E23: 13108.92509 | F23: 12210.58497
A24: на 30.01 | B24: 253075.1782 | C24: 148562.5454 | D24: 79348.47898 | E24: 12953.56881 | F24: 12210.58497
A25: на 31.01 | B25: 253073.55 | C25: 148781 | D25: 79117.06 | E25: 12964.91 | F25: 12210.58
A26: на 03.02 | B26: 253094.6561 | C26: 148780.9954 | D26: 79075.54153 | E26: 13027.53416 | F26: 12210.58497
A27: на 04.02 | B27: 253093.7928 | C27: 148780.9954 | D27: 79078.43763 | E27: 13023.77478 | F27: 12210.58497
A28: на 05.02 | B28: 253094.7999 | C28: 148780.9954 | D28: 79004.76077 | E28: 13009.6932 | F28: 12299.35057
A29: на 06.02 | B29: 250559.5639 | C29: 146930.9954 | D29: 78678.59862 | E29: 12650.61933 | F29: 12299.35057
A30: на 07.02 | B30: =C30+D30+E30+F30 -> 254791.2369 | C30: 147697.9814 | D30: 81193.61977 | E30: 12750.3425 | F30: 13149.29319
A31: на 10.02 | B31: 253730.5678 | C31: 147697.9814 | D31: 80325.21752 | E31: 12771.96861 | F31: 12935.40026
A32: на 11.02 | B32: 253881.9051 | C32: 147697.9814 | D32: 80449.2425 | E32: 12769.54056 | F32: 12965.14065
A33: на 12.02 | B33: 253869.0484 | C33: 147697.9814 | D33: 80389.26461 | E33: 12819.63579 | F33: 12962.16662
A34: на 13.02 | B34: 252756.0933 | C34: 148447.9814 | D34: 80116.43496 | E34: 11314.34045 | F34: 12877.33647
A35: на 14.02 | B35: 254870.3106 | C35: 149670.3254 | D35: 80977.31904 | E35: 11328.39626 | F35: 12894.26991
A36: на 17.02 | B36: 265993.3103 | C36: 160736.7254 | D36: 80626.42528 | E36: 11724.65105 | F36: 12905.50858
A37: на 18.02 | B37: 266023.2282 | C37: 160736.7254 | D37: 80622.3618 | E37: 11752.42774 | F37: 12911.71327
A38: на 19.02 | B38: 266260.1172 | C38: 160736.7254 | D38: 81065.96667 | E38: 11497.59624 | F38: 12959.82883
A39: на 20.02 | B39: 267423.4586 | C39: 161526.2014 | D39: 81312.51693 | E39: 11509.83216 | F39: 13074.90815
A40: на 21.02 | B40: 267723.5869 | C40: 161526.2014 | D40: 81497.19671 | E40: 11563.46799 | F40: 13136.72085
A41: на 24.02 | B41: 268091.1773 | C41: 161522.2014 | D41: 81688.14319 | E41: 11543.33525 | F41: 13337.49745
A42: на 25.02 | B42: 267832.8101 | C42: 161468.5681 | D42: 81705.1898 | E42: 11412.43651 | F42: 13246.61574
A43: на 26.02 | B43: 269457.9364 | C43: 161450.2093 | D43: 83046.46236 | E43: 11396.20715 | F43: 13565.05763
A44: на 27.02 | B44: 271477.1732 | C44: 161450.2093 | D44: 84938.82213 | E44: 11416.55095 | F44: 13671.59088
A45: на 28.02 | B45: 275653.7736 | C45: 162950.2093 | D45: 86988.42846 | E45: 11495.19144 | F45: 14219.94441
A46: на 03.03 | B46: 274021.0156 | C46: 166450.2093 | D46: 82227.50301 | E46: 11459.23129 | F46: 13884.07202
A47: на 04.03 | B47: 275695.3981 | C47: 166450.2093 | D47: 83668.35238 | E47: 11349.75075 | F47: 14227.08565
A48: на 05.03 | B48: 274159.7686 | C48: 167947.2093 | D48: 80959.84273 | E48: 11339.72837 | F48: 13912.98819
A49: на 06.03 | B49: 272922.1274 | C49: 167947.2093 | D49: 80061.54641 | E49: 11322.55877 | F49: 13590.81292
A50: на 07.03 | B50: 273678 | C50: 168947.2093 | D50: 79880.39818 | E50: 11330.99199 | F50: 13519.40053
A51: на 11.03 | B51: 272826.9224 | C51: 170047.2093 | D51: 78132.53956 | E51: 11305.71866 | F51: 13341.45489
A52: на 12.03 | B52: 273172.7796 | C52: 170047.2093 | D52: 78394.42889 | E52: 11317.57169 | F52: 13413.5697
A53: на 13.03 | B53: 272023.4126 | C53: 169643.4293 | D53: 77874.53077 | E53: 11114.17019 | F53: 13391.28233
A54: на 14.03 | B54: 273121.2253 | C54: 169690.8088 | D54: 78608.09204 | E54: 11204.39557 | F54: 13617.92889
A55: на 17.03 | B55: 273823.5906 | C55: 169691.4328 | D55: 79138.50245 | E55: 11229.62368 | F55: 13764.03162
A56: на 18.03 | B56: 274707.5225 | C56: 169692.2133 | D56: 79876.21619 | E56: 11192.31588 | F56: 13946.77711
A57: на 19.03 | B57: 275855.1433 | C57: 169693.2283 | D57: 80755.79826 | E57: 11221.68853 | F57: 14184.4282
A58: на 20.03 | B58: 275163.1132 | C58: 169693.0183 | D58: 80381.81881 | E58: 10953.01711 | F58: 14135.25901
A59: на 21.03 | B59: 276236.2302 | C59: 169693.9753 | D59: 81183.76613 | E59: 10999.15873 | F59: 14359.33003
A60: на 24.03 | B60: 276730.89 | C60: 169694.41 | D60: 81375.67 | E60: 11199.27 | F60: 14461.53
A61: на 25.03 | B61: 277746.49 | C61: 169695.31 | D61: 82144.81 | E61: 11234.46 | F61: 14671.91
A62: на 26.03 | B62: 278875.9216 | C62: 169696.3083 | D62: 83083.86626 | E62: 11295.92878 | F62: 14799.81832
A63: на 27.03 | B63: 277895.5087 | C63: 169441.2898 | D63: 82530.92894 | E63: 11011.69671 | F63: 14911.59325
A64: на 28.03 | B64: 278900.3007 | C64: 169442.1803 | D64: 83258.60314 | E64: 11081.20425 | F64: 15118.31302
A65: на 31.03 | B65: 279490.6017 | C65: 169442.7023 | D65: 83765.71229 | E65: 11042.69748 | F65: 15239.48958
A66: на 01.04 | B66: 280888.4469 | C66: 170282.9198 | D66: 84303.38388 | E66: 11012.16342 | F66: 15289.97982
A67: на 02.04 | B67: 281499.7532 | C67: 170683.4603 | D67: 84376.7445 | E67: 11024.0975 | F67: 15415.4509
A68: на 03.04 | B68: 282547.679 | C68: 170684.1373 | D68: 85240.60965 | E68: 11050.32305 | F68: 15572.60905
A69: на 04.04 | B69: 282442.0327 | C69: 170684.0453 | D69: 85168.92109 | E69: 11037.81406 | F69: 15551.25226
A70: на 07.04 | B70: 284578.5667 | C70: 170685.9348 | D70: 86784.94587 | E70: 11117.80478 | F70: 15989.88122
A71: на 08.04 | B71: 284855.5342 | C71: 170686.1841 | D71: 86926.995 | E71: 11194.59343 | F71: 16047.7616
A72: на 09.04 | B72: 285293.5728 | C72: 170686.5701 | D72: 87653.43636 | E72: 10756.25871 | F72: 16197.30759
A73: на 10.04 | B73: 286641.3297 | C73: 170687.3214 | D73: 88805.0696 | E73: 10776.47 | F73: 16372.4688
A74: на 11.04 | B74: 290823.6459 | C74: 170691.0188 | D74: 91949.17459 | E74: 10948.89121 | F74: 17234.56133
A75: на 14.04 | B75: 290553.3866 | C75: 170690.7749 | D75: 91744.97254 | E75: 10939.94 | F75: 17177.69914
A76: на 15.04 | B76: 292860.5225 | C76: 170692.8147 | D76: 93518.93041 | E76: 10995.4678 | F76: 17653.30952
A77: на 16.04 | B77: 289512.509 | C77: 170689.8571 | D77: 90941.00318 | E77: 10917.94723 | F77: 16963.70146
A78: на 17.04 | B78: 284504.1681 | C78: 170684.9098 | D78: 87227.81375 | E78: 10758.56129 | F78: 15832.88321
A79: на 18.04 | B79: 283692.3287 | C79: 170684.1897 | D79: 86558.57044 | E79: 10747.75364 | F79: 15701.81493
A80: на 22.04 | B80: =C80+D80+E80+F80 -> 283553.6549 | C80: 172147.2032 | D80: 84984.35711 | E80: 10749.2117 | F80: 15672.88297
A81: на 23.04 | B81: =C81+D81+E81+F81 -> 283442.2418 | C81: 172147.3036 | D81: 84787.32085 | E81: 10811.21873 | F81: 15696.3986
A82: на 24.04 | B82: =C82+D82+E82+F82 -> 287622.4725 | C82: 172148.6306 | D82: 88771.52972 | E82: 10690.96335 | F82: 16011.34886
A83: на 25.04 | B83: =C83+D83+E83+F83 -> 286979.7485 | C83: 173684.8525 | D83: 86752.9736 | E83: 10680.76955 | F83: 15861.15284
A84: на 28.04 | B84: 286515.42 | C84: 173684.85 | D84: 86213.65 | E84: 10757.39 | F84: 15859.53
A85: на 29.04 | B85: =C85+D85+E85+F85 -> 286371.7282 | C85: 175187.8525 | D85: 84577.97767 | E85: 10767.47417 | F85: 15838.42383
A86: на 30.04 | B86: =C86+D86+E86+F86 -> 288256.721 | C86: 175188.1067 | D86: 86383.7425 | E86: 10786.84564 | F86: 15898.02612
A87: на 05.05 | B87: 286800.27 | C87: 174809.87 | D87: 85648.68 | E87: 10451.32 | F87: 15890.4
A88: на 06.05 | B88: 286793.94 | C88: 174809.87 | D88: 85644.45 | E88: 10451.08 | F88: 15888.54
A89: на 07.05 | B89: =C89+D89+E89+F89 -> 287328.5678 | C89: 174810.2142 | D89: 85834.30765 | E89: 10713.93986 | F89: 15970.10616
A90: на 08.05 | B90: =C90+D90+E90+F90 -> 288445.1269 | C90: 174811.123 | D90: 86705.36841 | E90: 10745.44259 | F90: 16183.19285
A91: на 12.05 | B91: 288123.7722 | C91: 174810.8355 | D91: 86465.40032 | E91: 10731.76613 | F91: 16115.77028
A92: на 13.05 | B92: 288178.2329 | C92: 174810.8935 | D92: 86502.68837 | E92: 10735.26818 | F92: 16129.38281
A93: на 14.05 | B93: 288406.4401 | C93: 174811.0996 | D93: 86675.4804 | E93: 10742.16642 | F93: 16177.69368
A94: на 15.05 | B94: 290045.4092 | C94: 174811.6889 | D94: 88211.01181 | E94: 10706.84395 | F94: 16315.86458
A95: на 16.05 | B95: 289481.5517 | C95: 174811.1812 | D95: 87772.21803 | E95: 10701.31898 | F95: 16196.83351
A96: на 19.05 | B96: 289990.4086 | C96: 174811.6423 | D96: 88154.14071 | E96: 10719.69492 | F96: 16304.93071
A97: на 20.05 | B97: 289975.5635 | C97: 174811.6266 | D97: 88073.41157 | E97: 10788.6845 | F97: 16301.84087
A98: на 21.05 | B98: 289777.0905 | C98: 176911.447 | D98: 85869.74989 | E98: 10735.9729 | F98: 16259.92068
A99: на 22.05 | B99: 287219.8935 | C99: 176911.4824 | D99: 83877.36193 | E99: 10335.67217 | F99: 16095.37704
A100: на 23.05 | B100: 287257.1654 | C100: 176911.5186 | D100: 83925.91578 | E100: 10332.20844 | F100: 16087.52261
A101: на 26.05 | B101: 287173.9953 | C101: 176911.442 | D101: 83819.66612 | E101: 10373.07363 | F101: 16069.81359
A102: на 27.05 | B102: 286878.3696 | C102: 177263.1704 | D102: 83570.86844 | E102: 10037.3225 | F102: 16007.00823
A103: на 28.05 | B103: 287365.8709 | C103: 177263.6221 | D103: 83892.50349 | E103: 10098.29929 | F103: 16111.44604
A104: на 29.05 | B104: 287162.9102 | C104: 177263.4151 | D104: 83726.38148 | E104: 10109.51203 | F104: 16063.6015
A105: на 30.05 | B105: 289988.7348 | C105: 177263.6943 | D105: 86477.84473 | E105: 10119.06648 | F105: 16128.12934
A106: на 02.06 | B106: 300589.2382 | C106: 187263.7413 | D106: 86059.38809 | E106: 11127.1528 | F106: 16138.95599
A107: на 03.06 | B107: 301168.1343 | C107: 187264.2541 | D107: 86494.75788 | E107: 11151.58215 | F107: 16257.54016
A108: на 04.06 | B108: 300918.4759 | C108: 187264.0328 | D108: 86295.5634 | E108: 11152.5079 | F108: 16206.3719
A109: на 05.06 | B109: =C109+D109+E109+F109 -> 303128.7158 | C109: 187264.2168 | D109: 88459.61651 | E109: 11155.96615 | F109: 16248.91634
A110: на 06.06 | B110: =C110+D110+E110+F110 -> 302507.0686 | C110: 187263.6676 | D110: 87949.02242 | E110: 11172.46095 | F110: 16121.91762
A111: на 10.06 | B111: 299325.3729 | C111: 187263.9954 | D111: 84680.05142 | E111: 11183.59992 | F111: 16197.72607
A112: на 11.06 | B112: 299208.9893 | C112: 187263.8839 | D112: 84599.58827 | E112: 11173.58278 | F112: 16171.93439
A113: на 12.06 | B113: 296073.4202 | C113: 185664.7535 | D113: 84256.87258 | E113: 10179.04577 | F113: 15972.74831
A114: на 13.06 | B114: 296192.7053 | C114: 185664.8706 | D114: 84278.0351 | E114: 10249.9693 | F114: 15999.8303
A115: на 16.06 | B115: 296569.0943 | C115: 185665.2415 | D115: 84551.09077 | E115: 10267.17453 | F115: 16085.58751
A116: на 17.06 | B116: 296667.5799 | C116: 185665.3978 | D116: 84643.88687 | E116: 10250.44357 | F116: 16107.85174
A117: на 18.06 | B117: 296730.3294 | C117: 185665.4595 | D117: 84674.86693 | E117: 10267.87263 | F117: 16122.13035
A118: на 19.06 | B118: 297234.4352 | C118: 185665.7953 | D118: 85089.62625 | E118: 10279.24468 | F118: 16199.76901
A119: на 20.06 | B119: 299147.547 | C119: 185665.9067 | D119: 85112.76947 | E119: 12072.31322 | F119: 16296.55764
A120: на 23.06 | B120: 299175.7195 | C120: 185665.9304 | D120: 85306.97756 | E120: 11835.62073 | F120: 16367.19086
A121: на 24.06 | B121: 299293.9311 | C121: 185666.0487 | D121: 85428.32737 | E121: 11804.73875 | F121: 16394.81631
A122: на 25.06 | B122: 299364.7351 | C122: 185666.1176 | D122: 85450.43578 | E122: 11837.26226 | F122: 16410.91939
A123: на 26.06 | B123: 298685.1274 | C123: 185666.0669 | D123: 84786.16278 | E123: 11817.82302 | F123: 16415.07474
A124: на 27.06 | B124: 298750.4228 | C124: 186166.1312 | D124: 84807.48221 | E124: 11346.71515 | F124: 16430.09423
A125: на 01.07 | B125: 298385.9722 | C125: 186951.774 | D125: 84491.54731 | E125: 10572.32227 | F125: 16370.32861
A126: на 02.07 | B126: 298196.8975 | C126: 186951.5848 | D126: 84330.49801 | E126: 10588.75504 | F126: 16326.05966
A127: на 03.07 | B127: 298550.9878 | C127: 187811.8243 | D127: 83768.68361 | E127: 10578.72247 | F127: 16391.75742
A128: на 04.07 | B128: 298587.9682 | C128: 187811.8629 | D128: 83779.8296 | E128: 10595.48838 | F128: 16400.78734
A129: на 07.07 | B129: =C129+D129+E129+F129 -> 298654.5029 | C129: 187811.7928 | D129: 83885.55489 | E129: 10572.78628 | F129: 16384.36899
A130: на 08.07 | B130: =C130+D130+E130+F130 -> 298433.4849 | C130: 187811.5798 | D130: 83679.3867 | E130: 10608.05113 | F130: 16334.4672
A131: на 09.07 | B131: =C131+D131+E131+F131 -> 301642.7364 | C131: 187811.2188 | D131: 83159.354 | E131: 14422.30487 | F131: 16249.85877
A132: на 10.07 | B132: 300741.52 | C132: 187800.95 | D132: 83032.51 | E132: 13725.74 | F132: 16182.32
A133: на 11.07 | B133: =C133+D133+E133+F133 -> 302934.0397 | C133: 189801.136 | D133: 83119.98499 | E133: 13786.6507 | F133: 16226.268
A134: на 14.07 | B134: =C134+D134+E134+F134 -> 302924.2961 | C134: 189801.1264 | D134: 83661.38062 | E134: 13238.84761 | F134: 16222.94154
A135: на 15.07 | B135: 302936.06 | C135: 189801.14 | D135: 83696.59 | E135: 13212.54 | F135: 16225.79
A136: на 16.07 | B136: =C136+D136+E136+F136 -> 302993.9512 | C136: 189801.1932 | D136: 83748.26405 | E136: 13205.10603 | F136: 16239.38792
A137: на 17.07 | B137: =C137+D137+E137+F137 -> 303068.4694 | C137: 189811.2477 | D137: 84106.45197 | E137: 12922.0547 | F137: 16228.71506
A138: на 18.07 | B138: =C138+D138+E138+F138 -> 303071.1106 | C138: 189811.2558 | D138: 84041.25449 | E138: 12987.97127 | F138: 16230.62897
A139: на 21.07 | B139: 302711.0867 | C139: 189810.9028 | D139: 83670.41239 | E139: 13071.18859 | F139: 16158.58291
A140: на 22.07 | B140: =C140+D140+E140+F140 -> 302744.1154 | C140: 189810.9353 | D140: 83570.67342 | E140: 13196.3406 | F140: 16166.16607
A141: на 23.07 | B141: 303917.1427 | C141: 190324.9074 | D141: 83077.50841 | E141: 14331.68169 | F141: 16183.0452
A142: на 24.07 | B142: 301362.969 | C142: 192174.7792 | D142: 79828.83584 | E142: 13206.30234 | F142: 16153.05162
A143: на 25.07 | B143: 301546.5334 | C143: 192174.9716 | D143: 79971.35095 | E143: 13202.15595 | F143: 16198.05485
A144: на 28.07 | B144: 304233.1064 | C144: 192175.3213 | D144: 82481.39566 | E144: 13187.81497 | F144: 16388.57445
A145: на 29.07 | B145: 306924.9025 | C145: 192175.8492 | D145: 82858.1584 | E145: 15377.8966 | F145: 16512.9983
A146: на 30.07 | B146: 307570.6682 | C146: 192176.4958 | D146: 83411.6599 | E146: 15317.1326 | F146: 16665.3799
A147: на 31.07 | B147: 306915.8488 | C147: 192021.5732 | D147: 82849.6255 | E147: 15389.85551 | F147: 16654.79455
A148: на 01.08 | B148: 307383.9024 | C148: 192022.0435 | D148: 83146.29538 | E148: 15424.15652 | F148: 16791.40695
A149: на 04.08 | B149: 306762.8106 | C149: 192021.3737 | D149: 82638.46486 | E149: 15469.4006 | F149: 16633.57147
A150: на 05.08 | B150: 310062.3091 | C150: 192022.4726 | D150: 83454.80218 | E150: 17692.52848 | F150: 16892.50586
A151: на 06.08 | B151: 310636.6773 | C151: 192023.0453 | D151: 83881.07282 | E151: 17705.11655 | F151: 17027.44265
A152: на 07.08 | B152: 310920.0193 | C152: 192023.3317 | D152: 84140.46246 | E152: 17663.08547 | F152: 17093.13967
A153: на 08.08 | B153: 311435.3233 | C153: 192673.09 | D153: 85598.32031 | E153: 15948.32576 | F153: 17215.58724
A154: на 11.08 | B154: 313918.0873 | C154: 194818.8571 | D154: 86377.3264 | E154: 15331.6981 | F154: 17390.2057
A155: на 12.08 | B155: 315015.1572 | C155: 194819.9532 | D155: 87450.1358 | E155: 15269.72957 | F155: 17475.33867
A156: на 13.08 | B156: 358580.9743 | C156: 194821.52 | D156: 88570.4798 | E156: 57336.3075 | F156: 17852.6671
A157: на 14.08 | B157: 358434.5504 | C157: 194821.3766 | D157: 88583.97339 | E157: 57196.81338 | F157: 17832.38702
A158: на 15.08 | B158: 358340.8277 | C158: 194821.2817 | D158: 88401.8777 | E158: 57199.34085 | F158: 17918.32743
A159: на 18.08 | B159: 360606.2681 | C159: 194797.582 | D159: 88897.63919 | E159: 56956.5322 | F159: 19954.51466
A160: на 19.08 | B160: 360296.7071 | C160: 209297.2711 | D160: 88752.74714 | E160: 42485.90845 | F160: 19760.78039
A161: на 20.08 | B161: 359692.948 | C161: 223796.6675 | D161: 88327.07035 | E161: 27922.64651 | F161: 19646.56367
A162: на 21.08 | B162: 362274.0388 | C162: 236796.2011 | D162: 89319.82614 | E162: 15940.36475 | F162: 20217.6468
A163: на 22.08 | B163: 361717.3971 | C163: 236795.6497 | D163: 88895.58158 | E163: 15922.78588 | F163: 20103.37992
A164: на 26.08 | B164: 363195.78 | C164: 236792.9129 | D164: 90015.72129 | E164: 16004.74331 | F164: 20382.39904
A165: на 27.08 | B165: 363225.64 | C165: 236722.3907 | D165: 90304.99724 | E165: 15809.27339 | F165: 20388.97449
A166: на 28.08 | B166: =C166+D166+E166+F166 -> 364381.9538 | C166: 236723.5485 | D166: 91161.17902 | E166: 15837.75621 | F166: 20659.47007
A167: на 29.08 | B167: =C167+D167+E167+F167 -> 364614.9714 | C167: 236721.281 | D167: 90820.47356 | E167: 16810.96644 | F167: 20262.25039
A168: на 01.09 | B168: =C168+D168+E168+F168 -> 365455.8806 | C168: 236722.1225 | D168: 91504.07409 | E168: 16831.79772 | F168: 20397.88624
A169: на 02.09 | B169: 363000.2 | C169: 236719.66 | D169: 89685.55 | E169: 16806.09 | F169: 19788.9
A170: на 03.09 | B170: =C170+D170+E170+F170 -> 362469.0016 | C170: 236719.1369 | D170: 89358.99934 | E170: 16860.21465 | F170: 19530.65069
A171: на 04.09 | B171: =C171+D171+E171+F171 -> 360093.2285 | C171: 236716.7488 | D171: 87600.90443 | E171: 16811.85133 | F171: 18963.72396
A172: на 05.09 | B172: =C172+D172+E172+F172 -> 363584.5792 | C172: 236716.7374 | D172: 87571.2461 | E172: 20336.13218 | F172: 18960.46351
A173: на 08.09 | B173: =C173+D173+E173+F173 -> 365061.4219 | C173: 236718.2046 | D173: 88901.21025 | E173: 20031.27772 | F173: 19410.72933
A174: на 09.09 | B174: 365055.78 | C174: 236718.2 | D174: 88687.76 | E174: 20111.44 | F174: 19538.38
A175: на 10.09 | B175: =C175+D175+E175+F175 -> 388018.1847 | C175: 236718.724 | D175: 89048.64297 | E175: 42589.956 | F175: 19660.86171
A176: на 11.09 | B176: =C176+D176+E176+F176 -> 385889.688 | C176: 240718.8526 | D176: 87239.26282 | E176: 38391.85153 | F176: 19539.72104
A177: на 12.09 | B177: =C177+D177+E177+F177 -> 386011.9175 | C177: 240718.9766 | D177: 87332.771 | E177: 38391.51692 | F177: 19568.65297
A178: на 15.09 | B178: 385883.4168 | C178: 240718.844 | D178: 87239.69316 | E178: 38388.45054 | F178: 19536.42911
A179: на 16.09 | B179: 385656.1195 | C179: 240718.6091 | D179: 87311.30539 | E179: 38133.14929 | F179: 19493.05572

Sheet Список менеджерів
A1: Прізвище | B1: Ім'я | C1: По батькові | D1: Дата народження | E1: Місто народження
A2: Крилова | B2: Людмила | C2: Олександрівна | D2: 1980-03-12 | E2: Київ
A3: Васищак | B3: Валентин | C3: Семенович | D3: 1981-12-01 | E3: Черкаси
A4: Корнєєв | B4: Олексій | C4: Андрійович | D4: 1979-04-27 | E4: Київ
A5: Доля | B5: Ірина | C5: Миколаївна | D5: 1981-04-26 | E5: Трипілля
A6: Кравцова | B6: Юлія | C6: Романівна | D6: 1982-08-14 | E6: Чернігів
A7: Божук | B7: Василь | C7: Валентонович | D7: 1984-04-04 | E7: Донецьк
A8: Левчук | B8: Наталія | C8: Олександрівна | D8: 1982-05-13 | E8: Київ
A9: Могилевець | B9: Катерина | C9: Олегівна | D9: 1981-12-11 | E9: Трипілля
A10: Кранчак | B10: Тетяна | C10: Михайлівна | D10: 1981-12-20 | E10: Київ
A11: Бочкарьов | B11: Семен | C11: Олексіївна | D11: 1982-01-07 | E11: Львів

Sheet Формула
A1: X|Y | B1: -2 | C1: -1 | D1: 0 | E1: 1 | F1: 2
A2: 1 | B2: =2*LN(ABS($A2^2-B$1)+1)*2*$A2*B$1/EXP(2*$A2+B$1^3) -> -4474.168492 | C2: =2*LN(ABS($A2^2-C$1)+1)*2*$A2*C$1/EXP(2*$A2+C$1^3) -> -1.616627499 | D2: 0 | E2: 0 | F2: 0.0002517506665
A3: 2 | B3: =2*LN(ABS($A3^2-B$1)+1)*2*$A3*B$1/EXP(2*$A3+B$1^3) -> -1699.889508 | C3: -0.7136516095 | D3: 0 | E3: 0.07472622344 | F3: 0.0001080017151
A4: 3 | B4: -440.6667513 | C4: -0.1938826951 | D4: 0 | E4: 0.0240433136 | F4: 4.149876868e-05
A5: 4 | B5: -94.22204733 | C5: -0.04217084608 | D5: 0 | E5: 0.005474634096 | F5: 9.752028881e-06
A6: 5 | B6: -18.03859365 | C6: -0.008134771639 | D6: 0 | E6: 0.001075214018 | F6: 1.936067819e-06
A7: 6 | B7: -3.220822664 | C7: -0.001458093015 | D7: 0 | E7: 0.0001943983977 | F7: 3.517496897e-07
A8: 7 | B8: -0.5484726222 | C8: -0.0002488421908 | D8: 0 | E8: 3.333447208e-05 | F8: 6.047211353e-08
A9: 8 | B9: -0.09027310308 | C9: -4.101200345e-05 | D9: 0 | E9: 5.509605422e-06 | F9: 1.001017026e-08
A10: 9 | B10: -0.01448343154 | C10: -6.585740966e-06 | D10: 0 | E10: 8.863633465e-07 | F10: 1.611947822e-09
A11: 10 | B11: -0.002278140728 | C11: -1.036511248e-06 | D11: 0 | E11: 1.396759249e-07 | F11: 2.541799775e-10
A12: 11 | B12: -0.0003527218249 | C12: -1.605501861e-07 | D12: 0 | E12: 2.165408314e-08 | F12: 3.942359757e-11
A13: 12 | B13: -5.39135235e-05 | C13: -2.454776222e-08 | D13: 0 | E13: 3.31298343e-09 | F13: 6.033627455e-12
A14: 13 | B14: -8.153208608e-06 | C14: -3.713171012e-09 | D14: 0 | E14: 5.01373208e-10 | F14: 9.13328527e-13
A15: 14 | B15: -1.221955214e-06 | C15: -5.566092153e-10 | D15: 0 | E15: 7.518425007e-11 | F15: 1.3698544e-13
A16: 15 | B16: -1.817398368e-07 | C16: -8.279555399e-11 | D16: 0 | E16: 1.118688099e-11 | F16: 2.03854507e-14
A17: 16 | B17: -2.685155017e-08 | C17: -1.22341992e-11 | D17: 0 | E17: 1.653398424e-12 | F17: 3.013280072e-15
A18: 17 | B18: -3.944413517e-09 | C18: -1.797332967e-12 | D18: 0 | E18: 2.429468768e-13 | F18: 4.428067161e-16
A19: 18 | B19: -5.764910576e-10 | C19: -2.627068584e-13 | D19: 0 | E19: 3.551569901e-14 | F19: 6.473761455e-17
A20: 19 | B20: -8.387868057e-11 | C20: -3.822588728e-14 | D20: 0 | E20: 5.168462292e-15 | F20: 9.421615011e-18
A21: 20 | B21: -1.215544412e-11 | C21: -5.539869837e-15 | D21: 0 | E21: 7.491162583e-16 | F21: 1.365640433e-18

Sheet УФ_пример
A1: № | B1: Дата | C1: Менеджер | D1: Контрагент | E1: Товар | F1: Сумма
A2: 1 | B2: 2019-02-22 | C2: Петров | D2: Фирма 12 | E2: Товар 9 | F2: 3171
A3: 2 | B3: 2019-02-14 | C3: Шевченко | D3: Фирма 10 | E3: Товар 11 | F3: 2504
A4: 3 | B4: 2019-02-27 | C4: Лучкевич | D4: Фирма 14 | E4: Товар 8 | F4: 2270
A5: 4 | B5: 2019-02-22 | C5: Бодров | D5: Фирма 14 | E5: Товар 4 | F5: 1637
A6: 5 | B6: 2019-02-19 | C6: Лучкевич | D6: Фирма 6 | E6: Товар 6 | F6: 3925
A7: 6 | B7: 2019-03-01 | C7: Лучкевич | D7: Фирма 15 | E7: Товар 1 | F7: 3647
A8: 7 | B8: 2019-02-23 | C8: Сидоров | D8: Фирма 19 | E8: Товар 5 | F8: 4026
A9: 8 | B9: 2019-02-18 | C9: Шевченко | D9: Фирма 3 | E9: Товар 9 | F9: 2353
A10: 9 | B10: 2019-02-15 | C10: Ковальчук | D10: Фирма 15 | E10: Товар 6 | F10: 882
A11: 10 | B11: 2019-02-14 | C11: Петров | D11: Фирма 8 | E11: Товар 14 | F11: 2203
A12: 11 | B12: 2019-02-14 | C12: Фаясный | D12: Фирма 12 | E12: Товар 8 | F12: 2392
A13: 12 | B13: 2019-02-17 | C13: Шевченко | D13: Фирма 19 | E13: Товар 5 | F13: 877
A14: 13 | B14: 2019-02-21 | C14: Фаясный | D14: Фирма 9 | E14: Товар 9 | F14: 1291
A15: 14 | B15: 2019-02-27 | C15: Лучкевич | D15: Фирма 3 | E15: Товар 14 | F15: 1400
A16: 15 | B16: 2019-03-01 | C16: Сидоров | D16: Фирма 3 | E16: Товар 6 | F16: 3595
A17: 16 | B17: 2019-02-24 | C17: Фаясный | D17: Фирма 10 | E17: Товар 8 | F17: 2655
A18: 17 | B18: 2019-02-25 | C18: Ковальчук | D18: Фирма 3 | E18: Товар 1 | F18: 1447
A19: 18 | B19: 2019-02-26 | C19: Фаясный | D19: Фирма 15 | E19: Товар 12 | F19: 3591
A20: 19 | B20: 2019-02-14 | C20: Петров | D20: Фирма 17 | E20: Товар 1 | F20: 4333
A21: 20 | B21: 2019-02-26 | C21: Фаясный | D21: Фирма 8 | E21: Товар 4 | F21: 782
A22: 21 | B22: 2019-02-15 | C22: Фаясный | D22: Фирма 9 | E22: Товар 3 | F22: 2930
A23: 22 | B23: 2019-02-16 | C23: Шевченко | D23: Фирма 15 | E23: Товар 6 | F23: 1713
A24: 23 | B24: 2019-02-26 | C24: Бодров | D24: Фирма 20 | E24: Товар 14 | F24: 3472
A25: 24 | B25: 2019-02-28 | C25: Петров | D25: Фирма 2 | E25: Товар 6 | F25: 1503
A26: 25 | B26: 2019-02-20 | C26: Лучкевич | D26: Фирма 15 | E26: Товар 11 | F26: 2256

Sheet Условное форматирование
A1: Дата накладной | B1: № накладной | C1: Отсрочка дней | D1: Сумма накладной | E1: Упаковка | F1: Сумма доставки | G1: Общая сумма | H1: Оплачено | I1: Конечная дата оплаты
A2: 2019-03-11 | B2: MS_K_628 | C2: 34 | D2: 147035 | E2: 2205.53 | F2: 0 | G2: 149240.53 | H2: да | I2: 2019-04-14
A3: 2019-01-17 | B3: MS_K_322 | C3: 38 | D3: 114107 | E3: 1711.61 | F3: 0 | G3: 115818.61 | H3: нет | I3: 2019-02-24
A4: 2019-03-12 | B4: MS_K_361 | C4: 41 | D4: 98231 | E4: 1473.47 | F4: 0 | G4: 99704.47 | H4: да | I4: 2019-04-22
A5: 2019-04-13 | B5: MS_K_352 | C5: 64 | D5: 45739 | E5: 686.09 | F5: 0 | G5: 46425.09 | H5: да | I5: 2019-06-16
A6: 2019-02-01 | B6: MS_K_965 | C6: 60 | D6: 137793 | E6: 2066.9 | F6: 0 | G6: 139859.9 | H6: да | I6: 2019-04-02
A7: 2019-03-18 | B7: MS_K_975 | C7: 57 | D7: 216602 | E7: 3249.03 | F7: 0 | G7: 219851.03 | H7: да | I7: 2019-05-14
A8: 2019-04-04 | B8: MS_K_188 | C8: 62 | D8: 230563 | E8: 3458.45 | F8: 0 | G8: 234021.45 | H8: да | I8: 2019-06-05
A9: 2019-03-16 | B9: MS_K_703 | C9: 35 | D9: 185442 | E9: 2781.63 | F9: 0 | G9: 188223.63 | H9: да | I9: 2019-04-20
A10: 2019-03-24 | B10: MS_K_539 | C10: 44 | D10: 9842 | E10: 172.09 | F10: 0 | G10: 9989.63 | H10: нет | I10: 2019-05-07
A11: 2019-02-09 | B11: MS_K_630 | C11: 44 | D11: 68741 | E11: 1031.12 | F11: 0 | G11: 69772.12 | H11: да | I11: 2019-03-25
A12: 2019-04-01 | B12: MS_K_548 | C12: 44 | D12: 140293 | E12: 2104.4 | F12: 0 | G12: 142397.4 | H12: нет | I12: 2019-05-15
A13: 2019-04-06 | B13: MS_K_489 | C13: 56 | D13: 137715 | E13: 2065.73 | F13: 0 | G13: 139780.73 | H13: да | I13: 2019-06-01
A14: 2019-01-24 | B14: MS_K_891 | C14: 44 | D14: 221481 | E14: 3322.22 | F14: 0 | G14: 224803.22 | H14: нет | I14: 2019-03-09
A15: 2019-01-15 | B15: MS_K_353 | C15: 31 | D15: 18104 | E15: 271.56 | F15: 0 | G15: 18375.56 | H15: да | I15: 2019-02-15
A16: 2019-02-13 | B16: MS_K_701 | C16: 61 | D16: 110002 | E16: 1720.99 | F16: 0 | G16: 111652.03 | H16: да | I16: 2019-04-15
A17: 2019-01-17 | B17: MS_K_370 | C17: 38 | D17: 192772 | E17: 2891.58 | F17: 0 | G17: 195663.58 | H17: да | I17: 2019-02-24
A18: 2019-02-27 | B18: MS_K_590 | C18: 42 | D18: 49705 | E18: 745.58 | F18: 0 | G18: 50450.58 | H18: да | I18: 2019-04-10
A19: 2019-01-07 | B19: MS_K_527 | C19: 54 | D19: 263898 | E19: 3958.47 | F19: 0 | G19: 267856.47 | H19: нет | I19: 2019-03-02
A20: 2019-04-11 | B20: MS_K_823 | C20: 43 | D20: 175914 | E20: 2638.71 | F20: 0 | G20: 178552.71 | H20: да | I20: 2019-05-24

Sheet Акционеры
A1: № | B1: Список акціонерів | C1: Частка акцій
A2: 1 | B2: Афонін Антон | C2: 0.5
A3: 2 | B3: Блудша Дарія | C3: 32
A4: 3 | B4: Божук Ірина | C4: 4
A5: 4 | B5: Вінс Валерія | C5: 3
A6: 5 | B6: Гела Дарія | C6: 0.3
A7: 6 | B7: Герасименко Ірина | C7: 15
A8: 7 | B8: Горбунова Євгенія | C8: 1
A9: 8 | B9: Гук Дмитро | C9: 3
A10: 9 | B10: Козуб Марина | C10: 4
A11: 10 | B11: Купрійов Андрій | C11: 3
A12: 11 | B12: Левков Олександр | C12: 2
A13: 12 | B13: Максимчук Олена | C13: 2
A14: 13 | B14: Мамонова Катерина | C14: 10
A15: 14 | B15: Марков Віталій | C15: 2
A16: 15 | B16: Надводнюк Олексій | C16: 18.2

Sheet Спарклайны
A1: Прибуток від діяльності
A2: Менеджер | B2: Січень | C2: Лютий | D2: Березень
A3: Петров | B3: 29 | C3: 18 | D3: 33
A4: Іванов | B4: 44 | C4: -2 | D4: 51
A5: Сидоров | B5: 42 | C5: 41 | D5: 35

Sheet Диаграмма
B1: Мониторы | C1: Процессоры | D1: Винчестеры | E1: Память
A2: Количество, шт. | B2: 10 | C2: 45 | D2: 18 | E2: 40
A3: Срок хранения, мес. | B3: 23 | C3: 12 | D3: 15 | E3: 20
A4: Цена, у.е. | B4: 330 | C4: 100 | D4: 85 | E4: 25

Sheet Диаграмма выгрышей
A1: Месяц | B1: Прибыль, тыс. грн. | C1: Add | D1: Плюс | E1: Минус
A2: Январь | B2: 29
A3: Февраль | B3: 44 | C3: =IF(B3>B2, B2, B3) -> 29 | D3: =IF(B3>B2, B3-B2, "") -> 15 | E3: =IF(B3>B2, "", B2-B3) -> 
A4: Март | B4: 42 | C4: =IF(B4>B3, B3, B4) -> 42 | D4: =IF(B4>B3, B4-B3, "") ->  | E4: =IF(B4>B3, "", B3-B4) -> 2
A5: Апрель | B5: 46 | C5: 42 | D5: 4
A6: Май | B6: 31 | C6: 31 | E6: 15
A7: Июнь | B7: 42 | C7: 31 | D7: 11
A8: Июль | B8: 43 | C8: 42 | D8: 1
A9: Август | B9: 48 | C9: 43 | D9: 5
A10: Сентябрь | B10: 31 | C10: 31 | E10: 17
A11: Октябрь | B11: 19 | C11: 19 | E11: 12
A12: Ноябрь | B12: 23 | C12: 19 | D12: 4
A13: Декабрь | B13: 36 | C13: 23 | D13: 13

Sheet ДВ-2
A1: № | B1: Доход
A2: 1 | B2: 23993
A3: 2 | B3: 36053
A4: 3 | B4: 28936
A5: 4 | B5: 34404
A6: 5 | B6: 39418
A7: 6 | B7: 16262
A8: 7 | B8: 16085
A9: 8 | B9: 31716
A10: 9 | B10: 33388
A11: 10 | B11: 25676
A12: 11 | B12: 42884
A13: 12 | B13: 23499
A14: 13 | B14: 24898
A15: 14 | B15: 18095
A16: 15 | B16: 45408
A17: 16 | B17: 13400
A18: 17 | B18: 23098
A19: 18 | B19: 27020
A20: 19 | B20: 16499
A21: 20 | B21: 17397
A22: 21 | B22: 37168
A23: 22 | B23: 37976
A24: 23 | B24: 14405
A25: 24 | B25: 36374
A26: 25 | B26: 23188
A27: 26 | B27: 34442
A28: 27 | B28: 33466
A29: 28 | B29: 26264
A30: 29 | B30: 17987

Sheet Списки
A1: Дерево | B1: Висота | C1: Вік | D1: Врожай | E1: Прибуток
A2: Яблуня | B2: 18 | C2: 20 | D2: 14 | E2: 105
A3: Груша | B3: 12 | C3: 12 | D3: 10 | E3: 96
A4: Вишня | B4: 13 | C4: 14 | D4: 9 | E4: 105.3
A5: Яблуня | B5: 14 | C5: 15 | D5: 10 | E5: 75
A6: Груша | B6: 9 | C6: 8 | D6: 8 | E6: 76.8
A7: Яблуня | B7: 8 | C7: 9 | D7: 6 | E7: 45
A9: Дерево | B9: Висота | C9: Вік | D9: Продукт | E9: Прибуток | F9: Висота
A10: Яблуня | B10: >10 | F10: <16
A11: Груша
A13: Функція | B13: Підрахунок
A14: БСЧЁТ(BD;"Вік";A9:F10) | B14: =DCOUNT(BD,"Вік",A9:F10) -> 1
A15: БСЧЕТА(BD;"Прибуток";A9:F10) | B15: =DCOUNTA(BD,"Прибуток",A9:F10) -> 1
A16: ДМАКС(BD;"Прибуток";A9:A11) | B16: =DMAX(BD,"Прибуток",A9:A11) -> 105
A17: ДМИН(BD;"Прибуток";A9:B10) | B17: =DMIN(BD,"Прибуток",A9:B10) -> 75
A18: БДСУММ(BD;"Прибуток";A9:A10) | B18: =DSUM(BD,"Прибуток",A9:A10) -> 225
A19: БДСУММ(BD;"Прибуток";A9:F10) | B19: =DSUM(BD,"Прибуток",A9:F10) -> 75
A20: БДПРОИЗВЕД(BD;"Врожай";A9:F10) | B20: =DPRODUCT(BD,"Врожай",A9:F10) -> 10
A21: ДСРЗНАЧ(BD;"Врожай";A9:B10) | B21: =DAVERAGE(BD,"Врожай",A9:B10) -> 12
A22: ДСРЗНАЧ(BD;3;BD) | B22: =DAVERAGE(BD,3,BD) -> 13
A23: ДСТАНДОТКЛ(BD;"Врожай";A9:A11) | B23: =DSTDEV(BD,"Врожай",A9:A11) -> 2.966479395
A24: ДСТАНДОТКЛП(BD;"Врожай";A9:A11) | B24: =DSTDEVP(BD,"Врожай",A9:A11) -> 2.653299832
A25: БДДИСП(BD;"Врожай";A9:A11) | B25: =DVAR(BD,"Врожай",A9:A11) -> 8.8
A26: БДДИСПП(BD;"Врожай";A9:A11) | B26: =DVARP(BD,"Врожай",A9:A11) -> 7.04
A27: БИЗВЛЕЧЬ(BD;"Врожай";A1:A3) | B27: =DGET(BD,"Врожай",A1:A3) -> 
A28: БИЗВЛЕЧЬ(BD;"Врожай";A1:B2) | B28: =DGET(BD,"Врожай",A1:B2) -> 14

Sheet Функции БД
A1: Шифр продукции | B1: Количество | C1: Цена прогнозируемая, грн. | D1: Цена фактическая, грн.
A2: 3221 | B2: 232 | C2: 23 | D2: 22
A3: 3224 | B3: 113 | C3: 24.5 | D3: 25.5
A4: 3227 | B4: 15 | C4: 21.9 | D4: 22.6
A5: 3421 | B5: 218 | C5: 23 | D5: 21.5
A6: 3824 | B6: 642 | C6: 23 | D6: 25
A7: 5496 | B7: 355 | C7: 22.54285714 | D7: 24.52857143
A8: 5704 | B8: 389 | C8: 22.45 | D8: 24.83571429
A9: 5912 | B9: 423 | C9: 22.35714286 | D9: 25.14285714
A10: 6119 | B10: 457 | C10: 22.26428571 | D10: 25.45
A11: 6327 | B11: 491 | C11: 22.17142857 | D11: 25.75714286
A12: 6534 | B12: 525 | C12: 22.07857143 | D12: 26.06428571
A13: 6723 | B13: 210 | C13: 22.5 | D13: 23
A14: 6742 | B14: 559 | C14: 21.98571429 | D14: 26.37142857
A15: 6949 | B15: 593 | C15: 21.89285714 | D15: 26.67857143
A16: 7157 | B16: 627 | C16: 21.8 | D16: 26.98571429
A17: 7365 | B17: 662 | C17: 21.70714286 | D17: 27.29285714
A18: 7572 | B18: 696 | C18: 21.61428571 | D18: 27.6
A19: 7780 | B19: 730 | C19: 21.52142857 | D19: 27.90714286
A20: 7987 | B20: 764 | C20: 21.42857143 | D20: 28.21428571
A21: 9023 | B21: 100 | C21: 22.5 | D21: 23.5

Sheet Функции даты
A2: =TODAY() -> 2019-03-18 | D2: =NOW() -> 2019-03-18T11:26:27.440
A4: год | B4: =YEAR(A2) -> 2019 | D4: часы | E4: =HOUR(D2) -> 11
A5: месяц | B5: =MONTH(A2) -> 3 | D5: минуты | E5: =MINUTE(D2) -> 26
A6: день | B6: =DAY(A2) -> 18 | D6: секунды | E6: =SECOND(D2) -> 27
A7: день недели | B7: =WEEKDAY(A2,2) -> 1
A8: номер недели | B8: =WEEKNUM(A2,2) -> 12
A12: Выборы | B12: 2019-03-31
A15: дней | B15: =_xlfn.DAYS(B12,A2) -> 13
A16: часов | B16: =HOUR(B12-D2) -> 12
A17: минут | B17: =MINUTE(B12-D2) -> 33
A18: секунд | B18: =SECOND(B12-D2) -> 33

Sheet Менеджеры
A1: Прізвище | B1: Ім'я | C1: По-батькові | D1: Дата народження | E1: Стать | F1: Місто народження | G1: % товару 1 | H1: % товару 2 | I1: % товару 3 | J1: % товару 4 | K1: % товару 5 | L1: % товару 6 | M1: % товару 7
A2: Афонін | B2: Іполит | C2: Георгійович | D2: 1993-10-29 | E2: Чоловіча | F2: Запоріжжя | G2: 76 | H2: 95 | I2: 75 | J2: 93 | K2: 90 | L2: 99 | M2: 82
A3: Блудша | B3: Олена | C3: Олегівна | D3: 1995-03-07 | E3: Жіноча | F3: Донецьк | G3: 92 | H3: 81 | I3: 86 | J3: 100 | K3: 90 | L3: 97 | M3: 93
A4: Божук | B4: Юрій | C4: Євгенович | D4: 1995-04-03 | E4: Чоловіча | F4: Київ | G4: 60 | H4: 60 | I4: 66 | J4: 88 | K4: 70 | L4: 96 | M4: 65
A5: Вінс | B5: Роман | C5: Олександрович | D5: 1995-05-28 | E5: Чоловіча | F5: Донецьк | G5: 83 | H5: 91 | I5: 93 | J5: 100 | K5: 95 | L5: 98 | M5: 83
A6: Гела | B6: Валентина | C6: Анатоліївна | D6: 1995-03-29 | E6: Жіноча | F6: Донецьк | G6: 76 | H6: 87 | I6: 82 | J6: 91 | K6: 90 | L6: 97 | M6: 70
A7: Герасименко | B7: Максим | C7: Олегович | D7: 1995-08-14 | E7: Чоловіча | F7: Київ | G7: 75 | H7: 70 | I7: 94 | J7: 80 | K7: 75 | L7: 93 | M7: 95
A8: Горбунова | B8: Олександра | C8: Олександрівна | D8: 1995-01-12 | E8: Жіноча | F8: Донецьк | G8: 87 | H8: 90 | I8: 90 | J8: 95 | K8: 90 | L8: 95 | M8: 83
A9: Гук | B9: Нікіта | C9: Сергійович | D9: 1994-10-28 | E9: Чоловіча | F9: Житомир | G9: 70 | H9: 71 | I9: 66 | J9: 82 | K9: 60 | L9: 81 | M9: 65
A10: Козуб | B10: Олена | C10: Євгенівна | D10: 1995-07-23 | E10: Жіноча | F10: Покровськ | G10: 70 | H10: 72 | I10: 90 | J10: 94 | K10: 85 | L10: 100 | M10: 90
A11: Купрійов | B11: Дмитро | C11: Миколайович | D11: 1994-04-17 | E11: Жіноча | F11: Київ | G11: 82 | H11: 85 | I11: 85 | J11: 95 | K11: 90 | L11: 97 | M11: 90
A12: Левков | B12: Сергій | C12: Олександрович | D12: 1995-07-07 | E12: Чоловіча | F12: Київ | G12: 98 | H12: 99 | I12: 96 | J12: 100 | K12: 100 | L12: 100 | M12: 93
A13: Максимчук | B13: Іван | C13: Олегович | D13: 1994-10-18 | E13: Чоловіча | F13: Суми | G13: 65 | H13: 84 | I13: 68 | J13: 69 | K13: 62 | L13: 80 | M13: 60
A14: Мамонова | B14: Дар'я | C14: Олександрівна | D14: 1994-10-18 | E14: Жіноча | F14: Чернігів | G14: 85 | H14: 93 | I14: 92 | J14: 100 | K14: 90 | L14: 99 | M14: 95
A15: Марков | B15: Микола | C15: Ярославович | D15: 1994-10-06 | E15: Чоловіча | F15: Івано-Франківськ | G15: 60 | H15: 84 | I15: 66 | J15: 90 | K15: 85 | L15: 90 | M15: 65
A16: Надводнюк | B16: Вікторія | C16: Юріївна | D16: 1995-03-05 | E16: Жіноча | F16: Київ | G16: 91 | H16: 94 | I16: 95 | J16: 100 | K16: 90 | L16: 98 | M16: 93
A17: Недашківська | B17: Марія | C17: Миколаївна | D17: 1995-02-07 | E17: Чоловіча | F17: Київ | G17: 91 | H17: 90 | I17: 95 | J17: 92 | K17: 86 | L17: 96 | M17: 94
A18: Перешивайло | B18: Олександра | C18: Петрівна | D18: 1995-05-18 | E18: Жіноча | F18: Київ | G18: 92 | H18: 90 | I18: 95 | J18: 94 | K18: 82 | L18: 96 | M18: 88
A19: Пилипчук | B19: Олексій | C19: Валерійович | D19: 1994-09-21 | E19: Чоловіча | F19: Суми | G19: 60 | H19: 77 | I19: 90 | J19: 62 | K19: 64 | L19: 89 | M19: 62
A20: Подолянко | B20: Віталій | C20: Геннадійович | D20: 1995-03-13 | E20: Чоловіча | F20: Вінниця | G20: 60 | H20: 75 | I20: 66 | J20: 86 | K20: 70 | L20: 95 | M20: 63
A21: Резніченко | B21: Катерина | C21: Андріївна | D21: 1994-10-07 | E21: Жіноча | F21: Київ | G21: 82 | H21: 93 | I21: 93 | J21: 100 | K21: 90 | L21: 98 | M21: 90
A22: Рибачок | B22: Олена | C22: Сергіївна | D22: 1995-01-30 | E22: Жіноча | F22: Чернігів | G22: 70 | H22: 86 | I22: 82 | J22: 93 | K22: 82 | L22: 94 | M22: 75
A23: Руденко | B23: Олександр | C23: Олегович | D23: 1994-11-12 | E23: Чоловіча | F23: Кривий Ріг | G23: 70 | H23: 87 | I23: 66 | J23: 91 | K23: 73 | L23: 80 | M23: 73
A24: Сидоренко | B24: Андрій | C24: Олександрович | D24: 1995-04-11 | E24: Чоловіча | F24: Біловодськ | G24: 92 | H24: 94 | I24: 94 | J24: 98 | K24: 90 | L24: 96 | M24: 75
A25: Ситник | B25: Марина | C25: Богданівна | D25: 1995-01-07 | E25: Жіноча | F25: Київ | G25: 98 | H25: 97 | I25: 100 | J25: 100 | K25: 100 | L25: 100 | M25: 93
A26: Сільченко | B26: Дмитро | C26: Андрійович | D26: 1995-08-31 | E26: Чоловіча | F26: Київ | G26: 91 | H26: 90 | I26: 100 | J26: 100 | K26: 92 | L26: 100 | M26: 95
A27: Смілик | B27: Євгенія | C27: Сергіївна | D27: 1995-04-14 | E27: Жіноча | F27: Суми | G27: 75 | H27: 82 | I27: 85 | J27: 90 | K27: 85 | L27: 96 | M27: 79
A28: Сорока | B28: Ірина | C28: Володимирівна | D28: 1994-11-21 | E28: Жіноча | F28: Світловодськ | G28: 78 | H28: 75 | I28: 75 | J28: 96 | K28: 85 | L28: 98 | M28: 90
A29: Стельмах | B29: Дарія | C29: Олександрівна | D29: 1994-10-31 | E29: Жіноча | F29: Баранівка | G29: 90 | H29: 85 | I29: 91 | J29: 97 | K29: 90 | L29: 95 | M29: 90
A30: Стрілець | B30: Валерія | C30: Сергіївна | D30: 1995-02-11 | E30: Жіноча | F30: Чернігів | G30: 83 | H30: 90 | I30: 93 | J30: 100 | K30: 90 | L30: 96 | M30: 78
A31: Таранюк | B31: Ірина | C31: Георгіївна | D31: 1995-05-09 | E31: Жіноча | F31: Київ | G31: 79 | H31: 87 | I31: 90 | J31: 93 | K31: 85 | L31: 97 | M31: 80
A32: Шайкова | B32: Дарія | C32: Юріївна | D32: 1996-01-25 | E32: Жіноча | F32: Славутич | G32: 67 | H32: 81 | I32: 75 | J32: 91 | K32: 82 | L32: 94 | M32: 70
A33: Якайтес | B33: Антон | C33: Олександрович | D33: 1995-08-14 | E33: Чоловіча | F33: Київ | G33: 91 | H33: 90 | I33: 78 | J33: 97 | K33: 85 | L33: 96 | M33: 90
D51: 1993-10-29 | E51: Чоловіча | F51: Київ | G51: 60
D52: 1995-03-07 | E52: Чоловіча | F52: Івано-Франківськ | G52: 60
D53: 1995-04-03 | E53: Чоловіча | F53: Суми | G53: 60
D54: 1995-05-28 | E54: Чоловіча | F54: Вінниця | G54: 60
D55: 1995-03-29 | E55: Чоловіча | F55: Суми | G55: 65
D56: 1995-08-14 | E56: Жіноча | F56: Славутич | G56: 67
D57: 1995-01-12 | E57: Чоловіча | F57: Житомир | G57: 70
D58: 1994-10-28 | E58: Жіноча | F58: Покровськ | G58: 70
D59: 1995-07-23 | E59: Жіноча | F59: Чернігів | G59: 70
D60: 1994-04-17 | E60: Чоловіча | F60: Кривий Ріг | G60: 70
D61: 1995-07-07 | E61: Чоловіча | F61: Київ | G61: 75
D62: 1994-10-18 | E62: Жіноча | F62: Суми | G62: 75
D63: 1994-10-18 | E63: Чоловіча | F63: Запоріжжя | G63: 76
D64: 1994-10-06 | E64: Жіноча | F64: Донецьк | G64: 76
D65: 1995-03-05 | E65: Жіноча | F65: Світловодськ | G65: 78
D66: 1995-02-07 | E66: Жіноча | F66: Київ | G66: 79
D67: 1995-05-18 | E67: Жіноча | F67: Київ | G67: 82
D68: 1994-09-21 | E68: Жіноча | F68: Київ | G68: 82
D69: 1995-03-13 | E69: Чоловіча | F69: Донецьк | G69: 83
D70: 1994-10-07 | E70: Жіноча | F70: Чернігів | G70: 83
D71: 1995-01-30 | E71: Жіноча | F71: Чернігів | G71: 85
D72: 1994-11-12 | E72: Жіноча | F72: Донецьк | G72: 87
D73: 1995-04-11 | E73: Жіноча | F73: Баранівка | G73: 90
D74: 1995-01-07 | E74: Жіноча | F74: Київ | G74: 91
D75: 1995-08-31 | E75: Чоловіча | F75: Київ | G75: 91
D76: 1995-04-14 | E76: Чоловіча | F76: Київ | G76: 91
D77: 1994-11-21 | E77: Чоловіча | F77: Київ | G77: 91
D78: 1994-10-31 | E78: Жіноча | F78: Донецьк | G78: 92
D79: 1995-02-11 | E79: Жіноча | F79: Київ | G79: 92
D80: 1995-05-09 | E80: Чоловіча | F80: Біловодськ | G80: 92
D81: 1996-01-25 | E81: Чоловіча | F81: Київ | G81: 98
D82: 1995-08-14 | E82: Жіноча | F82: Київ | G82: 98

Sheet Замовлення
A1: № заказа | B1: Товар
A2: 3 | B2: яблоки | D2: Введите номер заказа: | E2: 3
A3: 4 | B3: груши
A4: 1 | B4: каштан
A5: 2 | B5: арбуз | D5: В заказ входит:
A6: 2 | B6: малина | D6: =IFERROR(INDEX($B$2:$B$16,SMALL(IF($E$2=A2:A16,ROW(B2:B16)-1,""),ROW()-5)),"") -> яблоки
A7: 2 | B7: женьшень | D7: манго
A8: 4 | B8: морковь | D8: авокадо
A9: 4 | B9: лук | D9: сливы
A10: 5 | B10: капуста
A11: 3 | B11: манго
A12: 3 | B12: авокадо
A13: 3 | B13: сливы
A14: 6 | B14: маслины
A15: 7 | B15: орехи

Sheet Автосчет
A1: =IF(ISBLANK(B1),"",COUNTA($B$1:B1)) -> 1 | B1: яблоки
A2: =IF(ISBLANK(B2),"",COUNTA($B$1:B2)) -> 2 | B2: груши
A3: =IF(ISBLANK(B3),"",COUNTA($B$1:B3)) -> 
A4: =IF(ISBLANK(B4),"",COUNTA($B$1:B4)) -> 3 | B4: груши
A5: =IF(ISBLANK(B5),"",COUNTA($B$1:B5)) -> 4 | B5: картофель
A6: =IF(ISBLANK(B6),"",COUNTA($B$1:B6)) -> 
A7: =IF(ISBLANK(B7),"",COUNTA($B$1:B7)) -> 5 | B7: капуста
A8: =IF(ISBLANK(B8),"",COUNTA($B$1:B8)) -> 6 | B8: морковь
A9: =IF(ISBLANK(B9),"",COUNTA($B$1:B9)) -> 7 | B9: сливы
A10: =IF(ISBLANK(B10),"",COUNTA($B$1:B10)) -> 
A11: =IF(ISBLANK(B11),"",COUNTA($B$1:B11)) -> 8 | B11: орехи
A12: =IF(ISBLANK(B12),"",COUNTA($B$1:B12)) -> 
A13: =IF(ISBLANK(B13),"",COUNTA($B$1:B13)) -> 
A14: =IF(ISBLANK(B14),"",COUNTA($B$1:B14)) -> 
A15: =IF(ISBLANK(B15),"",COUNTA($B$1:B15)) -> 
A16: =IF(ISBLANK(B16),"",COUNTA($B$1:B16)) -> 
A17: =IF(ISBLANK(B17),"",COUNTA($B$1:B17)) -> 
A18: =IF(ISBLANK(B18),"",COUNTA($B$1:B18)) -> 
A19: =IF(ISBLANK(B19),"",COUNTA($B$1:B19)) -> 
A20: =IF(ISBLANK(B20),"",COUNTA($B$1:B20)) -> 
A21: =IF(ISBLANK(B21),"",COUNTA($B$1:B21)) -> 
A22: =IF(ISBLANK(B22),"",COUNTA($B$1:B22)) -> 
A23: =IF(ISBLANK(B23),"",COUNTA($B$1:B23)) -> 
A24: =IF(ISBLANK(B24),"",COUNTA($B$1:B24)) -> 
A25: =IF(ISBLANK(B25),"",COUNTA($B$1:B25)) -> 
A26: =IF(ISBLANK(B26),"",COUNTA($B$1:B26)) -> 
A27: =IF(ISBLANK(B27),"",COUNTA($B$1:B27)) -> 
A28: =IF(ISBLANK(B28),"",COUNTA($B$1:B28)) -> 
A29: =IF(ISBLANK(B29),"",COUNTA($B$1:B29)) -> 
A30: =IF(ISBLANK(B30),"",COUNTA($B$1:B30)) -> 
A31: =IF(ISBLANK(B31),"",COUNTA($B$1:B31)) -> 
A32: =IF(ISBLANK(B32),"",COUNTA($B$1:B32)) -> 
A33: =IF(ISBLANK(B33),"",COUNTA($B$1:B33)) -> 
A34: =IF(ISBLANK(B34),"",COUNTA($B$1:B34)) -> 
A35: =IF(ISBLANK(B35),"",COUNTA($B$1:B35)) -> 
A36: =IF(ISBLANK(B36),"",COUNTA($B$1:B36)) -> 
A37: =IF(ISBLANK(B37),"",COUNTA($B$1:B37)) -> 
A38: =IF(ISBLANK(B38),"",COUNTA($B$1:B38)) -> 
A39: =IF(ISBLANK(B39),"",COUNTA($B$1:B39)) -> 
A40: =IF(ISBLANK(B40),"",COUNTA($B$1:B40)) -> 

Sheet Функции матриц
B1: =RANDBETWEEN(1,20) -> 6 | C1: =RANDBETWEEN(1,20) -> 12 | D1: 17 | G1: =RANDBETWEEN(1,20) -> 20 | H1: =RANDBETWEEN(1,20) -> 19 | I1: 16
A2: A= | B2: =RANDBETWEEN(1,20) -> 15 | C2: 18 | D2: 12 | F2: B= | G2: =RANDBETWEEN(1,20) -> 3 | H2: 1 | I2: 6
B3: 10 | C3: 17 | D3: 6 | G3: 12 | H3: 9 | I3: 4
B6: =TRANSPOSE(B1:D3) -> 6 | C6: 15 | D6: 10 | G6: =MMULT(B1:D3,G1:I3) -> 360 | H6: 279 | I6: 236
A7: Transp(A)= | B7: 12 | C7: 18 | D7: 17 | F7: A*B= | G7: 498 | H7: 411 | I7: 396
B8: 17 | C8: 12 | D8: 6 | G8: 323 | H8: 261 | I8: 286
B11: =MINVERSE(B1:D3) -> -0.09065155807 | C11: 0.2049102927 | D11: -0.1529745042
A12: A^(-1)= | B12: 0.0283286119 | C12: -0.1265344665 | D12: 0.1728045326 | F12: det(B)= | G12: =MDETERM(G1:I3) -> 380
B13: 0.07082152975 | C13: 0.01699716714 | D13: -0.06798866856

Sheet Статистические функции
A1: X | B1: Y
A2: =RANDBETWEEN(1,100) -> 91 | B2: =RANDBETWEEN(1,100) -> 68 | D2: Середнє Х | E2: =AVERAGE(A2:A31) -> 54.43333333
A3: =RANDBETWEEN(1,100) -> 71 | B3: 18 | D3: Дисперсія Х | E3: =_xlfn.VAR.S(A2:A31) -> 939.3574713
A4: 15 | B4: 3 | D4: Дисперсія Х (г) | E4: =_xlfn.VAR.P(A2:A31) -> 908.0455556
A5: 83 | B5: 79 | D5: s.e.(X) | E5: =_xlfn.STDEV.S(A2:A31) -> 30.64893915
A6: 71 | B6: 76 | D6: s.e.(X) (г) | E6: =_xlfn.STDEV.P(A2:A31) -> 30.13379424
A7: 47 | B7: 82
A8: 93 | B8: 95 | D8: Мода | E8: =_xlfn.MODE.SNGL(A2:A31) -> 71
A9: 63 | B9: 23 | D9: Медіана | E9: =MEDIAN(A2:A31) -> 61.5
A10: 52 | B10: 56
A11: 90 | B11: 97 | D11: Кореляція | E11: =CORREL(A2:A31,B2:B31) -> 0.3206359788
A12: 16 | B12: 11 | D12: К-т кореляції Пірсона | E12: =PEARSON(A2:A31,B2:B31) -> 0.3206359788
A13: 11 | B13: 94
A14: 7 | B14: 20
A15: 29 | B15: 47
A16: 80 | B16: 49
A17: 87 | B17: 78
A18: 68 | B18: 63
A19: 2 | B19: 23
A20: 62 | B20: 88
A21: 41 | B21: 83
A22: 33 | B22: 96
A23: 85 | B23: 36
A24: 48 | B24: 51
A25: 41 | B25: 58
A26: 8 | B26: 64
A27: 100 | B27: 32
A28: 77 | B28: 29
A29: 86 | B29: 60
A30: 15 | B30: 3
A31: 61 | B31: 58

Sheet Функции текстовые
A1: 12 | B1: клиентов | D1: =TEXT(A1,"#00,00") & " " & B1 -> 12,00 клиентов
A3: Длина этой строки | D3: =LEN(A3) & " " & E3 -> 17 знаков | E3: знаков
A4: =REPLACE(A3,1,5, "Длинная-предлинная длина") -> Длинная-предлинная длина этой строки | D4: =LEN(A4) & " " & E3 -> 36 знаков

Sheet Финансовые функции
A1: БС | B1: =FV(11%, 35,-2000,,1) -> 758328.8116
B2: =FV(11%, 35, -2000, -7500, 1) -> 1047640.194
B3: =FV(11%, 35, -2000, -7500, 0) -> 972490.4923
A5: ПЛТ | B5: =PMT(6%/12, 18*12, 0, 50000) -> -129.0811609
A7: СТАВКА | B7: =RATE(48, -200, 8000) -> 0.007701472488
A9: ВСД | B9: -100000 | D9: =IRR(B9:B14) -> 0.1107442575
B10: 10000
B11: 20000
B12: 30000
B13: 40000
B14: 45000
A16: АПЛ | B16: =SLN(8000,500,10) -> 750
A18: АСЧ | B18: =SYD(30000,7500,10,1) -> 4090.909091
B19: =SYD(30000,7500,10,10) -> 409.0909091
A21: ДДОБ | B21: =DDB(30000,7500,10,1) -> 6000
A23: НАКОПДОХОД | B23: =ACCRINT(DATE(1996,3,1),DATE(1996,9,1),DATE(1996,4,1), 7%, 1000, 2,0) -> 5.833333333
A25: СКИДКА | B25: =DISC(DATE(2003,2,15), DATE(2003,6,10),97.975,100,2) -> 0.06339130435
A28: БЗРАСПИС | B28: 0.21 | C28: =B28/12 -> 0.0175 | D28: =FVSCHEDULE(1000,C28:C32) -> 1084.376479
B29: 0.19 | C29: =B29/12 -> 0.01583333333
B30: 0.18 | C30: 0.015
B31: 0.2 | C31: 0.01666666667
B32: 0.2 | C32: 0.01666666667

Sheet Сценарии
A1: Описание | B1: Сумма, грн.
A2: Цена услуг | B2: 200
A3: Спрос | B3: 15300
A4: Доход | B4: =B2*B3 -> 3060000
A5: Зарплата | B5: 230000
A6: Кол-во сотрудников | B6: 9
A7: Затраты | B7: =B5*B6 -> 2070000
A8: Прибыль | B8: =B4-B7 -> 990000

Sheet Demographics
A1: JURISDICTION NAME,COUNT PARTICIPANTS,COUNT FEMALE,PERCENT FEMALE,COUNT MALE,PERCENT MALE,COUNT GENDER UNKNOWN,PERCENT GENDER UNKNOWN,COUNT GENDER TOTAL,PERCENT GENDER TOTAL,COUNT PACIFIC ISLANDER,PERCENT PACIFIC ISLANDER,COUNT HISPANIC LATINO,PERCENT HISPANIC LATINO,COUNT AMERICAN INDIAN,PERCENT AMERICAN INDIAN,COUNT ASIAN NON HISPANIC,PERCENT ASIAN NON HISPANIC,COUNT WHITE NON HISPANIC,PERCENT WHITE NON HISPANIC,COUNT BLACK NON HISPANIC,PERCENT BLACK NON HISPANIC,COUNT OTHER ETHNICITY,PERCENT OTHER ETHNICITY,COUNT ETHNICITY UNKNOWN,PERCENT ETHNICITY UNKNOWN,COUNT ETHNICITY TOTAL,PERCENT ETHNICITY TOTAL,COUNT PERMANENT RESIDENT ALIEN,PERCENT PERMANENT RESIDENT ALIEN,COUNT US CITIZEN,PERCENT US CITIZEN,COUNT OTHER CITIZEN STATUS,PERCENT OTHER CITIZEN STATUS,COUNT CITIZEN STATUS UNKNOWN,PERCENT CITIZEN STATUS UNKNOWN,COUNT CITIZEN STATUS TOTAL,PERCENT CITIZEN STATUS TOTAL,COUNT RECEIVES PUBLIC ASSISTANCE,PERCENT RECEIVES PUBLIC ASSISTANCE,COUNT NRECEIVES PUBLIC ASSISTANCE,PERCENT NRECEIVES PUBLIC ASSISTANCE,COUNT PUBLIC ASSISTANCE UNKNOWN,PERCENT PUBLIC ASSISTANCE UNKNOWN,COUNT PUBLIC ASSISTANCE TOTAL,PERCENT PUBLIC ASSISTANCE TOTAL
A2: 10001,44,22,0.5,22,0.5,0,0,44,100,0,0,16,0.36,0,0,3,0.07,1,0.02,21,0.48,3,0.07,0,0,44,100,2,0.05,42,0.95,0,0,0,0,44,100,20,0.45,24,0.55,0,0,44,100
A3: 10002,35,19,0.54,16,0.46,0,0,35,100,0,0,1,0.03,0,0,28,0.8,6,0.17,0,0,0,0,0,0,35,100,2,0.06,33,0.94,0,0,0,0,35,100,2,0.06,33,0.94,0,0,35,100
A4: 10003,1,1,1,0,0,0,0,1,100,0,0,0,0,0,0,1,1,0,0,0,0,0,0,0,0,1,100,0,0,1,1,0,0,0,0,1,100,0,0,1,1,0,0,1,100
A5: 10004,0,0,0,0,0,0,0,0,0,0,0,0,0,0,0,0,0,0,0,0,0,0,0,0,0,0,0,0,0,0,0,0,0,0,0,0,0,0,0,0,0,0,0,0,0
A6: 10005,2,2,1,0,0,0,0,2,100,0,0,0,0,0,0,1,0.5,0,0,1,0.5,0,0,0,0,2,100,1,0.5,1,0.5,0,0,0,0,2,100,0,0,2,1,0,0,2,100
A7: 10006,6,2,0.33,4,0.67,0,0,6,100,0,0,2,0.33,0,0,0,0,1,0.17,3,0.5,0,0,0,0,6,100,0,0,6,1,0,0,0,0,6,100,0,0,6,1,0,0,6,100
A8: 10007,1,0,0,1,1,0,0,1,100,0,0,0,0,0,0,1,1,0,0,0,0,0,0,0,0,1,100,0,0,1,1,0,0,0,0,1,100,1,1,0,0,0,0,1,100
A9: 10009,2,0,0,2,1,0,0,2,100,0,0,0,0,0,0,2,1,0,0,0,0,0,0,0,0,2,100,0,0,2,1,0,0,0,0,2,100,0,0,2,1,0,0,2,100
A10: 10010,0,0,0,0,0,0,0,0,0,0,0,0,0,0,0,0,0,0,0,0,0,0,0,0,0,0,0,0,0,0,0,0,0,0,0,0,0,0,0,0,0,0,0,0,0
A11: 10011,3,2,0.67,1,0.33,0,0,3,100,0,0,1,0.33,0,0,0,0,0,0,1,0.33,1,0.33,0,0,3,99,0,0,3,1,0,0,0,0,3,100,0,0,3,1,0,0,3,100
A12: 10012,0,0,0,0,0,0,0,0,0,0,0,0,0,0,0,0,0,0,0,0,0,0,0,0,0,0,0,0,0,0,0,0,0,0,0,0,0,0,0,0,0,0,0,0,0
A13: 10013,8,1,0.13,7,0.88,0,0,8,100,0,0,0,0,0,0,8,1,0,0,0,0,0,0,0,0,8,100,0,0,8,1,0,0,0,0,8,100,1,0.13,7,0.88,0,0,8,100
A14: 10014,0,0,0,0,0,0,0,0,0,0,0,0,0,0,0,0,0,0,0,0,0,0,0,0,0,0,0,0,0,0,0,0,0,0,0,0,0,0,0,0,0,0,0,0,0
A15: 10016,17,12,0.71,5,0.29,0,0,17,100,0,0,9,0.53,0,0,0,0,0,0,8,0.47,0,0,0,0,17,100,0,0,17,1,0,0,0,0,17,100,9,0.53,8,0.47,0,0,17,100
A16: 10017,0,0,0,0,0,0,0,0,0,0,0,0,0,0,0,0,0,0,0,0,0,0,0,0,0,0,0,0,0,0,0,0,0,0,0,0,0,0,0,0,0,0,0,0,0
A17: 10018,3,2,0.67,1,0.33,0,0,3,100,0,0,0,0,0,0,3,1,0,0,0,0,0,0,0,0,3,100,1,0.33,2,0.67,0,0,0,0,3,100,0,0,3,1,0,0,3,100
A18: 10019,0,0,0,0,0,0,0,0,0,0,0,0,0,0,0,0,0,0,0,0,0,0,0,0,0,0,0,0,0,0,0,0,0,0,0,0,0,0,0,0,0,0,0,0,0
A19: 10020,0,0,0,0,0,0,0,0,0,0,0,0,0,0,0,0,0,0,0,0,0,0,0,0,0,0,0,0,0,0,0,0,0,0,0,0,0,0,0,0,0,0,0,0,0
A20: 10021,0,0,0,0,0,0,0,0,0,0,0,0,0,0,0,0,0,0,0,0,0,0,0,0,0,0,0,0,0,0,0,0,0,0,0,0,0,0,0,0,0,0,0,0,0
A21: 10022,1,1,1,0,0,0,0,1,100,0,0,0,0,0,0,1,1,0,0,0,0,0,0,0,0,1,100,0,0,1,1,0,0,0,0,1,100,0,0,1,1,0,0,1,100
A22: 10023,7,5,0.71,2,0.29,0,0,7,100,0,0,3,0.43,0,0,1,0.14,0,0,3,0.43,0,0,0,0,7,100,0,0,7,1,0,0,0,0,7,100,5,0.71,2,0.29,0,0,7,100
A23: 10024,4,4,1,0,0,0,0,4,100,0,0,0,0,0,0,0,0,3,0.75,0,0,0,0,1,0.25,4,100,0,0,4,1,0,0,0,0,4,100,1,0.25,3,0.75,0,0,4,100
A24: 10025,27,17,0.63,10,0.37,0,0,27,100,0,0,15,0.56,0,0,0,0,0,0,11,0.41,1,0.04,0,0,27,100,3,0.11,24,0.89,0,0,0,0,27,100,8,0.3,19,0.7,0,0,27,100
A25: 10026,0,0,0,0,0,0,0,0,0,0,0,0,0,0,0,0,0,0,0,0,0,0,0,0,0,0,0,0,0,0,0,0,0,0,0,0,0,0,0,0,0,0,0,0,0
A26: 10027,7,4,0.57,3,0.43,0,0,7,100,0,0,1,0.14,0,0,1,0.14,0,0,4,0.57,1,0.14,0,0,7,99,1,0.14,6,0.86,0,0,0,0,7,100,1,0.14,6,0.86,0,0,7,100
A27: 10028,0,0,0,0,0,0,0,0,0,0,0,0,0,0,0,0,0,0,0,0,0,0,0,0,0,0,0,0,0,0,0,0,0,0,0,0,0,0,0,0,0,0,0,0,0
A28: 10029,20,13,0.65,7,0.35,0,0,20,100,0,0,4,0.2,0,0,0,0,0,0,15,0.75,1,0.05,0,0,20,100,0,0,20,1,0,0,0,0,20,100,8,0.4,12,0.6,0,0,20,100
A29: 10030,0,0,0,0,0,0,0,0,0,0,0,0,0,0,0,0,0,0,0,0,0,0,0,0,0,0,0,0,0,0,0,0,0,0,0,0,0,0,0,0,0,0,0,0,0
A30: 10031,0,0,0,0,0,0,0,0,0,0,0,0,0,0,0,0,0,0,0,0,0,0,0,0,0,0,0,0,0,0,0,0,0,0,0,0,0,0,0,0,0,0,0,0,0
A31: 10032,13,4,0.31,9,0.69,0,0,13,100,0,0,9,0.69,0,0,1,0.08,0,0,2,0.15,1,0.08,0,0,13,100,1,0.08,12,0.92,0,0,0,0,13,100,5,0.38,8,0.62,0,0,13,100
A32: 10033,0,0,0,0,0,0,0,0,0,0,0,0,0,0,0,0,0,0,0,0,0,0,0,0,0,0,0,0,0,0,0,0,0,0,0,0,0,0,0,0,0,0,0,0,0
A33: 10034,0,0,0,0,0,0,0,0,0,0,0,0,0,0,0,0,0,0,0,0,0,0,0,0,0,0,0,0,0,0,0,0,0,0,0,0,0,0,0,0,0,0,0,0,0
A34: 10035,0,0,0,0,0,0,0,0,0,0,0,0,0,0,0,0,0,0,0,0,0,0,0,0,0,0,0,0,0,0,0,0,0,0,0,0,0,0,0,0,0,0,0,0,0
A35: 10036,2,2,1,0,0,0,0,2,100,0,0,0,0,0,0,1,0.5,0,0,1,0.5,0,0,0,0,2,100,0,0,2,1,0,0,0,0,2,100,2,1,0,0,0,0,2,100
A36: 10037,0,0,0,0,0,0,0,0,0,0,0,0,0,0,0,0,0,0,0,0,0,0,0,0,0,0,0,0,0,0,0,0,0,0,0,0,0,0,0,0,0,0,0,0,0
A37: 10038,16,11,0.69,5,0.31,0,0,16,100,0,0,2,0.13,0,0,9,0.56,0,0,5,0.31,0,0,0,0,16,100,1,0.06,15,0.94,0,0,0,0,16,100,3,0.19,13,0.81,0,0,16,100
A38: 10039,0,0,0,0,0,0,0,0,0,0,0,0,0,0,0,0,0,0,0,0,0,0,0,0,0,0,0,0,0,0,0,0,0,0,0,0,0,0,0,0,0,0,0,0,0
A39: 10040,5,4,0.8,1,0.2,0,0,5,100,0,0,3,0.6,0,0,1,0.2,0,0,1,0.2,0,0,0,0,5,100,0,0,5,1,0,0,0,0,5,100,2,0.4,3,0.6,0,0,5,100
A40: 10044,0,0,0,0,0,0,0,0,0,0,0,0,0,0,0,0,0,0,0,0,0,0,0,0,0,0,0,0,0,0,0,0,0,0,0,0,0,0,0,0,0,0,0,0,0
A41: 10045,0,0,0,0,0,0,0,0,0,0,0,0,0,0,0,0,0,0,0,0,0,0,0,0,0,0,0,0,0,0,0,0,0,0,0,0,0,0,0,0,0,0,0,0,0
A42: 10065,0,0,0,0,0,0,0,0,0,0,0,0,0,0,0,0,0,0,0,0,0,0,0,0,0,0,0,0,0,0,0,0,0,0,0,0,0,0,0,0,0,0,0,0,0
A43: 10115,0,0,0,0,0,0,0,0,0,0,0,0,0,0,0,0,0,0,0,0,0,0,0,0,0,0,0,0,0,0,0,0,0,0,0,0,0,0,0,0,0,0,0,0,0
A44: 10119,0,0,0,0,0,0,0,0,0,0,0,0,0,0,0,0,0,0,0,0,0,0,0,0,0,0,0,0,0,0,0,0,0,0,0,0,0,0,0,0,0,0,0,0,0
A45: 10128,0,0,0,0,0,0,0,0,0,0,0,0,0,0,0,0,0,0,0,0,0,0,0,0,0,0,0,0,0,0,0,0,0,0,0,0,0,0,0,0,0,0,0,0,0
A46: 10154,0,0,0,0,0,0,0,0,0,0,0,0,0,0,0,0,0,0,0,0,0,0,0,0,0,0,0,0,0,0,0,0,0,0,0,0,0,0,0,0,0,0,0,0,0
A47: 10278,0,0,0,0,0,0,0,0,0,0,0,0,0,0,0,0,0,0,0,0,0,0,0,0,0,0,0,0,0,0,0,0,0,0,0,0,0,0,0,0,0,0,0,0,0
A48: 10280,0,0,0,0,0,0,0,0,0,0,0,0,0,0,0,0,0,0,0,0,0,0,0,0,0,0,0,0,0,0,0,0,0,0,0,0,0,0,0,0,0,0,0,0,0
A49: 10301,0,0,0,0,0,0,0,0,0,0,0,0,0,0,0,0,0,0,0,0,0,0,0,0,0,0,0,0,0,0,0,0,0,0,0,0,0,0,0,0,0,0,0,0,0
A50: 10302,0,0,0,0,0,0,0,0,0,0,0,0,0,0,0,0,0,0,0,0,0,0,0,0,0,0,0,0,0,0,0,0,0,0,0,0,0,0,0,0,0,0,0,0,0
A51: 10303,0,0,0,0,0,0,0,0,0,0,0,0,0,0,0,0,0,0,0,0,0,0,0,0,0,0,0,0,0,0,0,0,0,0,0,0,0,0,0,0,0,0,0,0,0
A52: 10304,0,0,0,0,0,0,0,0,0,0,0,0,0,0,0,0,0,0,0,0,0,0,0,0,0,0,0,0,0,0,0,0,0,0,0,0,0,0,0,0,0,0,0,0,0
A53: 10305,0,0,0,0,0,0,0,0,0,0,0,0,0,0,0,0,0,0,0,0,0,0,0,0,0,0,0,0,0,0,0,0,0,0,0,0,0,0,0,0,0,0,0,0,0
A54: 10306,1,0,0,1,1,0,0,1,100,0,0,0,0,0,0,1,1,0,0,0,0,0,0,0,0,1,100,0,0,1,1,0,0,0,0,1,100,0,0,1,1,0,0,1,100
A55: 10307,0,0,0,0,0,0,0,0,0,0,0,0,0,0,0,0,0,0,0,0,0,0,0,0,0,0,0,0,0,0,0,0,0,0,0,0,0,0,0,0,0,0,0,0,0
A56: 10309,0,0,0,0,0,0,0,0,0,0,0,0,0,0,0,0,0,0,0,0,0,0,0,0,0,0,0,0,0,0,0,0,0,0,0,0,0,0,0,0,0,0,0,0,0
A57: 10310,0,0,0,0,0,0,0,0,0,0,0,0,0,0,0,0,0,0,0,0,0,0,0,0,0,0,0,0,0,0,0,0,0,0,0,0,0,0,0,0,0,0,0,0,0
A58: 10312,0,0,0,0,0,0,0,0,0,0,0,0,0,0,0,0,0,0,0,0,0,0,0,0,0,0,0,0,0,0,0,0,0,0,0,0,0,0,0,0,0,0,0,0,0
A59: 10314,0,0,0,0,0,0,0,0,0,0,0,0,0,0,0,0,0,0,0,0,0,0,0,0,0,0,0,0,0,0,0,0,0,0,0,0,0,0,0,0,0,0,0,0,0
A60: 10451,41,21,0.51,20,0.49,0,0,41,100,0,0,22,0.54,0,0,1,0.02,0,0,15,0.37,2,0.05,1,0.02,41,100,3,0.07,38,0.93,0,0,0,0,41,100,12,0.29,29,0.71,0,0,41,100
A61: 10452,17,12,0.71,5,0.29,0,0,17,100,0,0,10,0.59,0,0,0,0,0,0,5,0.29,1,0.06,1,0.06,17,100,0,0,17,1,0,0,0,0,17,100,3,0.18,14,0.82,0,0,17,100
A62: 10453,14,7,0.5,7,0.5,0,0,14,100,0,0,6,0.43,0,0,0,0,0,0,8,0.57,0,0,0,0,14,100,2,0.14,12,0.86,0,0,0,0,14,100,8,0.57,6,0.43,0,0,14,100
A63: 10454,18,8,0.44,10,0.56,0,0,18,100,0,0,7,0.39,0,0,1,0.06,0,0,10,0.56,0,0,0,0,18,100,1,0.06,17,0.94,0,0,0,0,18,100,8,0.44,10,0.56,0,0,18,100
A64: 10455,27,17,0.63,10,0.37,0,0,27,100,0,0,5,0.19,0,0,0,0,0,0,20,0.74,2,0.07,0,0,27,100,1,0.04,25,0.93,1,0.04,0,0,27,100,7,0.26,20,0.74,0,0,27,100
A65: 10456,5,3,0.6,2,0.4,0,0,5,100,0,0,3,0.6,1,0.2,0,0,0,0,0,0,1,0.2,0,0,5,100,0,0,5,1,0,0,0,0,5,100,1,0.2,4,0.8,0,0,5,100
A66: 10457,0,0,0,0,0,0,0,0,0,0,0,0,0,0,0,0,0,0,0,0,0,0,0,0,0,0,0,0,0,0,0,0,0,0,0,0,0,0,0,0,0,0,0,0,0
A67: 10458,52,25,0.48,27,0.52,0,0,52,100,0,0,24,0.46,0,0,0,0,1,0.02,23,0.44,3,0.06,1,0.02,52,100,3,0.06,48,0.92,1,0.02,0,0,52,100,19,0.37,33,0.63,0,0,52,100
A68: 10459,7,5,0.71,2,0.29,0,0,7,100,0,0,3,0.43,0,0,0,0,0,0,4,0.57,0,0,0,0,7,100,2,0.29,5,0.71,0,0,0,0,7,100,3,0.43,4,0.57,0,0,7,100
A69: 10460,27,20,0.74,7,0.26,0,0,27,100,0,0,9,0.33,0,0,0,0,1,0.04,15,0.56,2,0.07,0,0,27,100,2,0.07,25,0.93,0,0,0,0,27,100,14,0.52,13,0.48,0,0,27,100
A70: 10461,49,26,0.53,23,0.47,0,0,49,100,1,0.02,21,0.43,1,0.02,1,0.02,1,0.02,18,0.37,5,0.1,1,0.02,49,100,1,0.02,48,0.98,0,0,0,0,49,100,21,0.43,28,0.57,0,0,49,100
A71: 10462,3,2,0.67,1,0.33,0,0,3,100,0,0,1,0.33,0,0,0,0,0,0,2,0.67,0,0,0,0,3,100,0,0,2,0.67,1,0.33,0,0,3,100,3,1,0,0,0,0,3,100
A72: 10463,59,33,0.56,26,0.44,0,0,59,100,0,0,36,0.61,0,0,0,0,2,0.03,18,0.31,3,0.05,0,0,59,100,3,0.05,54,0.92,2,0.03,0,0,59,100,20,0.34,39,0.66,0,0,59,100
A73: 10464,15,7,0.47,8,0.53,0,0,15,100,0,0,7,0.47,0,0,1,0.07,0,0,7,0.47,0,0,0,0,15,100,0,0,15,1,0,0,0,0,15,100,7,0.47,8,0.53,0,0,15,100
A74: 10465,21,17,0.81,4,0.19,0,0,21,100,0,0,14,0.67,0,0,1,0.05,4,0.19,2,0.1,0,0,0,0,21,100,1,0.05,20,0.95,0,0,0,0,21,100,5,0.24,16,0.76,0,0,21,100
A75: 10466,65,39,0.6,26,0.4,0,0,65,100,1,0.02,14,0.22,0,0,0,0,0,0,50,0.77,0,0,0,0,65,100,3,0.05,62,0.95,0,0,0,0,65,100,17,0.26,48,0.74,0,0,65,100
A76: 10467,106,65,0.61,41,0.39,0,0,106,100,0,0,51,0.48,1,0.01,4,0.04,1,0.01,47,0.44,2,0.02,0,0,106,100,10,0.09,94,0.89,2,0.02,0,0,106,100,33,0.31,73,0.69,0,0,106,100
A77: 10468,81,46,0.57,35,0.43,0,0,81,100,0,0,35,0.43,0,0,3,0.04,0,0,36,0.44,7,0.09,0,0,81,100,2,0.02,79,0.98,0,0,0,0,81,100,23,0.28,58,0.72,0,0,81,100
A78: 10469,10,7,0.7,3,0.3,0,0,10,100,0,0,4,0.4,0,0,0,0,1,0.1,5,0.5,0,0,0,0,10,100,2,0.2,8,0.8,0,0,0,0,10,100,4,0.4,6,0.6,0,0,10,100
A79: 10471,43,24,0.56,19,0.44,0,0,43,100,0,0,27,0.63,0,0,1,0.02,2,0.05,12,0.28,1,0.02,0,0,43,100,2,0.05,41,0.95,0,0,0,0,43,100,17,0.4,26,0.6,0,0,43,100
A80: 10472,0,0,0,0,0,0,0,0,0,0,0,0,0,0,0,0,0,0,0,0,0,0,0,0,0,0,0,0,0,0,0,0,0,0,0,0,0,0,0,0,0,0,0,0,0
A81: 10473,0,0,0,0,0,0,0,0,0,0,0,0,0,0,0,0,0,0,0,0,0,0,0,0,0,0,0,0,0,0,0,0,0,0,0,0,0,0,0,0,0,0,0,0,0
A82: 10474,0,0,0,0,0,0,0,0,0,0,0,0,0,0,0,0,0,0,0,0,0,0,0,0,0,0,0,0,0,0,0,0,0,0,0,0,0,0,0,0,0,0,0,0,0
A83: 10475,20,12,0.6,8,0.4,0,0,20,100,0,0,7,0.35,0,0,0,0,1,0.05,12,0.6,0,0,0,0,20,100,2,0.1,18,0.9,0,0,0,0,20,100,8,0.4,12,0.6,0,0,20,100
A84: 10514,0,0,0,0,0,0,0,0,0,0,0,0,0,0,0,0,0,0,0,0,0,0,0,0,0,0,0,0,0,0,0,0,0,0,0,0,0,0,0,0,0,0,0,0,0
A85: 10543,0,0,0,0,0,0,0,0,0,0,0,0,0,0,0,0,0,0,0,0,0,0,0,0,0,0,0,0,0,0,0,0,0,0,0,0,0,0,0,0,0,0,0,0,0
A86: 10553,0,0,0,0,0,0,0,0,0,0,0,0,0,0,0,0,0,0,0,0,0,0,0,0,0,0,0,0,0,0,0,0,0,0,0,0,0,0,0,0,0,0,0,0,0
A87: 10573,0,0,0,0,0,0,0,0,0,0,0,0,0,0,0,0,0,0,0,0,0,0,0,0,0,0,0,0,0,0,0,0,0,0,0,0,0,0,0,0,0,0,0,0,0
A88: 10701,0,0,0,0,0,0,0,0,0,0,0,0,0,0,0,0,0,0,0,0,0,0,0,0,0,0,0,0,0,0,0,0,0,0,0,0,0,0,0,0,0,0,0,0,0
A89: 10705,0,0,0,0,0,0,0,0,0,0,0,0,0,0,0,0,0,0,0,0,0,0,0,0,0,0,0,0,0,0,0,0,0,0,0,0,0,0,0,0,0,0,0,0,0
A90: 10911,0,0,0,0,0,0,0,0,0,0,0,0,0,0,0,0,0,0,0,0,0,0,0,0,0,0,0,0,0,0,0,0,0,0,0,0,0,0,0,0,0,0,0,0,0
A91: 10965,0,0,0,0,0,0,0,0,0,0,0,0,0,0,0,0,0,0,0,0,0,0,0,0,0,0,0,0,0,0,0,0,0,0,0,0,0,0,0,0,0,0,0,0,0
A92: 10977,0,0,0,0,0,0,0,0,0,0,0,0,0,0,0,0,0,0,0,0,0,0,0,0,0,0,0,0,0,0,0,0,0,0,0,0,0,0,0,0,0,0,0,0,0
A93: 11001,0,0,0,0,0,0,0,0,0,0,0,0,0,0,0,0,0,0,0,0,0,0,0,0,0,0,0,0,0,0,0,0,0,0,0,0,0,0,0,0,0,0,0,0,0
A94: 11021,0,0,0,0,0,0,0,0,0,0,0,0,0,0,0,0,0,0,0,0,0,0,0,0,0,0,0,0,0,0,0,0,0,0,0,0,0,0,0,0,0,0,0,0,0
A95: 11050,0,0,0,0,0,0,0,0,0,0,0,0,0,0,0,0,0,0,0,0,0,0,0,0,0,0,0,0,0,0,0,0,0,0,0,0,0,0,0,0,0,0,0,0,0
A96: 11101,1,0,0,1,1,0,0,1,100,0,0,0,0,0,0,1,1,0,0,0,0,0,0,0,0,1,100,0,0,1,1,0,0,0,0,1,100,0,0,1,1,0,0,1,100
A97: 11102,0,0,0,0,0,0,0,0,0,0,0,0,0,0,0,0,0,0,0,0,0,0,0,0,0,0,0,0,0,0,0,0,0,0,0,0,0,0,0,0,0,0,0,0,0
A98: 11103,0,0,0,0,0,0,0,0,0,0,0,0,0,0,0,0,0,0,0,0,0,0,0,0,0,0,0,0,0,0,0,0,0,0,0,0,0,0,0,0,0,0,0,0,0
A99: 11104,0,0,0,0,0,0,0,0,0,0,0,0,0,0,0,0,0,0,0,0,0,0,0,0,0,0,0,0,0,0,0,0,0,0,0,0,0,0,0,0,0,0,0,0,0
A100: 11105,0,0,0,0,0,0,0,0,0,0,0,0,0,0,0,0,0,0,0,0,0,0,0,0,0,0,0,0,0,0,0,0,0,0,0,0,0,0,0,0,0,0,0,0,0
A101: 11106,0,0,0,0,0,0,0,0,0,0,0,0,0,0,0,0,0,0,0,0,0,0,0,0,0,0,0,0,0,0,0,0,0,0,0,0,0,0,0,0,0,0,0,0,0
A102: 11111,0,0,0,0,0,0,0,0,0,0,0,0,0,0,0,0,0,0,0,0,0,0,0,0,0,0,0,0,0,0,0,0,0,0,0,0,0,0,0,0,0,0,0,0,0
A103: 11112,0,0,0,0,0,0,0,0,0,0,0,0,0,0,0,0,0,0,0,0,0,0,0,0,0,0,0,0,0,0,0,0,0,0,0,0,0,0,0,0,0,0,0,0,0
A104: 11201,11,6,0.55,5,0.45,0,0,11,100,0,0,2,0.18,0,0,1,0.09,1,0.09,5,0.45,2,0.18,0,0,11,99,0,0,11,1,0,0,0,0,11,100,2,0.18,9,0.82,0,0,11,100
A105: 11202,0,0,0,0,0,0,0,0,0,0,0,0,0,0,0,0,0,0,0,0,0,0,0,0,0,0,0,0,0,0,0,0,0,0,0,0,0,0,0,0,0,0,0,0,0
A106: 11203,15,12,0.8,3,0.2,0,0,15,100,0,0,2,0.13,0,0,1,0.07,2,0.13,8,0.53,2,0.13,0,0,15,99,1,0.07,14,0.93,0,0,0,0,15,100,1,0.07,14,0.93,0,0,15,100
A107: 11204,37,17,0.46,20,0.54,0,0,37,100,0,0,0,0,0,0,0,0,36,0.97,0,0,1,0.03,0,0,37,100,1,0.03,36,0.97,0,0,0,0,37,100,19,0.51,18,0.49,0,0,37,100
A108: 11205,5,5,1,0,0,0,0,5,100,0,0,0,0,0,0,0,0,4,0.8,0,0,1,0.2,0,0,5,100,0,0,5,1,0,0,0,0,5,100,3,0.6,2,0.4,0,0,5,100
A109: 11206,13,3,0.23,10,0.77,0,0,13,100,0,0,0,0,0,0,0,0,13,1,0,0,0,0,0,0,13,100,0,0,13,1,0,0,0,0,13,100,9,0.69,4,0.31,0,0,13,100
A110: 11207,0,0,0,0,0,0,0,0,0,0,0,0,0,0,0,0,0,0,0,0,0,0,0,0,0,0,0,0,0,0,0,0,0,0,0,0,0,0,0,0,0,0,0,0,0
A111: 11208,0,0,0,0,0,0,0,0,0,0,0,0,0,0,0,0,0,0,0,0,0,0,0,0,0,0,0,0,0,0,0,0,0,0,0,0,0,0,0,0,0,0,0,0,0
A112: 11209,0,0,0,0,0,0,0,0,0,0,0,0,0,0,0,0,0,0,0,0,0,0,0,0,0,0,0,0,0,0,0,0,0,0,0,0,0,0,0,0,0,0,0,0,0
A113: 11210,36,12,0.33,24,0.67,0,0,36,100,0,0,0,0,0,0,0,0,33,0.92,0,0,3,0.08,0,0,36,100,0,0,36,1,0,0,0,0,36,100,11,0.31,25,0.69,0,0,36,100
A114: 11211,34,31,0.91,3,0.09,0,0,34,100,0,0,2,0.06,0,0,1,0.03,28,0.82,1,0.03,2,0.06,0,0,34,100,0,0,34,1,0,0,0,0,34,100,22,0.65,12,0.35,0,0,34,100
A115: 11212,10,8,0.8,2,0.2,0,0,10,100,0,0,1,0.1,0,0,1,0.1,0,0,7,0.7,1,0.1,0,0,10,100,1,0.1,9,0.9,0,0,0,0,10,100,0,0,10,1,0,0,10,100
A116: 11213,38,17,0.45,21,0.55,0,0,38,100,0,0,0,0,0,0,0,0,32,0.84,0,0,6,0.16,0,0,38,100,1,0.03,37,0.97,0,0,0,0,38,100,10,0.26,28,0.74,0,0,38,100
A117: 11214,10,7,0.7,3,0.3,0,0,10,100,0,0,0,0,0,0,5,0.5,4,0.4,1,0.1,0,0,0,0,10,100,0,0,10,1,0,0,0,0,10,100,2,0.2,8,0.8,0,0,10,100
A118: 11215,0,0,0,0,0,0,0,0,0,0,0,0,0,0,0,0,0,0,0,0,0,0,0,0,0,0,0,0,0,0,0,0,0,0,0,0,0,0,0,0,0,0,0,0,0
A119: 11216,0,0,0,0,0,0,0,0,0,0,0,0,0,0,0,0,0,0,0,0,0,0,0,0,0,0,0,0,0,0,0,0,0,0,0,0,0,0,0,0,0,0,0,0,0
A120: 11217,0,0,0,0,0,0,0,0,0,0,0,0,0,0,0,0,0,0,0,0,0,0,0,0,0,0,0,0,0,0,0,0,0,0,0,0,0,0,0,0,0,0,0,0,0
A121: 11218,111,97,0.87,14,0.13,0,0,111,100,0,0,1,0.01,0,0,3,0.03,95,0.86,6,0.05,6,0.05,0,0,111,100,8,0.07,102,0.92,1,0.01,0,0,111,100,51,0.46,60,0.54,0,0,111,100
A122: 11219,214,182,0.85,32,0.15,0,0,214,100,0,0,1,0,0,0,1,0,205,0.96,0,0,6,0.03,1,0,214,99,2,0.01,212,0.99,0,0,0,0,214,100,112,0.52,102,0.48,0,0,214,100
A123: 11220,8,1,0.13,7,0.88,0,0,8,100,0,0,0,0,0,0,1,0.13,6,0.75,0,0,1,0.13,0,0,8,100,0,0,8,1,0,0,0,0,8,100,5,0.63,3,0.38,0,0,8,100
A124: 11221,0,0,0,0,0,0,0,0,0,0,0,0,0,0,0,0,0,0,0,0,0,0,0,0,0,0,0,0,0,0,0,0,0,0,0,0,0,0,0,0,0,0,0,0,0
A125: 11222,0,0,0,0,0,0,0,0,0,0,0,0,0,0,0,0,0,0,0,0,0,0,0,0,0,0,0,0,0,0,0,0,0,0,0,0,0,0,0,0,0,0,0,0,0
A126: 11223,109,53,0.49,56,0.51,0,0,109,100,0,0,1,0.01,0,0,7,0.06,95,0.87,1,0.01,5,0.05,0,0,109,100,6,0.06,102,0.94,1,0.01,0,0,109,100,20,0.18,89,0.82,0,0,109,100
A127: 11224,93,53,0.57,40,0.43,0,0,93,100,0,0,14,0.15,0,0,7,0.08,4,0.04,60,0.65,8,0.09,0,0,93,100,6,0.06,86,0.92,1,0.01,0,0,93,99,28,0.3,65,0.7,0,0,93,100
A128: 11225,52,52,1,0,0,0,0,52,100,0,0,0,0,0,0,0,0,52,1,0,0,0,0,0,0,52,100,0,0,52,1,0,0,0,0,52,100,22,0.42,30,0.58,0,0,52,100
A129: 11226,10,7,0.7,3,0.3,0,0,10,100,0,0,6,0.6,0,0,0,0,0,0,4,0.4,0,0,0,0,10,100,0,0,10,1,0,0,0,0,10,100,4,0.4,6,0.6,0,0,10,100
A130: 11228,0,0,0,0,0,0,0,0,0,0,0,0,0,0,0,0,0,0,0,0,0,0,0,0,0,0,0,0,0,0,0,0,0,0,0,0,0,0,0,0,0,0,0,0,0
A131: 11229,52,32,0.62,20,0.38,0,0,52,100,0,0,2,0.04,0,0,5,0.1,39,0.75,2,0.04,3,0.06,1,0.02,52,100,3,0.06,49,0.94,0,0,0,0,52,100,5,0.1,47,0.9,0,0,52,100
A132: 11230,248,194,0.78,54,0.22,0,0,248,100,0,0,1,0,0,0,7,0.03,216,0.87,2,0.01,17,0.07,5,0.02,248,100,3,0.01,245,0.99,0,0,0,0,248,100,42,0.17,206,0.83,0,0,248,100
A133: 11231,0,0,0,0,0,0,0,0,0,0,0,0,0,0,0,0,0,0,0,0,0,0,0,0,0,0,0,0,0,0,0,0,0,0,0,0,0,0,0,0,0,0,0,0,0
A134: 11232,0,0,0,0,0,0,0,0,0,0,0,0,0,0,0,0,0,0,0,0,0,0,0,0,0,0,0,0,0,0,0,0,0,0,0,0,0,0,0,0,0,0,0,0,0
A135: 11233,14,6,0.43,8,0.57,0,0,14,100,0,0,0,0,0,0,0,0,4,0.29,9,0.64,1,0.07,0,0,14,100,0,0,14,1,0,0,0,0,14,100,5,0.36,9,0.64,0,0,14,100
A136: 11234,59,29,0.49,30,0.51,0,0,59,100,0,0,8,0.14,0,0,0,0,37,0.63,10,0.17,4,0.07,0,0,59,100,1,0.02,58,0.98,0,0,0,0,59,100,2,0.03,57,0.97,0,0,59,100
A137: 11235,50,17,0.34,33,0.66,0,0,50,100,0,0,7,0.14,0,0,4,0.08,36,0.72,2,0.04,1,0.02,0,0,50,100,1,0.02,48,0.96,1,0.02,0,0,50,100,4,0.08,46,0.92,0,0,50,100
A138: 11236,7,3,0.43,4,0.57,0,0,7,100,0,0,0,0,0,0,0,0,1,0.14,5,0.71,0,0,1,0.14,7,99,2,0.29,5,0.71,0,0,0,0,7,100,0,0,7,1,0,0,7,100
A139: 11237,0,0,0,0,0,0,0,0,0,0,0,0,0,0,0,0,0,0,0,0,0,0,0,0,0,0,0,0,0,0,0,0,0,0,0,0,0,0,0,0,0,0,0,0,0
A140: 11238,0,0,0,0,0,0,0,0,0,0,0,0,0,0,0,0,0,0,0,0,0,0,0,0,0,0,0,0,0,0,0,0,0,0,0,0,0,0,0,0,0,0,0,0,0
A141: 11239,0,0,0,0,0,0,0,0,0,0,0,0,0,0,0,0,0,0,0,0,0,0,0,0,0,0,0,0,0,0,0,0,0,0,0,0,0,0,0,0,0,0,0,0,0
A142: 11252,0,0,0,0,0,0,0,0,0,0,0,0,0,0,0,0,0,0,0,0,0,0,0,0,0,0,0,0,0,0,0,0,0,0,0,0,0,0,0,0,0,0,0,0,0
A143: 11354,2,1,0.5,1,0.5,0,0,2,100,0,0,1,0.5,0,0,0,0,0,0,0,0,1,0.5,0,0,2,100,2,1,0,0,0,0,0,0,2,100,0,0,2,1,0,0,2,100
A144: 11355,0,0,0,0,0,0,0,0,0,0,0,0,0,0,0,0,0,0,0,0,0,0,0,0,0,0,0,0,0,0,0,0,0,0,0,0,0,0,0,0,0,0,0,0,0
A145: 11356,0,0,0,0,0,0,0,0,0,0,0,0,0,0,0,0,0,0,0,0,0,0,0,0,0,0,0,0,0,0,0,0,0,0,0,0,0,0,0,0,0,0,0,0,0
A146: 11357,0,0,0,0,0,0,0,0,0,0,0,0,0,0,0,0,0,0,0,0,0,0,0,0,0,0,0,0,0,0,0,0,0,0,0,0,0,0,0,0,0,0,0,0,0
A147: 11358,0,0,0,0,0,0,0,0,0,0,0,0,0,0,0,0,0,0,0,0,0,0,0,0,0,0,0,0,0,0,0,0,0,0,0,0,0,0,0,0,0,0,0,0,0
A148: 11360,0,0,0,0,0,0,0,0,0,0,0,0,0,0,0,0,0,0,0,0,0,0,0,0,0,0,0,0,0,0,0,0,0,0,0,0,0,0,0,0,0,0,0,0,0
A149: 11361,0,0,0,0,0,0,0,0,0,0,0,0,0,0,0,0,0,0,0,0,0,0,0,0,0,0,0,0,0,0,0,0,0,0,0,0,0,0,0,0,0,0,0,0,0
A150: 11362,0,0,0,0,0,0,0,0,0,0,0,0,0,0,0,0,0,0,0,0,0,0,0,0,0,0,0,0,0,0,0,0,0,0,0,0,0,0,0,0,0,0,0,0,0
A151: 11364,0,0,0,0,0,0,0,0,0,0,0,0,0,0,0,0,0,0,0,0,0,0,0,0,0,0,0,0,0,0,0,0,0,0,0,0,0,0,0,0,0,0,0,0,0
A152: 11365,0,0,0,0,0,0,0,0,0,0,0,0,0,0,0,0,0,0,0,0,0,0,0,0,0,0,0,0,0,0,0,0,0,0,0,0,0,0,0,0,0,0,0,0,0
A153: 11366,0,0,0,0,0,0,0,0,0,0,0,0,0,0,0,0,0,0,0,0,0,0,0,0,0,0,0,0,0,0,0,0,0,0,0,0,0,0,0,0,0,0,0,0,0
A154: 11367,0,0,0,0,0,0,0,0,0,0,0,0,0,0,0,0,0,0,0,0,0,0,0,0,0,0,0,0,0,0,0,0,0,0,0,0,0,0,0,0,0,0,0,0,0
A155: 11368,5,4,0.8,1,0.2,0,0,5,100,0,0,3,0.6,0,0,1,0.2,1,0.2,0,0,0,0,0,0,5,100,1,0.2,4,0.8,0,0,0,0,5,100,0,0,5,1,0,0,5,100
A156: 11369,0,0,0,0,0,0,0,0,0,0,0,0,0,0,0,0,0,0,0,0,0,0,0,0,0,0,0,0,0,0,0,0,0,0,0,0,0,0,0,0,0,0,0,0,0
A157: 11370,0,0,0,0,0,0,0,0,0,0,0,0,0,0,0,0,0,0,0,0,0,0,0,0,0,0,0,0,0,0,0,0,0,0,0,0,0,0,0,0,0,0,0,0,0
A158: 11371,0,0,0,0,0,0,0,0,0,0,0,0,0,0,0,0,0,0,0,0,0,0,0,0,0,0,0,0,0,0,0,0,0,0,0,0,0,0,0,0,0,0,0,0,0
A159: 11372,2,1,0.5,1,0.5,0,0,2,100,0,0,2,1,0,0,0,0,0,0,0,0,0,0,0,0,2,100,0,0,2,1,0,0,0,0,2,100,1,0.5,1,0.5,0,0,2,100
A160: 11373,3,3,1,0,0,0,0,3,100,0,0,0,0,0,0,0,0,3,1,0,0,0,0,0,0,3,100,0,0,3,1,0,0,0,0,3,100,1,0.33,2,0.67,0,0,3,100
A161: 11374,2,0,0,2,1,0,0,2,100,0,0,0,0,0,0,0,0,1,0.5,1,0.5,0,0,0,0,2,100,0,0,2,1,0,0,0,0,2,100,0,0,2,1,0,0,2,100
A162: 11375,5,2,0.4,3,0.6,0,0,5,100,0,0,2,0.4,0,0,0,0,0,0,3,0.6,0,0,0,0,5,100,0,0,5,1,0,0,0,0,5,100,1,0.2,4,0.8,0,0,5,100
A163: 11377,0,0,0,0,0,0,0,0,0,0,0,0,0,0,0,0,0,0,0,0,0,0,0,0,0,0,0,0,0,0,0,0,0,0,0,0,0,0,0,0,0,0,0,0,0
A164: 11378,0,0,0,0,0,0,0,0,0,0,0,0,0,0,0,0,0,0,0,0,0,0,0,0,0,0,0,0,0,0,0,0,0,0,0,0,0,0,0,0,0,0,0,0,0
A165: 11379,0,0,0,0,0,0,0,0,0,0,0,0,0,0,0,0,0,0,0,0,0,0,0,0,0,0,0,0,0,0,0,0,0,0,0,0,0,0,0,0,0,0,0,0,0
A166: 11385,0,0,0,0,0,0,0,0,0,0,0,0,0,0,0,0,0,0,0,0,0,0,0,0,0,0,0,0,0,0,0,0,0,0,0,0,0,0,0,0,0,0,0,0,0
A167: 11411,0,0,0,0,0,0,0,0,0,0,0,0,0,0,0,0,0,0,0,0,0,0,0,0,0,0,0,0,0,0,0,0,0,0,0,0,0,0,0,0,0,0,0,0,0
A168: 11412,0,0,0,0,0,0,0,0,0,0,0,0,0,0,0,0,0,0,0,0,0,0,0,0,0,0,0,0,0,0,0,0,0,0,0,0,0,0,0,0,0,0,0,0,0
A169: 11413,0,0,0,0,0,0,0,0,0,0,0,0,0,0,0,0,0,0,0,0,0,0,0,0,0,0,0,0,0,0,0,0,0,0,0,0,0,0,0,0,0,0,0,0,0
A170: 11414,0,0,0,0,0,0,0,0,0,0,0,0,0,0,0,0,0,0,0,0,0,0,0,0,0,0,0,0,0,0,0,0,0,0,0,0,0,0,0,0,0,0,0,0,0
A171: 11415,11,6,0.55,5,0.45,0,0,11,100,0,0,0,0,0,0,0,0,11,1,0,0,0,0,0,0,11,100,1,0.09,10,0.91,0,0,0,0,11,100,5,0.45,6,0.55,0,0,11,100
A172: 11416,0,0,0,0,0,0,0,0,0,0,0,0,0,0,0,0,0,0,0,0,0,0,0,0,0,0,0,0,0,0,0,0,0,0,0,0,0,0,0,0,0,0,0,0,0
A173: 11417,0,0,0,0,0,0,0,0,0,0,0,0,0,0,0,0,0,0,0,0,0,0,0,0,0,0,0,0,0,0,0,0,0,0,0,0,0,0,0,0,0,0,0,0,0
A174: 11418,4,2,0.5,2,0.5,0,0,4,100,0,0,1,0.25,0,0,0,0,0,0,1,0.25,1,0.25,1,0.25,4,100,0,0,4,1,0,0,0,0,4,100,1,0.25,3,0.75,0,0,4,100
A175: 11419,1,0,0,1,1,0,0,1,100,0,0,0,0,0,0,0,0,0,0,1,1,0,0,0,0,1,100,0,0,1,1,0,0,0,0,1,100,0,0,1,1,0,0,1,100
A176: 11420,2,1,0.5,1,0.5,0,0,2,100,0,0,1,0.5,0,0,0,0,0,0,0,0,1,0.5,0,0,2,100,0,0,2,1,0,0,0,0,2,100,2,1,0,0,0,0,2,100
A177: 11421,0,0,0,0,0,0,0,0,0,0,0,0,0,0,0,0,0,0,0,0,0,0,0,0,0,0,0,0,0,0,0,0,0,0,0,0,0,0,0,0,0,0,0,0,0
A178: 11422,0,0,0,0,0,0,0,0,0,0,0,0,0,0,0,0,0,0,0,0,0,0,0,0,0,0,0,0,0,0,0,0,0,0,0,0,0,0,0,0,0,0,0,0,0
A179: 11423,0,0,0,0,0,0,0,0,0,0,0,0,0,0,0,0,0,0,0,0,0,0,0,0,0,0,0,0,0,0,0,0,0,0,0,0,0,0,0,0,0,0,0,0,0
A180: 11424,0,0,0,0,0,0,0,0,0,0,0,0,0,0,0,0,0,0,0,0,0,0,0,0,0,0,0,0,0,0,0,0,0,0,0,0,0,0,0,0,0,0,0,0,0
A181: 11425,0,0,0,0,0,0,0,0,0,0,0,0,0,0,0,0,0,0,0,0,0,0,0,0,0,0,0,0,0,0,0,0,0,0,0,0,0,0,0,0,0,0,0,0,0
A182: 11426,0,0,0,0,0,0,0,0,0,0,0,0,0,0,0,0,0,0,0,0,0,0,0,0,0,0,0,0,0,0,0,0,0,0,0,0,0,0,0,0,0,0,0,0,0
A183: 11427,2,0,0,2,1,0,0,2,100,0,0,1,0.5,0,0,0,0,0,0,1,0.5,0,0,0,0,2,100,1,0.5,1,0.5,0,0,0,0,2,100,0,0,2,1,0,0,2,100
A184: 11428,0,0,0,0,0,0,0,0,0,0,0,0,0,0,0,0,0,0,0,0,0,0,0,0,0,0,0,0,0,0,0,0,0,0,0,0,0,0,0,0,0,0,0,0,0
A185: 11429,0,0,0,0,0,0,0,0,0,0,0,0,0,0,0,0,0,0,0,0,0,0,0,0,0,0,0,0,0,0,0,0,0,0,0,0,0,0,0,0,0,0,0,0,0
A186: 11430,0,0,0,0,0,0,0,0,0,0,0,0,0,0,0,0,0,0,0,0,0,0,0,0,0,0,0,0,0,0,0,0,0,0,0,0,0,0,0,0,0,0,0,0,0
A187: 11431,0,0,0,0,0,0,0,0,0,0,0,0,0,0,0,0,0,0,0,0,0,0,0,0,0,0,0,0,0,0,0,0,0,0,0,0,0,0,0,0,0,0,0,0,0
A188: 11432,2,2,1,0,0,0,0,2,100,0,0,0,0,0,0,1,0.5,0,0,1,0.5,0,0,0,0,2,100,0,0,2,1,0,0,0,0,2,100,0,0,2,1,0,0,2,100
A189: 11433,0,0,0,0,0,0,0,0,0,0,0,0,0,0,0,0,0,0,0,0,0,0,0,0,0,0,0,0,0,0,0,0,0,0,0,0,0,0,0,0,0,0,0,0,0
A190: 11434,4,1,0.25,3,0.75,0,0,4,100,0,0,0,0,0,0,0,0,0,0,4,1,0,0,0,0,4,100,1,0.25,3,0.75,0,0,0,0,4,100,0,0,4,1,0,0,4,100
A191: 11435,0,0,0,0,0,0,0,0,0,0,0,0,0,0,0,0,0,0,0,0,0,0,0,0,0,0,0,0,0,0,0,0,0,0,0,0,0,0,0,0,0,0,0,0,0
A192: 11436,0,0,0,0,0,0,0,0,0,0,0,0,0,0,0,0,0,0,0,0,0,0,0,0,0,0,0,0,0,0,0,0,0,0,0,0,0,0,0,0,0,0,0,0,0
A193: 11439,0,0,0,0,0,0,0,0,0,0,0,0,0,0,0,0,0,0,0,0,0,0,0,0,0,0,0,0,0,0,0,0,0,0,0,0,0,0,0,0,0,0,0,0,0
A194: 11451,0,0,0,0,0,0,0,0,0,0,0,0,0,0,0,0,0,0,0,0,0,0,0,0,0,0,0,0,0,0,0,0,0,0,0,0,0,0,0,0,0,0,0,0,0
A195: 11471,0,0,0,0,0,0,0,0,0,0,0,0,0,0,0,0,0,0,0,0,0,0,0,0,0,0,0,0,0,0,0,0,0,0,0,0,0,0,0,0,0,0,0,0,0
A196: 11510,28,6,0.21,22,0.79,0,0,28,100,0,0,6,0.21,0,0,1,0.04,18,0.64,2,0.07,1,0.04,0,0,28,100,1,0.04,27,0.96,0,0,0,0,28,100,1,0.04,27,0.96,0,0,28,100
A197: 11548,0,0,0,0,0,0,0,0,0,0,0,0,0,0,0,0,0,0,0,0,0,0,0,0,0,0,0,0,0,0,0,0,0,0,0,0,0,0,0,0,0,0,0,0,0
A198: 11566,0,0,0,0,0,0,0,0,0,0,0,0,0,0,0,0,0,0,0,0,0,0,0,0,0,0,0,0,0,0,0,0,0,0,0,0,0,0,0,0,0,0,0,0,0
A199: 11577,0,0,0,0,0,0,0,0,0,0,0,0,0,0,0,0,0,0,0,0,0,0,0,0,0,0,0,0,0,0,0,0,0,0,0,0,0,0,0,0,0,0,0,0,0
A200: 11580,0,0,0,0,0,0,0,0,0,0,0,0,0,0,0,0,0,0,0,0,0,0,0,0,0,0,0,0,0,0,0,0,0,0,0,0,0,0,0,0,0,0,0,0,0
... 37 more rows

Sheet Таблиця даних 1
A1: Задача 1
E2: 1 | F2: 2 | G2: 3 | H2: 4 | I2: 5 | J2: 10 | K2: 15 | L2: 30
D3: =PMT(A7,B7,C7) -> -591.6981132 | E3: -1120 | F3: -591.6981132 | G3: -416.3489806 | H3: -329.2344363 | I3: -277.4097319 | J3: -176.9841642 | K3: -146.8242396 | L3: -124.1436576
A6: Відсоток | B6: Термін | C6: Кредит
A7: 0.12 | B7: 2 | C7: 1000

Sheet Таблиця даних 2
A1: Задача 2
C2: =PMT(A11,B11,C11) -> -537.804878 | D2: 1 | E2: 2 | F2: 3 | G2: 4 | H2: 5 | I2: 10 | J2: 15 | K2: 30
C3: 0.12 | D3: -1120 | E3: -591.6981132 | F3: -416.3489806 | G3: -329.2344363 | H3: -277.4097319 | I3: -176.9841642 | J3: -146.8242396 | K3: -124.1436576
C4: 0.14 | D4: -1140 | E4: -607.2897196 | F4: -430.7314804 | G4: -343.2047833 | H4: -291.2835465 | I4: -191.7135408 | J4: -162.808963 | K4: -142.8027939
C5: 0.16 | D5: -1160 | E5: -622.962963 | F5: -445.2578731 | G5: -357.3750695 | H5: -305.4093816 | I5: -206.9010831 | J5: -179.3575218 | K5: -161.8856833
C6: 0.17 | D6: -1170 | E6: -630.8294931 | F6: -452.5736811 | G6: -364.5331137 | H6: -312.5638643 | I6: -214.6565967 | J6: -187.822095 | K6: -171.5445468
C7: 0.18 | D7: -1180 | E7: -638.7155963 | F7: -459.9238607 | G7: -371.7386709 | H7: -319.7778418 | I7: -222.5146413 | J7: -196.4027825 | K7: -181.2643056
C8: 0.2 | D8: -1200 | E8: -654.5454545 | F8: -474.7252747 | G8: -386.2891207 | H8: -334.3797033 | I8: -238.5227569 | J8: -213.8821198 | K8: -200.8461085
A10: Відсоток | B10: Термін | C10: Кредит
A11: 0.05 | B11: 2 | C11: 1000

Sheet Авто
A1: Марка | B1: Цена, $ | C1: Срок погашения, мес.
A2: Lada | B2: 7400 | C2: 24
A3: ЗАЗ | B3: 3900 | C3: 12
A4: Ford | B4: 21000 | C4: 30
A5: Opel | B5: 18000 | C5: 20
A6: Volvo | B6: 36100 | C6: 36
A7: Mazda | B7: 24300 | C7: 26
A8: Renault | B8: 17500 | C8: 36

Sheet Зведена таблиця Приклад
A1: № | B1: Прізвище | C1: Ім'я | D1: По-батькові | E1: Дата народження | F1: Місто народження | G1: Стать | H1: Продажі | I1: Нові клієнти | J1: Потенційні клієнти | K1: Оцінка командної роботи
A2: 1 | B2: Крилова | C2: Людмила | D2: Петрівна | E2: 1980-03-12 | F2: Київ | G2: ж | H2: 3 | I2: 4 | J2: 2 | K2: 3
A3: 2 | B3: Васищак | C3: Валентин | D3: Трофимович | E3: 1981-12-01 | F3: Черкаси | G3: ч | H3: 3 | I3: 4 | J3: 4 | K3: 5
A4: 3 | B4: Корнєєв | C4: Олексій | D4: Семенович | E4: 1979-04-27 | F4: Київ | G4: ч | H4: 3 | I4: 4 | J4: 3 | K4: 5
A5: 4 | B5: Доля | C5: Ірина | D5: Олександрівна | E5: 1981-04-26 | F5: Трипілля | G5: ж | H5: 5 | I5: 5 | J5: 2 | K5: 4
A6: 5 | B6: Кравцова | C6: Юлія | D6: Федорівна | E6: 1982-08-14 | F6: Чернігів | G6: ж | H6: 3 | I6: 2 | J6: 4 | K6: 4
A7: 6 | B7: Божук | C7: Василь | D7: Петрович | E7: 1984-04-04 | F7: Донецьк | G7: ч | H7: 3 | I7: 3 | J7: 4 | K7: 2
A8: 7 | B8: Левчук | C8: Наталія | D8: Єфремівна | E8: 1982-05-13 | F8: Київ | G8: ж | H8: 4 | I8: 5 | J8: 3 | K8: 2
A9: 8 | B9: Могилевець | C9: Катерина | D9: Степанівна | E9: 1981-12-11 | F9: Трипілля | G9: ж | H9: 3 | I9: 2 | J9: 4 | K9: 4
A10: 9 | B10: Кранчак | C10: Тетяна | D10: Степанівна | E10: 1981-12-20 | F10: Київ | G10: ж | H10: 3 | I10: 3 | J10: 3 | K10: 5
A11: 10 | B11: Бочкарьов | C11: Семен | D11: Семенович | E11: 1982-01-07 | F11: Львів | G11: ч | H11: 4 | I11: 4 | J11: 4 | K11: 3

Sheet Зведена таблиця
A1: № | B1: Дата поступання на склад | C1: Категорія | D1: Артикул | E1: Найменування продукції | F1: Запаси продукції на складі, шт. | G1: Роздрібна торгівля, дол. | H1: Оптова торгівля 100-200 од., дол. | I1: Оптова торгівля від 200 од., дол. | J1: Роздрібна торгівля, грн. | K1: Оптова торгівля 100-200 од., грн. | L1: Оптова торгівля від 200 од., грн. | M1: Рік надходження на склад
A2: 1 | B2: 43179 | C2: Тіло | D2: B00004 | E2: Подушечки проти натирання стоп | F2: 45 | G2: 3.703703704 | H2: 3.333333333 | I2: 2.962962963 | J2: 103.0555556 | K2: 92.75 | L2: 82.44444444 | M2: 2018
A3: 2 | B3: 43132 | C3: Макіяж | D3: E00030 | E3: Міцелярна вода, 350 мл | F3: 201 | G3: 3.888888889 | H3: 3.5 | I3: 3.111111111 | J3: 108.2083333 | K3: 97.3875 | L3: 86.56666667 | M3: 2018
A4: 3 | B4: 43126 | C4: Обличчя | D4: F00025 | E4: Крем по догляду за обличчям для різних типів шкіри | F4: 1087 | G4: 16.66666667 | H4: 15 | I4: 13.33333333 | J4: 463.75 | K4: 417.375 | L4: 371 | M4: 2018
A5: 4 | B5: 43123 | C5: Волосся | D5: H00002 | E5: Шампунь-гель для душу | F5: 803 | G5: 5.074074074 | H5: 4.566666667 | I5: 4.059259259 | J5: 141.1861111 | K5: 127.0675 | L5: 112.9488889 | M5: 2018
A6: 5 | B6: 43114 | C6: Тіло | D6: B00006 | E6: Крем для тіла "Ніжність", 150 мл | F6: 469 | G6: 12.96296296 | H6: 11.66666667 | I6: 10.37037037 | J6: 360.6944444 | K6: 324.625 | L6: 288.5555556 | M6: 2018
A7: 6 | B7: 43110 | C7: Обличчя | D7: F00011 | E7: Мигдальна маска-скраб для обличчя | F7: 1169 | G7: 6.111111111 | H7: 5.5 | I7: 4.888888889 | J7: 170.0416667 | K7: 153.0375 | L7: 136.0333333 | M7: 2018
A8: 7 | B8: 43105 | C8: Макіяж | D8: E00034 | E8: Початковий набір для макіяжу | F8: 985 | G8: 20.74074074 | H8: 18.66666667 | I8: 16.59259259 | J8: 577.1111111 | K8: 519.4 | L8: 461.6888889 | M8: 2018
A9: 8 | B9: 43098 | C9: Тіло | D9: B00003 | E9: Гель для душу | F9: 520 | G9: 1.296296296 | H9: 1.166666667 | I9: 1.037037037 | J9: 36.06944444 | K9: 32.4625 | L9: 28.85555556 | M9: 2017
A10: 9 | B10: 43097 | C10: Тіло | D10: B00026 | E10: Патчі з чорною ікрою Esfolio Caviar | F10: 709 | G10: 4.3245 | H10: 3.89205 | I10: 3.4596 | J10: 120.3292125 | K10: 108.2962912 | L10: 96.26337 | M10: 2017
A11: 10 | B11: 43082 | C11: Макіяж | D11: E00014 | E11: Пудра в кульках | F11: 626 | G11: 9.259259259 | H11: 8.333333333 | I11: 7.407407407 | J11: 257.6388889 | K11: 231.875 | L11: 206.1111111 | M11: 2017
A12: 11 | B12: 43081 | C12: Обличчя | D12: F00012 | E12: Ретиноловий крем | F12: 636 | G12: 2.407407407 | H12: 2.166666667 | I12: 1.925925926 | J12: 66.98611111 | K12: 60.2875 | L12: 53.58888889 | M12: 2017
A13: 12 | B13: 43075 | C13: Обличчя | D13: F00015 | E13: Відновлююча маска для всіх типів шкіри | F13: 454 | G13: 2.777777778 | H13: 2.5 | I13: 2.222222222 | J13: 77.29166667 | K13: 69.5625 | L13: 61.83333333 | M13: 2017
A14: 13 | B14: 43059 | C14: Тіло | D14: B00007 | E14: Масло для тіла | F14: 687 | G14: 2.37037037 | H14: 2.133333333 | I14: 1.896296296 | J14: 65.95555556 | K14: 59.36 | L14: 52.76444444 | M14: 2017
A15: 14 | B15: 43047 | C15: Макіяж | D15: E00008 | E15: Губна помада "Матовий блиск" | F15: 512 | G15: 2.777777778 | H15: 2.5 | I15: 2.222222222 | J15: 77.29166667 | K15: 69.5625 | L15: 61.83333333 | M15: 2017
A16: 15 | B16: 43034 | C16: Макіяж | D16: E00032 | E16: Консилер Maestro Eraser | F16: 174 | G16: 5.454 | H16: 4.9086 | I16: 4.3632 | J16: 151.75755 | K16: 136.581795 | L16: 121.40604 | M16: 2017
A17: 16 | B17: 43032 | C17: Обличчя | D17: F00010 | E17: Крем проти зморшок, 100 мл | F17: 588 | G17: 2.407407407 | H17: 2.166666667 | I17: 1.925925926 | J17: 66.98611111 | K17: 60.2875 | L17: 53.58888889 | M17: 2017
A18: 17 | B18: 43028 | C18: Макіяж | D18: E00009 | E18: Туш "Суперфіксація" | F18: 472 | G18: 4.62962963 | H18: 4.166666667 | I18: 3.703703704 | J18: 128.8194444 | K18: 115.9375 | L18: 103.0555556 | M18: 2017
A19: 18 | B19: 43027 | C19: Тіло | D19: B00001 | E19: Крем-молочко для тіла | F19: 837 | G19: 2.185185185 | H19: 1.966666667 | I19: 1.748148148 | J19: 60.80277778 | K19: 54.7225 | L19: 48.64222222 | M19: 2017
A20: 19 | B20: 43012 | C20: Макіяж | D20: E00013 | E20: Тіні для повік | F20: 858 | G20: 14.25925926 | H20: 12.83333333 | I20: 11.40740741 | J20: 396.7638889 | K20: 357.0875 | L20: 317.4111111 | M20: 2017
A21: 20 | B21: 43006 | C21: Тіло | D21: B00005 | E21: Спрей для тіла "Свіжість" | F21: 162 | G21: 1.851851852 | H21: 1.666666667 | I21: 1.481481481 | J21: 51.52777778 | K21: 46.375 | L21: 41.22222222 | M21: 2017

Sheet Сумування
B2: Прізвище | C2: Продажі
B3: Божук | C3: 345
B4: Васищак | C4: 355
B5: Васищак | C5: 432
B6: Васищак | C6: 522
B7: Доля | C7: 369
B8: Доля | C8: 467
B9: Крилова | C9: 455
B10: Крилова | C10: 480

Sheet Групування
C3: 2006
B4: Групи | C4: Січень | D4: Лютий | E4: Березень | F4: Квартал 1 | G4: Квітень | H4: Травень | I4: Червень | J4: Квартал 2 | K4: Липень | L4: Серпень | M4: Вересень | N4: Квартал 3 | O4: Жовтень | P4: Листопад | Q4: Грудень | R4: Квартал 4 | S4: За рік
B6: Експерти
B7: Крилова | C7: 455 | D7: 475 | E7: 523 | F7: =SUM(C7:E7) -> 1453 | G7: 540 | H7: 555 | I7: 489 | J7: =SUM(G7:I7) -> 1584 | K7: 550 | L7: 540 | M7: 560 | N7: =SUM(K7:M7) -> 1650 | O7: 590 | P7: 602 | Q7: 576 | R7: =SUM(O7:Q7) -> 1768 | S7: =F7+J7+N7+R7 -> 6455
B8: Васищак | C8: 355 | D8: 407 | E8: 375 | F8: =SUM(C8:E8) -> 1137 | G8: 510 | H8: 536 | I8: 500 | J8: =SUM(G8:I8) -> 1546 | K8: 580 | L8: 360 | M8: 420 | N8: =SUM(K8:M8) -> 1360 | O8: 450 | P8: 470 | Q8: 435 | R8: =SUM(O8:Q8) -> 1355 | S8: =F8+J8+N8+R8 -> 5398
B9: Корнєєв | C9: 480 | D9: 390 | E9: 410 | F9: =SUM(C9:E9) -> 1280 | G9: 490 | H9: 505 | I9: 480 | J9: =SUM(G9:I9) -> 1475 | K9: 420 | L9: 418 | M9: 492 | N9: =SUM(K9:M9) -> 1330 | O9: 470 | P9: 490 | Q9: 411 | R9: =SUM(O9:Q9) -> 1371 | S9: 5456
B10: Всього | C10: =SUM(C7:C9) -> 1290 | D10: =SUM(D7:D9) -> 1272 | E10: =SUM(E7:E9) -> 1308 | F10: =SUM(C10:E10) -> 3870 | G10: =SUM(G7:G9) -> 1540 | H10: =SUM(H7:H9) -> 1596 | I10: =SUM(I7:I9) -> 1469 | J10: =SUM(G10:I10) -> 4605 | K10: =SUM(K7:K9) -> 1550 | L10: =SUM(L7:L9) -> 1318 | M10: =SUM(M7:M9) -> 1472 | N10: =SUM(K10:M10) -> 4340 | O10: =SUM(O7:O9) -> 1510 | P10: =SUM(P7:P9) -> 1562 | Q10: =SUM(Q7:Q9) -> 1422 | R10: =SUM(O10:Q10) -> 4494 | S10: 17309
B12: Інженери
B13: Доля | C13: 369 | D13: 367 | E13: 500 | F13: =SUM(C13:E13) -> 1236 | G13: 500 | H13: 521 | I13: 522 | J13: =SUM(G13:I13) -> 1543 | K13: 530 | L13: 540 | M13: 537 | N13: =SUM(K13:M13) -> 1607 | O13: 590 | P13: 495 | Q13: 543 | R13: =SUM(O13:Q13) -> 1628 | S13: 6014
B14: Кравцова | C14: 432 | D14: 378 | E14: 470 | F14: 1280 | G14: 521 | H14: 530 | I14: 530 | J14: 1581 | K14: 520 | L14: 525 | M14: 561 | N14: 1606 | O14: 550 | P14: 580 | Q14: 573 | R14: 1703 | S14: 6170
B15: Божук | C15: 345 | D15: 388 | E15: 467 | F15: 1200 | G15: 490 | H15: 500 | I15: 480 | J15: 1470 | K15: 510 | L15: 490 | M15: 512 | N15: 1512 | O15: 512 | P15: 514 | Q15: 531 | R15: 1557 | S15: 5739
B16: Левчук | C16: 522 | D16: 390 | E16: 480 | F16: 1392 | G16: 521 | H16: 458 | I16: 511 | J16: 1490 | K16: 520 | L16: 550 | M16: 530 | N16: 1600 | O16: 495 | P16: 541 | Q16: 523 | R16: 1559 | S16: 6041
B17: Могилевець | C17: 467 | D17: 400 | E17: 490 | F17: 1357 | G17: 501 | H17: 499 | I17: 550 | J17: 1550 | K17: 530 | L17: 512 | M17: 511 | N17: 1553 | O17: 567 | P17: 543 | Q17: 541 | R17: 1651 | S17: 6111
B18: Всього | C18: =SUM(C13:C17) -> 2135 | D18: =SUM(D13:D17) -> 1923 | E18: =SUM(E13:E17) -> 2407 | F18: 6465 | G18: =SUM(G13:G17) -> 2533 | H18: =SUM(H13:H17) -> 2508 | I18: =SUM(I13:I17) -> 2593 | J18: 7634 | K18: =SUM(K13:K17) -> 2610 | L18: =SUM(L13:L17) -> 2617 | M18: =SUM(M13:M17) -> 2651 | N18: 7878 | O18: =SUM(O13:O17) -> 2714 | P18: =SUM(P13:P17) -> 2673 | Q18: =SUM(Q13:Q17) -> 2711 | R18: 8098 | S18: 30075
B20: Загальний підсумок | C20: =C10+C18 -> 3425 | D20: =D10+D18 -> 3195 | E20: 3715 | F20: 10335 | G20: 4073 | H20: 4104 | I20: 4062 | J20: 12239 | K20: 4160 | L20: 3935 | M20: 4123 | N20: =N10+N18 -> 12218 | O20: 4224 | P20: 4235 | Q20: 4133 | R20: =R10+R18 -> 12592 | S20: 47384

Sheet Shop
A1: Date | B1: Hour | C1: SalesItem | D1: Sales, local currency | E1: Cheques | F1: Shop square | G1: Staff | H1: Consultants | I1: Warehouse
A2: 02.01.2016 | B2: 9 | C2: 0 | D2: 0 | E2: 0 | F2: 361 | G2: 3 | H2: 1 | I2: 0
A3: 02.01.2016 | B3: 10 | C3: 1 | D3: 367.605 | E3: 1 | F3: 361 | G3: 4 | H3: 2 | I3: 0
A4: 02.01.2016 | B4: 11 | C4: 2 | D4: 814.8525 | E4: 2 | F4: 361 | G4: 8 | H4: 5 | I4: 0
A5: 02.01.2016 | B5: 12 | C5: 19 | D5: 6876.085 | E5: 11 | F5: 361 | G5: 9 | H5: 6 | I5: 0
A6: 02.01.2016 | B6: 13 | C6: 30 | D6: 8638.8785 | E6: 15 | F6: 361 | G6: 10 | H6: 7 | I6: 0
A7: 02.01.2016 | B7: 14 | C7: 42 | D7: 12691.5885 | E7: 20 | F7: 361 | G7: 10 | H7: 7 | I7: 0
A8: 02.01.2016 | B8: 15 | C8: 58 | D8: 11837.898 | E8: 22 | F8: 361 | G8: 10 | H8: 7 | I8: 0
A9: 02.01.2016 | B9: 16 | C9: 36 | D9: 4253.5125 | E9: 14 | F9: 361 | G9: 10 | H9: 7 | I9: 0
A10: 02.01.2016 | B10: 17 | C10: 40 | D10: 13451.52 | E10: 19 | F10: 361 | G10: 10 | H10: 7 | I10: 0
A11: 02.01.2016 | B11: 18 | C11: 5 | D11: 1465.3275 | E11: 4 | F11: 361 | G11: 10 | H11: 7 | I11: 0
A12: 02.01.2016 | B12: 19 | C12: 6 | D12: 2722.1175 | E12: 4 | F12: 361 | G12: 10 | H12: 7 | I12: 0
A13: 02.01.2016 | B13: 20 | C13: 18 | D13: 4771.4325 | E13: 5 | F13: 361 | G13: 10 | H13: 7 | I13: 0
A14: 02.01.2016 | B14: 21 | C14: 1 | D14: 579.2325 | E14: 1 | F14: 361 | G14: 10 | H14: 7 | I14: 0
A15: 02.01.2016 | B15: 22 | C15: 0 | D15: 0 | E15: 0 | F15: 361 | G15: 8 | H15: 6 | I15: 0
A16: 03.01.2016 | B16: 9 | C16: 0 | D16: 0 | E16: 0 | F16: 361 | G16: 5 | H16: 3 | I16: 0
A17: 03.01.2016 | B17: 10 | C17: 2 | D17: 319.515 | E17: 1 | F17: 361 | G17: 7 | H17: 4 | I17: 0
A18: 03.01.2016 | B18: 11 | C18: 3 | D18: 1066.7325 | E18: 3 | F18: 361 | G18: 8 | H18: 5 | I18: 0
A19: 03.01.2016 | B19: 12 | C19: 22 | D19: 2850.975 | E19: 10 | F19: 361 | G19: 10 | H19: 7 | I19: 0
A20: 03.01.2016 | B20: 13 | C20: 9 | D20: 1511.775 | E20: 10 | F20: 361 | G20: 11 | H20: 7 | I20: 0
A21: 03.01.2016 | B21: 14 | C21: 38 | D21: 12509.52 | E21: 18 | F21: 361 | G21: 12 | H21: 8 | I21: 0
A22: 03.01.2016 | B22: 15 | C22: 18 | D22: 3778.2735 | E22: 10 | F22: 361 | G22: 12 | H22: 8 | I22: 0
A23: 03.01.2016 | B23: 16 | C23: 44 | D23: 10450.7075 | E23: 17 | F23: 361 | G23: 12 | H23: 8 | I23: 0
A24: 03.01.2016 | B24: 17 | C24: 17 | D24: 2077.9175 | E24: 17 | F24: 361 | G24: 12 | H24: 8 | I24: 0
A25: 03.01.2016 | B25: 18 | C25: 5 | D25: 414.2 | E25: 4 | F25: 361 | G25: 11 | H25: 7 | I25: 0
A26: 03.01.2016 | B26: 19 | C26: 16 | D26: 4812.4505 | E26: 8 | F26: 361 | G26: 11 | H26: 7 | I26: 0
A27: 03.01.2016 | B27: 20 | C27: 7 | D27: 2318.9575 | E27: 3 | F27: 361 | G27: 10 | H27: 6 | I27: 0
A28: 03.01.2016 | B28: 21 | C28: 22 | D28: 5576.609 | E28: 6 | F28: 361 | G28: 8 | H28: 4 | I28: 0
A29: 03.01.2016 | B29: 22 | C29: 0 | D29: 0 | E29: 0 | F29: 361 | G29: 7 | H29: 4 | I29: 0
A30: 04.01.2016 | B30: 7 | C30: 0 | D30: 0 | E30: 0 | F30: 361 | G30: 3 | H30: 1 | I30: 0
A31: 04.01.2016 | B31: 8 | C31: 0 | D31: 0 | E31: 0 | F31: 361 | G31: 4 | H31: 2 | I31: 0
A32: 04.01.2016 | B32: 9 | C32: 3 | D32: 512.05 | E32: 2 | F32: 361 | G32: 7 | H32: 4 | I32: 0
A33: 04.01.2016 | B33: 10 | C33: 2 | D33: 470.5575 | E33: 2 | F33: 361 | G33: 12 | H33: 6 | I33: 0
A34: 04.01.2016 | B34: 11 | C34: 1 | D34: 50.15 | E34: 1 | F34: 361 | G34: 13 | H34: 6 | I34: 0
A35: 04.01.2016 | B35: 12 | C35: 23 | D35: 7083.0145 | E35: 10 | F35: 361 | G35: 17 | H35: 9 | I35: 0
A36: 04.01.2016 | B36: 13 | C36: 17 | D36: 4652.7575 | E36: 11 | F36: 361 | G36: 16 | H36: 8 | I36: 0
A37: 04.01.2016 | B37: 14 | C37: 9 | D37: 1394.78 | E37: 7 | F37: 361 | G37: 18 | H37: 9 | I37: 0
A38: 04.01.2016 | B38: 15 | C38: 16 | D38: 3897.5825 | E38: 10 | F38: 361 | G38: 20 | H38: 11 | I38: 0
A39: 04.01.2016 | B39: 16 | C39: 2 | D39: 1797.9325 | E39: 5 | F39: 361 | G39: 19 | H39: 11 | I39: 0
A40: 04.01.2016 | B40: 17 | C40: 22 | D40: 4494.7555 | E40: 9 | F40: 361 | G40: 19 | H40: 11 | I40: 0
A41: 04.01.2016 | B41: 18 | C41: 33 | D41: 5703.9705 | E41: 15 | F41: 361 | G41: 19 | H41: 11 | I41: 0
A42: 04.01.2016 | B42: 19 | C42: 34 | D42: 8273.8175 | E42: 21 | F42: 361 | G42: 19 | H42: 11 | I42: 0
A43: 04.01.2016 | B43: 20 | C43: 21 | D43: 5769.4135 | E43: 10 | F43: 361 | G43: 15 | H43: 7 | I43: 0
A44: 04.01.2016 | B44: 21 | C44: 11 | D44: 2735.89 | E44: 6 | F44: 361 | G44: 11 | H44: 5 | I44: 0
A45: 04.01.2016 | B45: 22 | C45: 0 | D45: 0 | E45: 0 | F45: 361 | G45: 6 | H45: 3 | I45: 0
A46: 05.01.2016 | B46: 7 | C46: 0 | D46: 0 | E46: 0 | F46: 361 | G46: 3 | H46: 1 | I46: 0
A47: 05.01.2016 | B47: 8 | C47: 1 | D47: 181.3 | E47: 1 | F47: 361 | G47: 4 | H47: 1 | I47: 0
A48: 05.01.2016 | B48: 9 | C48: 4 | D48: 681.25 | E48: 2 | F48: 361 | G48: 6 | H48: 2 | I48: 0
A49: 05.01.2016 | B49: 10 | C49: 5 | D49: 801.415 | E49: 2 | F49: 361 | G49: 9 | H49: 4 | I49: 0
A50: 05.01.2016 | B50: 11 | C50: 10 | D50: 2728.16 | E50: 6 | F50: 361 | G50: 13 | H50: 6 | I50: 0
A51: 05.01.2016 | B51: 12 | C51: 14 | D51: 2661.245 | E51: 8 | F51: 361 | G51: 13 | H51: 6 | I51: 0
A52: 05.01.2016 | B52: 13 | C52: 12 | D52: 2683.235 | E52: 10 | F52: 361 | G52: 14 | H52: 7 | I52: 0
A53: 05.01.2016 | B53: 14 | C53: 16 | D53: 2733.745 | E53: 8 | F53: 361 | G53: 16 | H53: 9 | I53: 0
A54: 05.01.2016 | B54: 15 | C54: 47 | D54: 7936.9385 | E54: 19 | F54: 361 | G54: 18 | H54: 10 | I54: 0
A55: 05.01.2016 | B55: 16 | C55: 25 | D55: 6362.301 | E55: 19 | F55: 361 | G55: 17 | H55: 10 | I55: 0
A56: 05.01.2016 | B56: 17 | C56: 21 | D56: 4528.3315 | E56: 12 | F56: 361 | G56: 17 | H56: 10 | I56: 0
A57: 05.01.2016 | B57: 18 | C57: 23 | D57: 6348.292 | E57: 10 | F57: 361 | G57: 17 | H57: 10 | I57: 0
A58: 05.01.2016 | B58: 19 | C58: 14 | D58: 5081.48 | E58: 13 | F58: 361 | G58: 17 | H58: 10 | I58: 0
A59: 05.01.2016 | B59: 20 | C59: 33 | D59: 8145.4745 | E59: 15 | F59: 361 | G59: 11 | H59: 7 | I59: 0
A60: 05.01.2016 | B60: 21 | C60: 2 | D60: 420.7875 | E60: 2 | F60: 361 | G60: 10 | H60: 6 | I60: 0
A61: 05.01.2016 | B61: 22 | C61: 0 | D61: 0 | E61: 0 | F61: 361 | G61: 7 | H61: 5 | I61: 0
A62: 06.01.2016 | B62: 7 | C62: 0 | D62: 0 | E62: 0 | F62: 361 | G62: 3 | H62: 1 | I62: 0
A63: 06.01.2016 | B63: 8 | C63: 0 | D63: 0 | E63: 0 | F63: 361 | G63: 4 | H63: 2 | I63: 0
A64: 06.01.2016 | B64: 9 | C64: 1 | D64: 329.3325 | E64: 1 | F64: 361 | G64: 7 | H64: 3 | I64: 0
A65: 06.01.2016 | B65: 10 | C65: 3 | D65: 289.59 | E65: 1 | F65: 361 | G65: 11 | H65: 5 | I65: 0
A66: 06.01.2016 | B66: 11 | C66: 13 | D66: 4713.235 | E66: 5 | F66: 361 | G66: 11 | H66: 5 | I66: 0
A67: 06.01.2016 | B67: 12 | C67: 23 | D67: 3912.8325 | E67: 10 | F67: 361 | G67: 11 | H67: 5 | I67: 0
A68: 06.01.2016 | B68: 13 | C68: 24 | D68: 6483.441 | E68: 16 | F68: 361 | G68: 14 | H68: 7 | I68: 0
A69: 06.01.2016 | B69: 14 | C69: 41 | D69: 7847.201 | E69: 24 | F69: 361 | G69: 15 | H69: 8 | I69: 0
A70: 06.01.2016 | B70: 15 | C70: 37 | D70: 6533.336 | E70: 17 | F70: 361 | G70: 15 | H70: 8 | I70: 0
A71: 06.01.2016 | B71: 16 | C71: 48 | D71: 10474.2525 | E71: 22 | F71: 361 | G71: 14 | H71: 8 | I71: 0
A72: 06.01.2016 | B72: 17 | C72: 35 | D72: 10336.02 | E72: 18 | F72: 361 | G72: 14 | H72: 8 | I72: 0
A73: 06.01.2016 | B73: 18 | C73: 14 | D73: 3728.655 | E73: 9 | F73: 361 | G73: 14 | H73: 8 | I73: 0
A74: 06.01.2016 | B74: 19 | C74: 9 | D74: 1782.646 | E74: 4 | F74: 361 | G74: 13 | H74: 8 | I74: 0
A75: 06.01.2016 | B75: 20 | C75: 4 | D75: 2270.85 | E75: 3 | F75: 361 | G75: 10 | H75: 5 | I75: 0
A76: 06.01.2016 | B76: 21 | C76: 11 | D76: 1638.8575 | E76: 5 | F76: 361 | G76: 10 | H76: 5 | I76: 0
A77: 06.01.2016 | B77: 22 | C77: 0 | D77: 0 | E77: 0 | F77: 361 | G77: 7 | H77: 5 | I77: 0
A78: 07.01.2016 | B78: 7 | C78: 0 | D78: 0 | E78: 0 | F78: 361 | G78: 3 | H78: 2 | I78: 0
A79: 07.01.2016 | B79: 8 | C79: 0 | D79: 0 | E79: 0 | F79: 361 | G79: 3 | H79: 2 | I79: 0
A80: 07.01.2016 | B80: 9 | C80: 0 | D80: 0 | E80: 0 | F80: 361 | G80: 5 | H80: 4 | I80: 0
A81: 07.01.2016 | B81: 10 | C81: 0 | D81: 0 | E81: 0 | F81: 361 | G81: 8 | H81: 4 | I81: 0
A82: 07.01.2016 | B82: 11 | C82: 4 | D82: 1307.1035 | E82: 3 | F82: 361 | G82: 8 | H82: 4 | I82: 0
A83: 07.01.2016 | B83: 12 | C83: 14 | D83: 1447.2035 | E83: 5 | F83: 361 | G83: 9 | H83: 5 | I83: 0
A84: 07.01.2016 | B84: 13 | C84: 28 | D84: 6165.423 | E84: 14 | F84: 361 | G84: 10 | H84: 6 | I84: 0
A85: 07.01.2016 | B85: 14 | C85: 23 | D85: 4801.4875 | E85: 6 | F85: 361 | G85: 11 | H85: 6 | I85: 0
A86: 07.01.2016 | B86: 15 | C86: 2 | D86: 240.7 | E86: 2 | F86: 361 | G86: 11 | H86: 6 | I86: 0
A87: 07.01.2016 | B87: 16 | C87: 27 | D87: 8032.6525 | E87: 10 | F87: 361 | G87: 10 | H87: 5 | I87: 0
A88: 07.01.2016 | B88: 17 | C88: 20 | D88: 6478.6835 | E88: 11 | F88: 361 | G88: 10 | H88: 5 | I88: 0
A89: 07.01.2016 | B89: 18 | C89: 35 | D89: 9152.8195 | E89: 15 | F89: 361 | G89: 10 | H89: 5 | I89: 0
A90: 07.01.2016 | B90: 19 | C90: 11 | D90: 1857.5375 | E90: 4 | F90: 361 | G90: 9 | H90: 5 | I90: 0
A91: 07.01.2016 | B91: 20 | C91: 19 | D91: 4048.1375 | E91: 7 | F91: 361 | G91: 8 | H91: 4 | I91: 0
A92: 07.01.2016 | B92: 21 | C92: 1 | D92: 272.3 | E92: 1 | F92: 361 | G92: 7 | H92: 3 | I92: 0
A93: 07.01.2016 | B93: 22 | C93: 0 | D93: 0 | E93: 0 | F93: 361 | G93: 5 | H93: 2 | I93: 0
A94: 08.01.2016 | B94: 7 | C94: 0 | D94: 0 | E94: 0 | F94: 361 | G94: 3 | H94: 1 | I94: 0
A95: 08.01.2016 | B95: 8 | C95: 0 | D95: 0 | E95: 0 | F95: 361 | G95: 4 | H95: 2 | I95: 0
A96: 08.01.2016 | B96: 9 | C96: 0 | D96: 0 | E96: 0 | F96: 361 | G96: 7 | H96: 4 | I96: 0
A97: 08.01.2016 | B97: 10 | C97: 4 | D97: 1065.6 | E97: 3 | F97: 361 | G97: 10 | H97: 4 | I97: 0
A98: 08.01.2016 | B98: 11 | C98: 1 | D98: 279.65 | E98: 1 | F98: 361 | G98: 11 | H98: 5 | I98: 0
A99: 08.01.2016 | B99: 12 | C99: 9 | D99: 1732.32 | E99: 7 | F99: 361 | G99: 12 | H99: 6 | I99: 0
A100: 08.01.2016 | B100: 13 | C100: 22 | D100: 4893.5135 | E100: 14 | F100: 361 | G100: 14 | H100: 7 | I100: 0
A101: 08.01.2016 | B101: 14 | C101: 19 | D101: 5760.8055 | E101: 17 | F101: 361 | G101: 16 | H101: 8 | I101: 0
A102: 08.01.2016 | B102: 15 | C102: 27 | D102: 6667.3295 | E102: 21 | F102: 361 | G102: 16 | H102: 8 | I102: 0
A103: 08.01.2016 | B103: 16 | C103: 27 | D103: 5346 | E103: 15 | F103: 361 | G103: 15 | H103: 8 | I103: 0
A104: 08.01.2016 | B104: 17 | C104: 14 | D104: 2821.37 | E104: 10 | F104: 361 | G104: 15 | H104: 8 | I104: 0
A105: 08.01.2016 | B105: 18 | C105: 42 | D105: 7736.35 | E105: 14 | F105: 361 | G105: 14 | H105: 7 | I105: 0
A106: 08.01.2016 | B106: 19 | C106: 30 | D106: 5584.74 | E106: 13 | F106: 361 | G106: 14 | H106: 7 | I106: 0
A107: 08.01.2016 | B107: 20 | C107: 21 | D107: 4326.19 | E107: 8 | F107: 361 | G107: 11 | H107: 4 | I107: 0
A108: 08.01.2016 | B108: 21 | C108: 18 | D108: 3533.8135 | E108: 9 | F108: 361 | G108: 11 | H108: 4 | I108: 0
A109: 08.01.2016 | B109: 22 | C109: 0 | D109: 0 | E109: 0 | F109: 361 | G109: 7 | H109: 4 | I109: 0
A110: 09.01.2016 | B110: 7 | C110: 0 | D110: 0 | E110: 0 | F110: 361 | G110: 3 | H110: 1 | I110: 0
A111: 09.01.2016 | B111: 8 | C111: 0 | D111: 0 | E111: 0 | F111: 361 | G111: 4 | H111: 2 | I111: 0
A112: 09.01.2016 | B112: 9 | C112: 0 | D112: 0 | E112: 0 | F112: 361 | G112: 7 | H112: 3 | I112: 0
A113: 09.01.2016 | B113: 10 | C113: 8 | D113: 755.8875 | E113: 1 | F113: 361 | G113: 11 | H113: 5 | I113: 0
A114: 09.01.2016 | B114: 11 | C114: 13 | D114: 3572.1425 | E114: 7 | F114: 361 | G114: 12 | H114: 6 | I114: 0
A115: 09.01.2016 | B115: 12 | C115: 13 | D115: 1899.5875 | E115: 6 | F115: 361 | G115: 14 | H115: 8 | I115: 0
A116: 09.01.2016 | B116: 13 | C116: 27 | D116: 5645.605 | E116: 15 | F116: 361 | G116: 17 | H116: 10 | I116: 0
A117: 09.01.2016 | B117: 14 | C117: 22 | D117: 5841.9285 | E117: 12 | F117: 361 | G117: 19 | H117: 11 | I117: 0
A118: 09.01.2016 | B118: 15 | C118: 35 | D118: 8751.927 | E118: 17 | F118: 361 | G118: 19 | H118: 11 | I118: 0
A119: 09.01.2016 | B119: 16 | C119: 46 | D119: 9465.7775 | E119: 20 | F119: 361 | G119: 18 | H119: 11 | I119: 0
A120: 09.01.2016 | B120: 17 | C120: 50 | D120: 8374.45 | E120: 30 | F120: 361 | G120: 18 | H120: 11 | I120: 0
A121: 09.01.2016 | B121: 18 | C121: 23 | D121: 5309.61 | E121: 11 | F121: 361 | G121: 17 | H121: 11 | I121: 0
A122: 09.01.2016 | B122: 19 | C122: 19 | D122: 4421.795 | E122: 9 | F122: 361 | G122: 17 | H122: 11 | I122: 0
A123: 09.01.2016 | B123: 20 | C123: 24 | D123: 2750.496 | E123: 8 | F123: 361 | G123: 15 | H123: 9 | I123: 0
A124: 09.01.2016 | B124: 21 | C124: 19 | D124: 4394.2635 | E124: 10 | F124: 361 | G124: 13 | H124: 8 | I124: 0
A125: 09.01.2016 | B125: 22 | C125: 0 | D125: 0 | E125: 0 | F125: 361 | G125: 9 | H125: 7 | I125: 0
A126: 10.01.2016 | B126: 8 | C126: 0 | D126: 0 | E126: 0 | F126: 361 | G126: 1 | H126: 1 | I126: 0
A127: 10.01.2016 | B127: 9 | C127: 0 | D127: 0 | E127: 0 | F127: 361 | G127: 5 | H127: 4 | I127: 0
A128: 10.01.2016 | B128: 10 | C128: 2 | D128: 547.95 | E128: 2 | F128: 361 | G128: 10 | H128: 6 | I128: 0
A129: 10.01.2016 | B129: 11 | C129: 10 | D129: 2585.6325 | E129: 5 | F129: 361 | G129: 13 | H129: 9 | I129: 0
A130: 10.01.2016 | B130: 12 | C130: 30 | D130: 6105.556 | E130: 18 | F130: 361 | G130: 14 | H130: 10 | I130: 0
A131: 10.01.2016 | B131: 13 | C131: 28 | D131: 6502.846 | E131: 15 | F131: 361 | G131: 15 | H131: 11 | I131: 0
A132: 10.01.2016 | B132: 14 | C132: 37 | D132: 7717.0525 | E132: 19 | F132: 361 | G132: 16 | H132: 12 | I132: 0
A133: 10.01.2016 | B133: 15 | C133: 51 | D133: 8752.8895 | E133: 22 | F133: 361 | G133: 16 | H133: 12 | I133: 0
A134: 10.01.2016 | B134: 16 | C134: 39 | D134: 7259.6325 | E134: 22 | F134: 361 | G134: 16 | H134: 12 | I134: 0
A135: 10.01.2016 | B135: 17 | C135: 40 | D135: 8015.5405 | E135: 18 | F135: 361 | G135: 16 | H135: 12 | I135: 0
A136: 10.01.2016 | B136: 18 | C136: 46 | D136: 12862.837 | E136: 14 | F136: 361 | G136: 15 | H136: 11 | I136: 0
A137: 10.01.2016 | B137: 19 | C137: 18 | D137: 7146.4375 | E137: 9 | F137: 361 | G137: 15 | H137: 11 | I137: 0
A138: 10.01.2016 | B138: 20 | C138: 16 | D138: 3979.3835 | E138: 7 | F138: 361 | G138: 13 | H138: 9 | I138: 0
A139: 10.01.2016 | B139: 21 | C139: 22 | D139: 8152.867 | E139: 9 | F139: 361 | G139: 11 | H139: 7 | I139: 0
A140: 10.01.2016 | B140: 22 | C140: 0 | D140: 0 | E140: 0 | F140: 361 | G140: 5 | H140: 4 | I140: 0
A141: 11.01.2016 | B141: 7 | C141: 0 | D141: 0 | E141: 0 | F141: 361 | G141: 3 | H141: 1 | I141: 0
A142: 11.01.2016 | B142: 8 | C142: 0 | D142: 0 | E142: 0 | F142: 361 | G142: 4 | H142: 2 | I142: 0
A143: 11.01.2016 | B143: 9 | C143: 0 | D143: 0 | E143: 0 | F143: 361 | G143: 8 | H143: 5 | I143: 0
A144: 11.01.2016 | B144: 10 | C144: 9 | D144: 1251.8575 | E144: 4 | F144: 361 | G144: 12 | H144: 6 | I144: 0
A145: 11.01.2016 | B145: 11 | C145: 9 | D145: 4320.344 | E145: 6 | F145: 361 | G145: 13 | H145: 6 | I145: 0
A146: 11.01.2016 | B146: 12 | C146: 10 | D146: 1740.83 | E146: 9 | F146: 361 | G146: 15 | H146: 7 | I146: 0
A147: 11.01.2016 | B147: 13 | C147: 39 | D147: 8749.9025 | E147: 16 | F147: 361 | G147: 16 | H147: 7 | I147: 0
A148: 11.01.2016 | B148: 14 | C148: 35 | D148: 5254.305 | E148: 12 | F148: 361 | G148: 18 | H148: 9 | I148: 0
A149: 11.01.2016 | B149: 15 | C149: 26 | D149: 6132.1255 | E149: 10 | F149: 361 | G149: 20 | H149: 11 | I149: 0
A150: 11.01.2016 | B150: 16 | C150: 29 | D150: 3881.1025 | E150: 12 | F150: 361 | G150: 20 | H150: 11 | I150: 0
A151: 11.01.2016 | B151: 17 | C151: 16 | D151: 1657.855 | E151: 14 | F151: 361 | G151: 20 | H151: 11 | I151: 0
A152: 11.01.2016 | B152: 18 | C152: 21 | D152: 4786.372 | E152: 14 | F152: 361 | G152: 19 | H152: 10 | I152: 0
A153: 11.01.2016 | B153: 19 | C153: 14 | D153: 2018.7365 | E153: 12 | F153: 361 | G153: 18 | H153: 10 | I153: 0
A154: 11.01.2016 | B154: 20 | C154: 31 | D154: 5099.0605 | E154: 16 | F154: 361 | G154: 15 | H154: 7 | I154: 0
A155: 11.01.2016 | B155: 21 | C155: 18 | D155: 3498.591 | E155: 9 | F155: 361 | G155: 14 | H155: 6 | I155: 0
A156: 11.01.2016 | B156: 22 | C156: 0 | D156: 0 | E156: 0 | F156: 361 | G156: 9 | H156: 5 | I156: 0
A157: 12.01.2016 | B157: 0 | C157: 0 | D157: 0 | E157: 0 | F157: 361 | G157: 1 | H157: 1 | I157: 0
A158: 12.01.2016 | B158: 1 | C158: 0 | D158: 0 | E158: 0 | F158: 361 | G158: 1 | H158: 1 | I158: 0
A159: 12.01.2016 | B159: 2 | C159: 0 | D159: 0 | E159: 0 | F159: 361 | G159: 1 | H159: 1 | I159: 0
A160: 12.01.2016 | B160: 3 | C160: 0 | D160: 0 | E160: 0 | F160: 361 | G160: 1 | H160: 1 | I160: 0
A161: 12.01.2016 | B161: 4 | C161: 0 | D161: 0 | E161: 0 | F161: 361 | G161: 1 | H161: 1 | I161: 0
A162: 12.01.2016 | B162: 5 | C162: 0 | D162: 0 | E162: 0 | F162: 361 | G162: 1 | H162: 1 | I162: 0
A163: 12.01.2016 | B163: 6 | C163: 0 | D163: 0 | E163: 0 | F163: 361 | G163: 1 | H163: 1 | I163: 0
A164: 12.01.2016 | B164: 7 | C164: 0 | D164: 0 | E164: 0 | F164: 361 | G164: 5 | H164: 2 | I164: 0
A165: 12.01.2016 | B165: 8 | C165: 1 | D165: 65.55 | E165: 1 | F165: 361 | G165: 7 | H165: 3 | I165: 0
A166: 12.01.2016 | B166: 9 | C166: 2 | D166: 404.85 | E166: 2 | F166: 361 | G166: 9 | H166: 4 | I166: 0
A167: 12.01.2016 | B167: 10 | C167: 2 | D167: 237.2685 | E167: 2 | F167: 361 | G167: 13 | H167: 5 | I167: 0
A168: 12.01.2016 | B168: 11 | C168: 9 | D168: 1261.4825 | E168: 3 | F168: 361 | G168: 13 | H168: 5 | I168: 0
A169: 12.01.2016 | B169: 12 | C169: 18 | D169: 2773.291 | E169: 12 | F169: 361 | G169: 15 | H169: 6 | I169: 0
A170: 12.01.2016 | B170: 13 | C170: 26 | D170: 4989.772 | E170: 8 | F170: 361 | G170: 17 | H170: 7 | I170: 0
A171: 12.01.2016 | B171: 14 | C171: 19 | D171: 4304.2175 | E171: 8 | F171: 361 | G171: 17 | H171: 8 | I171: 0
A172: 12.01.2016 | B172: 15 | C172: 24 | D172: 6125.411 | E172: 13 | F172: 361 | G172: 19 | H172: 9 | I172: 0
A173: 12.01.2016 | B173: 16 | C173: 9 | D173: 3506.9595 | E173: 13 | F173: 361 | G173: 19 | H173: 9 | I173: 0
A174: 12.01.2016 | B174: 17 | C174: 21 | D174: 3508.4775 | E174: 15 | F174: 361 | G174: 19 | H174: 9 | I174: 0
A175: 12.01.2016 | B175: 18 | C175: 37 | D175: 6583.67 | E175: 17 | F175: 361 | G175: 18 | H175: 9 | I175: 0
A176: 12.01.2016 | B176: 19 | C176: 27 | D176: 3802.8455 | E176: 12 | F176: 361 | G176: 18 | H176: 9 | I176: 0
A177: 12.01.2016 | B177: 20 | C177: 9 | D177: 1546.701 | E177: 4 | F177: 361 | G177: 13 | H177: 6 | I177: 0
A178: 12.01.2016 | B178: 21 | C178: 5 | D178: 303.765 | E178: 2 | F178: 361 | G178: 12 | H178: 5 | I178: 0
A179: 12.01.2016 | B179: 22 | C179: 0 | D179: 0 | E179: 0 | F179: 361 | G179: 8 | H179: 5 | I179: 0
A180: 13.01.2016 | B180: 0 | C180: 0 | D180: 0 | E180: 0 | F180: 361 | G180: 1 | H180: 1 | I180: 0
A181: 13.01.2016 | B181: 1 | C181: 0 | D181: 0 | E181: 0 | F181: 361 | G181: 1 | H181: 1 | I181: 0
A182: 13.01.2016 | B182: 2 | C182: 0 | D182: 0 | E182: 0 | F182: 361 | G182: 1 | H182: 1 | I182: 0
A183: 13.01.2016 | B183: 3 | C183: 0 | D183: 0 | E183: 0 | F183: 361 | G183: 1 | H183: 1 | I183: 0
A184: 13.01.2016 | B184: 4 | C184: 0 | D184: 0 | E184: 0 | F184: 361 | G184: 1 | H184: 1 | I184: 0
A185: 13.01.2016 | B185: 5 | C185: 0 | D185: 0 | E185: 0 | F185: 361 | G185: 1 | H185: 1 | I185: 0
A186: 13.01.2016 | B186: 6 | C186: 0 | D186: 0 | E186: 0 | F186: 361 | G186: 1 | H186: 1 | I186: 0
A187: 13.01.2016 | B187: 7 | C187: 0 | D187: 0 | E187: 0 | F187: 361 | G187: 5 | H187: 2 | I187: 0
A188: 13.01.2016 | B188: 8 | C188: 0 | D188: 0 | E188: 0 | F188: 361 | G188: 6 | H188: 2 | I188: 0
A189: 13.01.2016 | B189: 9 | C189: 2 | D189: 214.5 | E189: 2 | F189: 361 | G189: 8 | H189: 3 | I189: 0
A190: 13.01.2016 | B190: 10 | C190: 9 | D190: 3460.5325 | E190: 7 | F190: 361 | G190: 12 | H190: 5 | I190: 0
A191: 13.01.2016 | B191: 11 | C191: 4 | D191: 1295.815 | E191: 4 | F191: 361 | G191: 13 | H191: 6 | I191: 0
A192: 13.01.2016 | B192: 12 | C192: 24 | D192: 4254.903 | E192: 17 | F192: 361 | G192: 14 | H192: 7 | I192: 0
A193: 13.01.2016 | B193: 13 | C193: 27 | D193: 6157.161 | E193: 18 | F193: 361 | G193: 15 | H193: 8 | I193: 0
A194: 13.01.2016 | B194: 14 | C194: 15 | D194: 1786.0585 | E194: 13 | F194: 361 | G194: 17 | H194: 9 | I194: 0
A195: 13.01.2016 | B195: 15 | C195: 11 | D195: 2015.391 | E195: 9 | F195: 361 | G195: 18 | H195: 10 | I195: 0
A196: 13.01.2016 | B196: 16 | C196: 27 | D196: 4205.4275 | E196: 16 | F196: 361 | G196: 18 | H196: 10 | I196: 0
A197: 13.01.2016 | B197: 17 | C197: 33 | D197: 6794.8695 | E197: 19 | F197: 361 | G197: 17 | H197: 9 | I197: 0
A198: 13.01.2016 | B198: 18 | C198: 18 | D198: 5465.42 | E198: 8 | F198: 361 | G198: 17 | H198: 9 | I198: 0
A199: 13.01.2016 | B199: 19 | C199: 18 | D199: 4028.555 | E199: 15 | F199: 361 | G199: 17 | H199: 9 | I199: 0
A200: 13.01.2016 | B200: 20 | C200: 13 | D200: 5196.1935 | E200: 10 | F200: 361 | G200: 13 | H200: 6 | I200: 0
... 4300 more rows

Sheet Подбор параметра
A1: Объем производства | B1: 40492.61084 | C1: Формула
A2: Цена реализации | B2: 0.85 | C2: 0.85
A3: Выручка | B3: =B1*B2 -> 34418.71921 | C3: =B1*B2
A4: Затраты на материалы | B4: =0.15*B1 -> 6073.891626 | C4: =0,15*B1
A5: Зар. плата | B5: =0.35*B1+1000 -> 15172.41379 | C5: =0,35*B1+1000
A6: Нарах. на зар. плату | B6: =0.42*B5 -> 6372.413793 | C6: =0,42*B5
A7: Прочие расходы | B7: 1800 | C7: 1800
A8: Всего расходов | B8: =SUM(B4:B7) -> 29418.71921 | C8: =Сумм(B4:B7)
A9: Прибыль | B9: =B3-B8 -> 5000 | C9: =B3-B8

Sheet Методи оптимізації
C1: Товар А | D1: Товар Б | E1: Всего
B2: Количество единиц товара | C2: 100000 | D2: 400000 | E2: =SUM(C2:D2) -> 500000
B3: Себестоимость | C3: 4 | D3: 6
B4: Себестоимость партии товара | C4: =C2*C3 -> 400000 | D4: =D2*D3 -> 2400000
B5: Текущие расходы | C5: 1000 | D5: 1500
B6: Полные затраты | C6: =SUM(C4:C5) -> 401000 | D6: =SUM(D4:D5) -> 2401500
B7: Цена товара в розницу | C7: 5 | D7: 9
B8: Получены при продаже | C8: =C2*C7 -> 500000 | D8: =D2*D7 -> 3600000
B9: Прибыль | C9: =C8-C6 -> 99000 | D9: =D8-D6 -> 1198500 | E9: =SUM(C9:D9) -> 1297500
B11: Ограничения
B12: C2:D2 | C12: <= | D12: 400000
B13: C2:D2 | C13: >=0 | D13: 50000
B14: E2 | C14: < | D14: 500000

Sheet Реклама
B1: Ефективність | C1: Витрати | D1: Частка витрат
A2: ТБ | B2: 10 | D2: <= | E2: 0.35
A3: Радіо | B3: 3 | D3: >= (від тб) | E3: 0.5
A4: Газета | B4: 7
A5: Афіша | B5: 4 | D5: >= | E5: 0.15
A6: Обмеження | B6: Частка на ТБ
B7: Частка на афіши
B8: Витрати на радіо відносно ТБ
A9: Сума витрат
A10: Бюджет
A11: Цільова функція

Sheet Агенты_оптимум
A1: Компания реализует продукцию в пяти географических регионах. Покупательная способность жителей этих регионов определена:
A3: Регион | B3: 1 | C3: 2 | D3: 3 | E3: 4 | F3: 5
A4: Покупательная способность | B4: 54000 | C4: 16000 | D4: 36000 | E4: 41000 | F4: 26000
A6: Профессиональный уровень пяти агентов по продаже, работающие в компании, неодинаков. Предполагается, что доля покупательной способности, что может быть ими реализованной составляет:
A7: Агент | B7: A | C7: B | D7: C | E7: D | F7: E
A8: Доля | B8: 0.68 | C8: 0.29 | D8: 0.48 | E8: 0.47 | F8: 0.29
A10: Распределить агентов по регионам для достижения максимальной прибыли (в каждом регионе может работать только один агент).

Sheet Найм на работу
A1: Ваше предприятие объявило набор сотрудников для нового филиала. Кадровое агентство отобрала 18 претендентов на 12 вакансий по 7 должностям. Тестирования и собеседования определили 5 групп с одинаковыми оценками и возможностями (не могут занимать разные должности). Нужно назначить претендентов на вакантные места таким образом, чтобы общая эффективность работы филиала была высокой.
B3: Должность №1 | C3: Должность №2 | D3: Должность №3 | E3: Должность №4 | F3: Должность №5 | G3: Должность №6 | H3: Должность №7 | I3: Всего претендентов
A4: Группа А | B4: 4 | C4: 4 | D4: 7 | E4: 5 | F4: 7 | G4: 4 | H4: 3 | I4: 2
A5: Группа Б | B5: 2 | C5: 5 | D5: 6 | E5: 4 | F5: 6 | G5: 4 | H5: 2 | I5: 3
A6: Группа В | B6: 3 | C6: 4 | D6: 5 | E6: 5 | F6: 5 | G6: 4 | H6: 3 | I6: 3
A7: Группа Г | B7: 4 | C7: 3 | D7: 4 | E7: 4 | F7: 4 | G7: 4 | H7: 4 | I7: 4
A8: Группа Д | B8: 5 | C8: 4 | D8: 3 | E8: 2 | F8: 3 | G8: 4 | H8: 5 | I8: 6
A9: Всего вакансий | B9: 3 | C9: 2 | D9: 1 | E9: 2 | F9: 1 | G9: 1 | H9: 2

Sheet Длина пути
A1: Ваша фирма имеет представительства в 7 городах, расстояния между каждой парой которых задано с помощью квадратной матрицы. Финансовый директор Вашей фирмы должен уехать из начального города №1, проехать все города (филиалы Вашей фирмы) ровно 1 раз и вернуться в исходный город таким образом, чтобы общая длина маршрута была наименьшей.
B3: Город 1 | C3: Город 2 | D3: Город 3 | E3: Город 4 | F3: Город 5 | G3: Город 6 | H3: Город 7
A4: Город 1 | B4: 0 | C4: 9.1 | D4: 15.5 | E4: 10 | F4: 6 | G4: 13 | H4: 16.3
A5: Город 2 | B5: 9.1 | C5: 0 | D5: 6.7 | E5: 5.1 | F5: 10.3 | G5: 11.7 | H5: 11.2
A6: Город 3 | B6: 15.5 | C6: 6.7 | D6: 0 | E6: 7.3 | F6: 15.1 | G6: 12.8 | H6: 8.9
A7: Город 4 | B7: 10 | C7: 5.1 | D7: 7.3 | E7: 0 | F7: 8 | G7: 6.7 | H7: 6.7
A8: Город 5 | B8: 6 | C8: 10.3 | D8: 15.1 | E8: 8 | F8: 0 | G8: 7.8 | H8: 12.5
A9: Город 6 | B9: 13 | C9: 11.7 | D9: 12.8 | E9: 6.7 | F9: 7.8 | G9: 0 | H9: 6
A10: Город 7 | B10: 16.3 | C10: 11.2 | D10: 8.9 | E10: 6.7 | F10: 12.5 | G10: 6 | H10: 0

Sheet Выборка
A1: Змінна 1 | B1: Змінна 2 | D1: Кишені | F1: 6.783475222 | G1: 0 | J1: Столбец 1 | K1: Столбец 2 | P1: Точка | Q1: Змінна 1 | R1: Ранг | S1: Процент | U1: Кишені | V1: Частота
A2: 6.313493835 | B2: 3 | D2: -10 | F2: -0.1592719552 | G2: 4 | I2: Столбец 1 | J2: 1 | P2: 3 | Q2: 18.90815373 | R2: 1 | S2: 1 | U2: -10 | V2: 0 | Z2: Змінна 1 | AC2: Змінна 2
A3: -6.499899534 | B3: 1 | D3: -5 | F3: 6.313493835 | G3: 1 | I3: Столбец 2 | J3: -0.5677926636 | K3: 1 | P3: 14 | Q3: 12.80289769 | R3: 2 | S3: 0.965 | U3: -5 | V3: 1
A4: 18.90815373 | B4: 0 | D4: 0 | F4: 1.913449417 | G4: 4 | P4: 13 | Q4: 10.9503252 | R4: 3 | S4: 0.931 | U4: 0 | V4: 3 | Z4: Среднее | AA4: 4.390489691 | AC4: Среднее | AD4: 1.533333333
A5: 1.511640342 | B5: 2 | D5: 5 | F5: 2.391678784 | G5: 1 | P5: 7 | Q5: 9.599100288 | R5: 4 | S5: 0.896 | U5: 5 | V5: 15 | Z5: Стандартная ошибка | AA5: 0.8682169177 | AC5: Стандартная ошибка | AD5: 0.2524971075
A6: 4.235082436 | B6: 1 | D6: 10 | F6: 7.705145784 | G6: 0 | J6: Змінна 1 | K6: Змінна 2 | P6: 19 | Q6: 7.705145784 | R6: 5 | S6: 0.862 | U6: 10 | V6: 8 | Z6: Медиана | AA6: 4.264902494 | AC6: Медиана | AD6: 1
A7: 4.294722551 | B7: 4 | D7: 20 | F7: -0.7773702388 | G7: 2 | I7: Змінна 1 | J7: 1 | P7: 22 | Q7: 6.783475222 | R7: 6 | S7: 0.827 | U7: 20 | V7: 3 | Z7: Мода | AC7: Мода | AD7: 1
A8: 9.599100288 | B8: 0 | F8: 0.08499558437 | G8: 0 | I8: Змінна 2 | J8: -0.01860827712 | K8: 1 | P8: 25 | Q8: 6.76466005 | R8: 7 | S8: 0.793 | U8: Еще | V8: 0 | Z8: Стандартное отклонение | AA8: 4.755419906 | AC8: Стандартное отклонение | AD8: 1.382983615
A9: 6.361287781 | B9: 0 | F9: 4.422517926 | G9: 0 | P9: 16 | Q9: 6.513900992 | R9: 8 | S9: 0.758 | Z9: Дисперсия выборки | AA9: 22.61401849 | AC9: Дисперсия выборки | AD9: 1.912643678
A10: 0.6885931119 | B10: 1 | F10: 12.80289769 | G10: 0 | P10: 8 | Q10: 6.361287781 | R10: 9 | S10: 0.724 | Z10: Эксцесс | AA10: 2.408338488 | AC10: Эксцесс | AD10: -0.8812093856
A11: 5.555566425 | B11: 1 | P11: 1 | Q11: 6.313493835 | R11: 10 | S11: 0.689 | Z11: Асимметричность | AA11: 0.7677754472 | AC11: Асимметричность | AD11: 0.5964370284
A12: 4.511568826 | B12: 1 | P12: 10 | Q12: 5.555566425 | R12: 11 | S12: 0.655 | Z12: Интервал | AA12: 25.40805326 | AC12: Интервал | AD12: 4
A13: -0.1592719552 | B13: 4 | P13: 11 | Q13: 4.511568826 | R13: 12 | S13: 0.62 | Z13: Минимум | AA13: -6.499899534 | AC13: Минимум | AD13: 0
A14: 10.9503252 | B14: 2 | P14: 20 | Q14: 4.501160796 | R14: 13 | S14: 0.586 | Z14: Максимум | AA14: 18.90815373 | AC14: Максимум | AD14: 4
A15: 12.80289769 | B15: 2 | P15: 24 | Q15: 4.422517926 | R15: 14 | S15: 0.551 | Z15: Сумма | AA15: 131.7146907 | AC15: Сумма | AD15: 46
A16: 1.913449417 | B16: 1 | P16: 6 | Q16: 4.294722551 | R16: 15 | S16: 0.517 | Z16: Счет | AA16: 30 | AC16: Счет | AD16: 30
A17: 6.513900992 | B17: 3 | P17: 5 | Q17: 4.235082436 | R17: 16 | S17: 0.482
A18: 2.583178578 | B18: 4 | P18: 23 | Q18: 3.973244596 | R18: 17 | S18: 0.448 | Z18: Парный двухвыборочный t-тест для средних
A19: 2.131796358 | B19: 0 | P19: 29 | Q19: 3.836769232 | R19: 18 | S19: 0.413
A20: 7.705145784 | B20: 4 | P20: 17 | Q20: 2.583178578 | R20: 19 | S20: 0.379 | AA20: Змінна 1 | AB20: Змінна 2
A21: 4.501160796 | B21: 1 | P21: 30 | Q21: 2.391678784 | R21: 20 | S21: 0.344 | Z21: Среднее | AA21: 4.390489691 | AB21: 1.533333333
A22: 0.08499558437 | B22: 2 | P22: 18 | Q22: 2.131796358 | R22: 21 | S22: 0.31 | Z22: Дисперсия | AA22: 22.61401849 | AB22: 1.912643678
A23: 6.783475222 | B23: 3 | P23: 15 | Q23: 1.913449417 | R23: 22 | S23: 0.275 | Z23: Наблюдения | AA23: 30 | AB23: 30
A24: 3.973244596 | B24: 0 | P24: 4 | Q24: 1.511640342 | R24: 23 | S24: 0.241 | Z24: Корреляция Пирсона | AA24: -0.01860827712
A25: 4.422517926 | B25: 0 | P25: 27 | Q25: 1.029880999 | R25: 24 | S25: 0.206 | Z25: Гипотетическая разность средних | AA25: 3
A26: 6.76466005 | B26: 1 | P26: 9 | Q26: 0.6885931119 | R26: 25 | S26: 0.172 | Z26: df | AA26: 29
A27: -0.7773702388 | B27: 1 | P27: 21 | Q27: 0.08499558437 | R27: 26 | S27: 0.137 | Z27: t-статистика | AA27: -0.1571976557
A28: 1.029880999 | B28: 0 | P28: 12 | Q28: -0.1592719552 | R28: 27 | S28: 0.103 | Z28: P(T<=t) одностороннее | AA28: 0.4380892239
A29: -1.217054084 | B29: 1 | P29: 26 | Q29: -0.7773702388 | R29: 28 | S29: 0.068 | Z29: t критическое одностороннее | AA29: 1.699127027
A30: 3.836769232 | B30: 3 | P30: 28 | Q30: -1.217054084 | R30: 29 | S30: 0.034 | Z30: P(T<=t) двухстороннее | AA30: 0.8761784478
A31: 2.391678784 | B31: 0 | P31: 2 | Q31: -6.499899534 | R31: 30 | S31: 0 | Z31: t критическое двухстороннее | AA31: 2.045229642

Sheet CEO
A1: Month | B1: Petrov | E1: Ivanov
B2: Sales, USD | C2: Wages, USD | D2: Staff, persons | E2: Sales, USD | F2: Wages, USD | G2: Staff, persons
A3: 1 | B3: 14809 | C3: 4888 | D3: 6 | E3: 20708 | F3: 5197 | G3: 9
A4: 2 | B4: 12458 | C4: 5348 | D4: 10 | E4: 8585 | F4: 5185 | G4: 10
A5: 3 | B5: 16654 | C5: 4700 | D5: 5 | E5: 10444 | F5: 4950 | G5: 4
A6: 4 | B6: 18535 | C6: 4685 | D6: 9 | E6: 11833 | F6: 4586 | G6: 8
A7: 5 | B7: 19896 | C7: 4873 | D7: 4 | E7: 20570 | F7: 5042 | G7: 9
A8: 6 | B8: 11414 | C8: 4588 | D8: 9 | E8: 21890 | F8: 4955 | G8: 10
A9: 7 | B9: 17550 | C9: 4977 | D9: 7 | E9: 21973 | F9: 4747 | G9: 9
A10: 8 | B10: 18799 | C10: 4885 | D10: 10 | E10: 17238 | F10: 4929 | G10: 4
A11: 9 | B11: 13950 | C11: 5151 | D11: 8 | E11: 13527 | F11: 4775 | G11: 4
A12: 10 | B12: 12430 | C12: 4863 | D12: 9 | E12: 16417 | F12: 5310 | G12: 7
A13: 11 | B13: 13214 | C13: 5015 | D13: 6 | E13: 7806 | F13: 4969 | G13: 8
A14: 12 | B14: 13498 | C14: 4815 | D14: 10 | E14: 11932 | F14: 5198 | G14: 7

Sheet Партии товара
A1: № | B1: Партия 1 | C1: Партия 2 | D1: Партия 3
A2: 1 | B2: 27 | C2: 17 | D2: 24
A3: 2 | B3: 20 | C3: 13 | D3: 21
A4: 3 | B4: 24 | C4: 15 | D4: 24
A5: 4 | B5: 26 | C5: 13 | D5: 30
A6: 5 | B6: 24 | C6: 13 | D6: 22
A7: 6 | B7: 20 | C7: 20 | D7: 31
A8: 7 | B8: 25 | C8: 16 | D8: 27
A9: 8 | B9: 24 | C9: 17 | D9: 30
A10: 9 | B10: 29 | C10: 16 | D10: 33
A11: 10 | B11: 21 | C11: 18 | D11: 33
A12: 11 | B12: 18 | C12: 17 | D12: 32
A13: 12 | B13: 25 | C13: 13 | D13: 35
A14: 13 | B14: 19 | C14: 17 | D14: 23
A15: 14 | B15: 19 | C15: 21 | D15: 34
A16: 15 | B16: 21 | C16: 17 | D16: 21
A17: 16 | B17: 18 | C17: 20 | D17: 34
A18: 17 | B18: 29 | C18: 13 | D18: 35
A19: 18 | B19: 17 | C19: 20 | D19: 22
A20: 19 | B20: 28 | C20: 20 | D20: 27
A21: 20 | B21: 24 | C21: 19 | D21: 24
A22: 21 | B22: 28 | C22: 21 | D22: 23
A23: 22 | B23: 27 | C23: 20 | D23: 22
A24: 23 | B24: 24 | C24: 15 | D24: 33

Sheet Операторы
A1: День | B1: Оператор 1 | C1: Оператор 2 | D1: Оператор 3 | E1: Оператор 4 | F1: Оператор 5
A2: 1 | B2: 33 | C2: 14 | D2: 11 | E2: 26 | F2: 27
A3: 2 | B3: 24 | C3: 12 | D3: 15 | E3: 24 | F3: 24
A4: 3 | B4: 25 | C4: 17 | D4: 14 | E4: 30 | F4: 24
A5: 4 | B5: 32 | C5: 13 | D5: 13 | E5: 22 | F5: 32
A6: 5 | B6: 33 | C6: 14 | D6: 15 | E6: 20 | F6: 24
A7: 6 | B7: 34 | C7: 13 | D7: 17 | E7: 26 | F7: 27
A8: 7 | B8: 24 | C8: 25 | D8: 16 | E8: 28 | F8: 37
A9: 8 | B9: 23 | C9: 20 | D9: 13 | E9: 26 | F9: 34
A10: 9 | B10: 22 | C10: 22 | D10: 12 | E10: 24 | F10: 32
A11: 10 | B11: 36 | C11: 21 | D11: 13 | E11: 32 | F11: 30
A12: 11 | B12: 27 | C12: 31 | D12: 10 | E12: 26 | F12: 30
A13: 12 | B13: 21 | C13: 28 | D13: 8 | E13: 24 | F13: 28
A14: 13 | B14: 22 | C14: 32 | D14: 12 | E14: 32 | F14: 32
A15: 14 | B15: 31 | C15: 32 | D15: 13 | E15: 26 | F15: 37
A16: 15 | B16: 23 | C16: 39 | D16: 17 | E16: 30 | F16: 31
A17: 16 | B17: 20 | C17: 35 | D17: 11 | E17: 20 | F17: 37
A18: 17 | B18: 30 | C18: 42 | D18: 8 | E18: 22 | F18: 40
A19: 18 | B19: 31 | C19: 45 | D19: 11 | E19: 32 | F19: 39
A20: 19 | B20: 33 | C20: 46 | D20: 13 | E20: 22 | F20: 39
A21: 20 | B21: 33 | C21: 52 | D21: 11 | E21: 32 | F21: 42
A22: 21 | B22: 21 | C22: 44 | D22: 9 | E22: 28 | F22: 38
A23: 22 | B23: 26 | C23: 46 | D23: 17 | E23: 24 | F23: 34
A24: 23 | B24: 35 | C24: 47 | D24: 12 | E24: 30 | F24: 37
A25: 24 | B25: 20 | C25: 50 | D25: 14 | E25: 30 | F25: 35
A26: 25 | B26: 35 | C26: 56 | D26: 14 | E26: 26 | F26: 45
A27: 26 | B27: 32 | C27: 58 | D27: 14 | E27: 28 | F27: 37
A28: 27 | B28: 27 | C28: 66 | D28: 10 | E28: 24 | F28: 38
A29: 28 | B29: 24 | C29: 66 | D29: 15 | E29: 24 | F29: 41
A30: 29 | B30: 34 | C30: 67 | D30: 15 | E30: 22 | F30: 44

Sheet Жалобы
A1: Месяц | B1: Количество жалоб
A2: 1 | B2: 34
A3: 2 | B3: 39
A4: 3 | B4: 38
A5: 4 | B5: 36
A6: 5 | B6: 33
A7: 6 | B7: 32
A8: 7 | B8: 30
A9: 8 | B9: 37
A10: 9 | B10: 37
A11: 10 | B11: 34
A12: 11 | B12: 35
A13: 12 | B13: 33
A14: 13 | B14: 34
A15: 14 | B15: 33
A16: 15 | B16: 31
A17: 16 | B17: 33
A18: 17 | B18: 32
A19: 18 | B19: 34
A20: 19 | B20: 34
A21: 20 | B21: 38
A22: 21 | B22: 33
A23: 22 | B23: 36
A24: 23 | B24: 38
A25: 24 | B25: 37

Sheet Платіжний баланс
B1: Експорт товарів та послуг | C1: Імпорт товарів та послуг | D1: Експорт товарів | E1: Імпорт товарів | F1: Експорт послуг | G1: Імпорт послуг
A2: 1 кв. 95 | B2: 3425 | C2: 3806 | D2: 2751 | E2: 3504 | F2: 674 | G2: 302
A3: 2 кв. 95 | B3: 4224 | C3: 4498 | D3: 3505 | E3: 4149 | F3: 719 | G3: 349
A4: 3 кв. 95 | B4: 4570 | C4: 4800 | D4: 3859 | E4: 4471 | F4: 711 | G4: 329
A5: 4 кв. 95 | B5: 4871 | C5: 5176 | D5: 4129 | E5: 4822 | F5: 742 | G5: 354
A6: 1 кв. 96 | B6: 4667 | C6: 5369 | D6: 3544 | E6: 5050 | F6: 1123 | G6: 319
A7: 2 кв. 96 | B7: 5486 | C7: 5421 | D7: 4208 | E7: 5019 | F7: 1278 | G7: 402
A8: 3 кв. 96 | B8: 5068 | C8: 5090 | D8: 3905 | E8: 4624 | F8: 1163 | G8: 466
A9: 4 кв. 96 | B9: 5125 | C9: 5588 | D9: 3890 | E9: 5150 | F9: 1235 | G9: 438
A10: 1 кв. 97 | B10: 4744 | C10: 5485 | D10: 3527 | E10: 4983 | F10: 1217 | G10: 502
A11: 2 кв. 97 | B11: 5040 | C11: 5394 | D11: 3858 | E11: 4882 | F11: 1182 | G11: 512
A12: 3 кв. 97 | B12: 5205 | C12: 5454 | D12: 3945 | E12: 4830 | F12: 1260 | G12: 624
A13: 4 кв. 97 | B13: 5366 | C13: 5558 | D13: 4088 | E13: 4928 | F13: 1278 | G13: 630
A14: 1 кв. 98 | B14: 4421 | C14: 5143 | D14: 3443 | E14: 4459 | F14: 978 | G14: 684
A15: 2 кв. 98 | B15: 4727 | C15: 4988 | D15: 3750 | E15: 4270 | F15: 977 | G15: 718
A16: 3 кв. 98 | B16: 4147 | C16: 4511 | D16: 3174 | E16: 3868 | F16: 973 | G16: 643
A17: 4 кв. 98 | B17: 4326 | C17: 4186 | D17: 3332 | E17: 3686 | F17: 994 | G17: 500
A18: 1 кв. 99 | B18: 3587 | C18: 3741 | D18: 2651 | E18: 3290 | F18: 936 | G18: 451
A19: 2 кв. 99 | B19: 4833 | C19: 3287 | D19: 3871 | E19: 2761 | F19: 962 | G19: 526
A20: 3 кв. 99 | B20: 4130 | C20: 3658 | D20: 3180 | E20: 2949 | F20: 950 | G20: 709
A21: 4 кв. 99 | B21: 4508 | C21: 4551 | D21: 3487 | E21: 3945 | F21: 1021 | G21: 606
A22: 1 кв. 00 | B22: 4571 | C22: 4604 | D22: 3627 | E22: 4015 | F22: 944 | G22: 589
A23: 2 кв. 00 | B23: 4598 | C23: 4155 | D23: 3675 | E23: 3390 | F23: 923 | G23: 765
A24: 3 кв. 00 | B24: 5052 | C24: 4230 | D24: 4103 | E24: 3379 | F24: 949 | G24: 851
A25: 4 кв. 00 | B25: 5301 | C25: 5127 | D25: 4317 | E25: 4159 | F25: 984 | G25: 968

Sheet Forecast
A1: Date | B1: Airport Passengers
A2: 2009-01-01 | B2: 2644539
A3: 2009-02-01 | B3: 2359800
A4: 2009-03-01 | B4: 2925918
A5: 2009-04-01 | B5: 3024973
A6: 2009-05-01 | B6: 3177100
A7: 2009-06-01 | B7: 3419595
A8: 2009-07-01 | B8: 3649702
A9: 2009-08-01 | B9: 3650668
A10: 2009-09-01 | B10: 3191526
A11: 2009-10-01 | B11: 3249428
A12: 2009-11-01 | B12: 2971484
A13: 2009-12-01 | B13: 3074209
A14: 2010-01-01 | B14: 2785466
A15: 2010-02-01 | B15: 2515361
A16: 2010-03-01 | B16: 3105958
A17: 2010-04-01 | B17: 3139059
A18: 2010-05-01 | B18: 3380355
A19: 2010-06-01 | B19: 3612886
A20: 2010-07-01 | B20: 3765824
A21: 2010-08-01 | B21: 3771842
A22: 2010-09-01 | B22: 3356365
A23: 2010-10-01 | B23: 3490100
A24: 2010-11-01 | B24: 3163659
A25: 2010-12-01 | B25: 3167124
A26: 2011-01-01 | B26: 2883810
A27: 2011-02-01 | B27: 2610667
A28: 2011-03-01 | B28: 3129205
A29: 2011-04-01 | B29: 3200527
A30: 2011-05-01 | B30: 3547804
A31: 2011-06-01 | B31: 3766323
A32: 2011-07-01 | B32: 3935589
A33: 2011-08-01 | B33: 3917884
A34: 2011-09-01 | B34: 3564970
A35: 2011-10-01 | B35: 3602455
A36: 2011-11-01 | B36: 3326859
A37: 2011-12-01 | B37: 3441693
A38: 2012-01-01 | B38: 3211600
A39: 2012-02-01 | B39: 2998119
A40: 2012-03-01 | B40: 3472440
A41: 2012-04-01 | B41: 3563007
A42: 2012-05-01 | B42: 3820570
A43: 2012-06-01 | B43: 4107195
A44: 2012-07-01 | B44: 4284443
A45: 2012-08-01 | B45: 4356216
A46: 2012-09-01 | B46: 3819379
A47: 2012-10-01 | B47: 3844987
A48: 2012-11-01 | B48: 3478890
A49: 2012-12-01 | B49: 3443039
A50: 2013-01-01 | B50: 3204637
A51: 2013-02-01 | B51: 2966477
A52: 2013-03-01 | B52: 3593364
A53: 2013-04-01 | B53: 3604104
A54: 2013-05-01 | B54: 3933016
A55: 2013-06-01 | B55: 4146797
A56: 2013-07-01 | B56: 4176486
A57: 2013-08-01 | B57: 4347059
A58: 2013-09-01 | B58: 3781168

Sheet Банківські вклади
A1: Час | B1: Банк А | C1: Банк В
A2: 00-1 | B2: 558.359 | C2: 287.806
A3: 00-2 | B3: 554.779 | C3: 260.146
A4: 00-3 | B4: 591.981 | C4: 228.003
A5: 00-4 | B5: 571.263 | C5: 274.378
A6: 00-5 | B6: 595.686 | C6: 249.499
A7: 00-6 | B7: 609.378 | C7: 266.124
A8: 00-7 | B8: 660.442 | C8: 321.598
A9: 00-8 | B9: 651.997 | C9: 364.874
A10: 00-9 | B10: 652.856 | C10: 450.373
A11: 00-10 | B11: 640.412 | C11: 343.303
A12: 00-11 | B12: 700.798 | C12: 460.19
A13: 00-12 | B13: 674.255 | C13: 370.828
A14: 01-1 | B14: 709.568 | C14: 510.112
A15: 01-2 | B15: 687.238 | C15: 481.75
A16: 01-3 | B16: 701.528 | C16: 427.398
A17: 01-4 | B17: 770.424 | C17: 518.218
A18: 01-5 | B18: 751.412 | C18: 542.211
A19: 01-6 | B19: 748.55 | C19: 496.274
A20: 01-7 | B20: 757.496 | C20: 514.465
A21: 01-8 | B21: 774.63 | C21: 593.817
A22: 01-9 | B22: 822.892 | C22: 570.909
A23: 01-10 | B23: 847.17 | C23: 631.084
A24: 01-11 | B24: 825.947 | C24: 641.359
A25: 01-12 | B25: 865.033 | C25: 657.133

Sheet Цена
A1: Цена | B1: Кол-во
A2: 712 | B2: 609
A3: 777 | B3: 411
A4: 728 | B4: 506
A5: 780 | B5: 408
A6: 769 | B6: 547
A7: 781 | B7: 543
A8: 803 | B8: 304
A9: 695 | B9: 714
A10: 722 | B10: 626
A11: 710 | B11: 555
A12: 746 | B12: 536
A13: 764 | B13: 478
A14: 754 | B14: 437
A15: 774 | B15: 548
A16: 795 | B16: 374
A17: 691 | B17: 631
A18: 802 | B18: 355
A19: 794 | B19: 343
A20: 711 | B20: 636
A21: 789 | B21: 349
A22: 737 | B22: 557
A23: 779 | B23: 530
A24: 694 | B24: 802
A25: 745 | B25: 569
A26: 750 | B26: 636
A27: 777 | B27: 448
A28: 740 | B28: 543
A29: 738 | B29: 519
A30: 707 | B30: 749
A31: 716 | B31: 597
A32: 729 | B32: 593

Sheet Прямоугольники
M2: 16
M3: 16
D4: 1 | E4: 14 | I4: 12 | M4: 16
C5: 8 | D5: 1 | E5: 14 | I5: 12 | M5: 15
C6: 8 | D6: 1 | E6: 14 | I6: 12 | M6: 15
C7: 8 | E7: 20 | I7: 3
E8: 20 | I8: 3 | O8: 6
E9: 20 | O9: 6
O10: 6
I13: 19
H14: 10 | I14: 19
E15: 4 | G15: 17 | H15: 10 | I15: 19 | K15: 7
C16: 18 | E16: 4 | G16: 17 | H16: 10 | K16: 7 | O16: 9 | P16: 2
C17: 18 | E17: 4 | G17: 17 | K17: 7 | O17: 9 | P17: 2 | S17: 11
C18: 18 | K18: 5 | O18: 9 | P18: 2 | S18: 11 | T18: 13
K19: 5 | S19: 11 | T19: 13
T20: 13
A21: 1 | B21: 3
A22: 2 | B22: 3
A23: 3 | B23: 2
A24: 4 | B24: 3
A25: 5 | B25: 2
A26: 6 | B26: 3
A27: 7 | B27: 3
A28: 8 | B28: 3
A29: 9 | B29: 3
A30: 10 | B30: 3
A31: 11 | B31: 3
A32: 12 | B32: 3
A33: 13 | B33: 3
A34: 14 | B34: 3
A35: 15 | B35: 2
A36: 16 | B36: 3
A37: 17 | B37: 3
A38: 18 | B38: 3
A39: 19 | B39: 3
A40: 20 | B40: 3
